{"text_format":"3","workbook":"xlsx","n_sheets":15,"sheets":["ІНСТРУКЦІЇ","Список студентів","Серпень","Вересень","Жовтень","Листопад","Грудень","Січень","Лютий","Березень","Квітень","Травень","Червень","Липень","Звіт про відвідуваність"],"not_rendered":{"defined_names":15},"read":"whole","date_system":"1900"}

{"sheet":"ІНСТРУКЦІЇ","index":0,"n_rows":25,"n_cols":5,"rows_kept":25,"merged":[[3,2,3,12],[4,4,4,12],[5,4,5,12],[6,4,6,12],[7,4,7,12],[8,4,8,7],[11,2,11,12],[12,4,12,12],[13,4,13,12],[14,4,14,12],[17,2,17,12],[18,4,18,12],[19,4,19,12],[20,4,20,12],[21,4,21,12],[24,2,24,12]]}
["ІНСТРУКЦІЇ З КОРИСТУВАННЯ ШАБЛОНОМ"]
[]
[null,"З ЧОГО СЛІД ПОЧАТИ?"]
[null,null,"Перш ніж ви зможете стежити за відвідуваністю студентів, потрібно зробити кілька речей."]
[{"$nulls":3},"1.","Додайте студентів. На аркуші Список студентів введіть інформацію про кожного студента, зокрема імена опікунів і контактні дані. Код студента – це унікальний ідентифікатор кожного студента, який використовується в розкривних списках для полегшення вводу даних про студентів. Інформація, указана на аркуші \"Список студентів\" використовується також на інших аркушах, наприклад на аркуші \"Звіт про відвідуваність\" і в щомісячних звітах про відвідуваність."]
[{"$nulls":3},"2.","Змініть навчальний рік. На аркуші Серпень у верхньому правому куті клацайте елементи керування роком календаря, щоб вибрати потрібний навчальний рік. Рік змінюватиметься у всіх звітах за кожен місяць. Зверніть увагу, що елементи керування роком не друкуються."]
[{"$nulls":3},"3.","Змініть кольори у книзі (необов’язковий крок). Спочатку перейдіть на останній аркуш, Звіт про відвідуваність, і на вкладці Рецензування у групі Зміни натисніть кнопку Зняти захист аркуша. Відтак на вкладці Розмітка сторінки у групі Теми натисніть кнопку Кольори й виберіть у колекції інший набір кольорів теми. Змінивши кольори та інші елементи теми, перейдіть на аркуш Звіт про відвідуваність і на вкладці Рецензування у групі Зміни натисніть кнопку Захистити аркуш. Потім натисніть кнопку ОК"]
[{"$nulls":4},"Порада. Створіть настроюваний набір кольорів теми, які відповідатимуть кольорам школи! Для цього на вкладці Розмітка сторінки у групі Теми натисніть кнопку Кольори, а потім під колекцією кольорів натисніть кнопку Створити нові кольори теми. Додаткові відомості про створення настроюваних наборів кольорів теми див. в цьому розділі довідки: "]
[{"$nulls":4},"Настроювання теми документа."]
[]
[null,"СТУДЕНТІВ ДОДАНО ДО СПИСКУ. ЩО ДАЛІ?"]
[null,null,"Додавши студентів до списку, можна починати відстежувати їхнє відвідування занять протягом року."]
[{"$nulls":3},"1.","Щоб додати студента до обліку відвідування занять, клацніть клітинку під стовпцем Код студента та виберіть у списку потрібний номер. Після цього автоматично відобразиться ім’я студента."]
[{"$nulls":4},"Порада. Зберігайте введену інформацію поетапно! Указавши студентів для одного місяця, виділіть введені коди студентів, скопіюйте їх і вставте у стовпець Код студента для наступних місяців. "]
[{"$nulls":3},"2.","Потім внесіть свої записи відвідуваності за кожен день місяця, використовуючи типи даних, указані в поясненнях до кольорів. Відвідуваність кожного студента вираховується автоматично у стовпці \"Усього\". Унизу таблиці в рядку \"Усього\" вираховується загальна кількість пропущених занять за кожен день."]
[]
[null,"ЯК ДОДАТИ ІНШИХ СТУДЕНТІВ ДО ОБЛІКУ ВІДВІДУВАННЯ ЗАНЯТЬ?"]
[null,null,"Аркуші відвідуваності на кожен місяць та \"Список студентів\" – це таблиці Excel. Щоб додати нові рядки до будь-якої таблиці Excel, виконайте одну з таких дій:"]
[{"$nulls":3},"● ","Якщо в таблиці немає рядка \"Усього\", введіть у кінці таблиці текст, натисніть клавішу Enter або табуляції, і таблиця автоматично розширить свій діапазон."]
[{"$nulls":3},"● ","Установіть курсор в останній клітинці над рядком \"Усього\" (наприклад, у клітинці \"Відсутність, дн.\" останнього студента) і натисніть клавішу табуляції."]
[{"$nulls":3},"● ","Клацніть правою кнопкою миші таблицю, у контекстному меню наведіть вказівник на пункт Вставити, а потім виберіть команду Рядки таблиць вище або Рядок таблиці внизу. "]
[{"$nulls":3},"● ","Щоб збільшити кількість доступних рядків таблиці, установіть курсор у правий нижній кут таблиці та перетягніть маркер змінення розміру вниз."]
[]
[null,"ЧИ МОЖНА ПЕРЕГЛЯНУТИ, ЯК СТУДЕНТ ВІДВІДУВАВ ЗАНЯТТЯ ПРОТЯГОМ РОКУ?"]
[null,null,"На останньому аркуші цієї книги (\"Звіт про відвідуваність\") відстежується відвідуваність за рік до поточної дати. Щоб переглянути звіт про певного студента, клацніть під клітинкою Код студента та виберіть у списку потрібний номер – автоматично відобразиться інформація, яку ви раніше ввели на аркуші зі списком студентів. Якщо ви вперше використовуєте звіт про відвідуваність, вам потрібно вказати школу, клас, викладача та номер аудиторії. Ця інформація не змінюватиметься, коли ви вибиратимете іншого студента."]

{"sheet":"Список студентів","index":1,"n_rows":8,"n_cols":19,"rows_kept":8}
["СПИСОК СТУДЕНТІВ"]
[]
[null,"Код студента","Ім’я студента","Прізвище студента","Стать","Дата народження","Батько/мати/опікун1","Відносини з батьком/матір’ю/опікуном1","Роб. тел. батька/матері/опікуна1","Дом. тел. батька/матері/опікуна1","Батько/мати/опікун2","Відносини з батьком/матір’ю/опікуном2","Роб. тел. батька/матері/опікуна2","Дом. тел. батька/матері/опікуна2","В екстрених ситуаціях телефонувати","В екстрених ситуаціях звертатися до","Роб. тел. контакту на випадок екстреної ситуації","Дом. тел. контакту на випадок екстреної ситуації","Повне ім’я студента"]
[null,"С001","Ігор","Олександров","Ч","1997-03-28","Василина","Олександров",1235550134,2345550134,"Михайло Олександров","Батько",1235550134,2345550134,"Василь Ступкар","Дідусь",7895550189,7895550134,{"$f":"Перелікстудентів[[#This Row],[Ім’я студента]]&\" \" &Перелікстудентів[[#This Row],[Прізвище студента]]","v":"Ігор Олександров"}]
[null,"С002","Студент",2,{"$nulls":14},{"$f":"Перелікстудентів[[#This Row],[Ім’я студента]]&\" \" &Перелікстудентів[[#This Row],[Прізвище студента]]","v":"Студент 2"}]
[null,"С003","Студент",3,{"$nulls":14},{"$f":"Перелікстудентів[[#This Row],[Ім’я студента]]&\" \" &Перелікстудентів[[#This Row],[Прізвище студента]]","v":"Студент 3"}]
[null,"С004","Студент",4,{"$nulls":14},{"$f":"Перелікстудентів[[#This Row],[Ім’я студента]]&\" \" &Перелікстудентів[[#This Row],[Прізвище студента]]","v":"Студент 4"}]
[null,"С005","Студент",5,{"$nulls":14},{"$f":"Перелікстудентів[[#This Row],[Ім’я студента]]&\" \" &Перелікстудентів[[#This Row],[Прізвище студента]]","v":"Студент 5"}]

{"sheet":"Серпень","index":2,"n_rows":12,"n_cols":39,"rows_kept":12,"merged":[[4,34,4,38]]}
["ОБЛІК ВІДВІДУВАННЯ ЗАНЯТЬ СТУДЕНТАМИ",{"$nulls":36},"Початок шкільного року:",2012]
[]
[null,null,"ПОЯСНЕННЯ ДО КОЛЬОРІВ","З","Запізнення",null,null,"ПП","Поважна причина",{"$nulls":3},"П","Прогул",null,null,"Н","На місці",null,null,"В","Вихідний"]
[]
[null,{"$f":"DATE(Календарнийрік,8,1)","v":"2012-08-01"},null,{"$f":"TEXT(WEEKDAY(DATE(Календарнийрік,8,1),1),\"aaa\")","v":"Ср"},{"$f":"TEXT(WEEKDAY(DATE(Календарнийрік,8,2),1),\"aaa\")","v":"Чт"},{"$f":"TEXT(WEEKDAY(DATE(Календарнийрік,8,3),1),\"aaa\")","v":"Пт"},{"$f":"TEXT(WEEKDAY(DATE(Календарнийрік,8,4),1),\"aaa\")","v":"Сб"},{"$f":"TEXT(WEEKDAY(DATE(Календарнийрік,8,5),1),\"aaa\")","v":"Нд"},{"$f":"TEXT(WEEKDAY(DATE(Календарнийрік,8,6),1),\"aaa\")","v":"Пн"},{"$f":"TEXT(WEEKDAY(DATE(Календарнийрік,8,7),1),\"aaa\")","v":"Вт"},{"$f":"TEXT(WEEKDAY(DATE(Календарнийрік,8,8),1),\"aaa\")","v":"Ср"},{"$f":"TEXT(WEEKDAY(DATE(Календарнийрік,8,9),1),\"aaa\")","v":"Чт"},{"$f":"TEXT(WEEKDAY(DATE(Календарнийрік,8,10),1),\"aaa\")","v":"Пт"},{"$f":"TEXT(WEEKDAY(DATE(Календарнийрік,8,11),1),\"aaa\")","v":"Сб"},{"$f":"TEXT(WEEKDAY(DATE(Календарнийрік,8,12),1),\"aaa\")","v":"Нд"},{"$f":"TEXT(WEEKDAY(DATE(Календарнийрік,8,13),1),\"aaa\")","v":"Пн"},{"$f":"TEXT(WEEKDAY(DATE(Календарнийрік,8,14),1),\"aaa\")","v":"Вт"},{"$f":"TEXT(WEEKDAY(DATE(Календарнийрік,8,15),1),\"aaa\")","v":"Ср"},{"$f":"TEXT(WEEKDAY(DATE(Календарнийрік,8,16),1),\"aaa\")","v":"Чт"},{"$f":"TEXT(WEEKDAY(DATE(Календарнийрік,8,17),1),\"aaa\")","v":"Пт"},{"$f":"TEXT(WEEKDAY(DATE(Календарнийрік,8,18),1),\"aaa\")","v":"Сб"},{"$f":"TEXT(WEEKDAY(DATE(Календарнийрік,8,19),1),\"aaa\")","v":"Нд"},{"$f":"TEXT(WEEKDAY(DATE(Календарнийрік,8,20),1),\"aaa\")","v":"Пн"},{"$f":"TEXT(WEEKDAY(DATE(Календарнийрік,8,21),1),\"aaa\")","v":"Вт"},{"$f":"TEXT(WEEKDAY(DATE(Календарнийрік,8,22),1),\"aaa\")","v":"Ср"},{"$f":"TEXT(WEEKDAY(DATE(Календарнийрік,8,23),1),\"aaa\")","v":"Чт"},{"$f":"TEXT(WEEKDAY(DATE(Календарнийрік,8,24),1),\"aaa\")","v":"Пт"},{"$f":"TEXT(WEEKDAY(DATE(Календарнийрік,8,25),1),\"aaa\")","v":"Сб"},{"$f":"TEXT(WEEKDAY(DATE(Календарнийрік,8,26),1),\"aaa\")","v":"Нд"},{"$f":"TEXT(WEEKDAY(DATE(Календарнийрік,8,27),1),\"aaa\")","v":"Пн"},{"$f":"TEXT(WEEKDAY(DATE(Календарнийрік,8,28),1),\"aaa\")","v":"Вт"},{"$f":"TEXT(WEEKDAY(DATE(Календарнийрік,8,29),1),\"aaa\")","v":"Ср"},{"$f":"TEXT(WEEKDAY(DATE(Календарнийрік,8,30),1),\"aaa\")","v":"Чт"},{"$f":"TEXT(WEEKDAY(DATE(Календарнийрік,8,31),1),\"aaa\")","v":"Пт"},"Усього"]
[null,"Код студента","Ім’я студента","1","2","3","4","5","6","7","8","9","10","11","12","13","14","15","16","17","18","19","20","21","22","23","24","25","26","27","28","29","30","31","З","ПП","П","Н","Відсутність, дн."]
[null,"С001",{"$f":"IFERROR(VLOOKUP(Відвідуваністьзасерпень[[#This Row],[Код студента]],Перелікстудентів[],18,FALSE),\"\")","v":"Ігор Олександров"},"Н","Н","З","З","Н","В","В","Н","Н","ПП","Н","Н","В","В","Н","Н","Н","Н","Н","В","В","Н","Н","Н","Н","Н","В","В","Н","Н","Н",{"$f":"COUNTIF(Відвідуваністьзасерпень[[#This Row],[1]:[31]],Код1)","v":2},{"$f":"COUNTIF(Відвідуваністьзасерпень[[#This Row],[1]:[31]],Код2)","v":1},{"$f":"COUNTIF(Відвідуваністьзасерпень[[#This Row],[1]:[31]],Код3)","v":0},{"$f":"COUNTIF(Відвідуваністьзасерпень[[#This Row],[1]:[31]],Код4)","v":20},{"$f":"SUM(Відвідуваністьзасерпень[[#This Row],[ПП]:[П]])","v":1}]
[null,"С002",{"$f":"IFERROR(VLOOKUP(Відвідуваністьзасерпень[[#This Row],[Код студента]],Перелікстудентів[],18,FALSE),\"\")","v":"Студент 2"},"Н","П","Н","Н","Н","В","В","Н","ПП","ПП","ПП","ПП","В","В","Н","Н","Н","Н","Н","В","В","Н","Н","Н","З","З","В","В","Н","Н","Н",{"$f":"COUNTIF(Відвідуваністьзасерпень[[#This Row],[1]:[31]],Код1)","v":2},{"$f":"COUNTIF(Відвідуваністьзасерпень[[#This Row],[1]:[31]],Код2)","v":4},{"$f":"COUNTIF(Відвідуваністьзасерпень[[#This Row],[1]:[31]],Код3)","v":1},{"$f":"COUNTIF(Відвідуваністьзасерпень[[#This Row],[1]:[31]],Код4)","v":16},{"$f":"SUM(Відвідуваністьзасерпень[[#This Row],[ПП]:[П]])","v":5}]
[null,"С003",{"$f":"IFERROR(VLOOKUP(Відвідуваністьзасерпень[[#This Row],[Код студента]],Перелікстудентів[],18,FALSE),\"\")","v":"Студент 3"},"Н","ПП","Н","Н","Н","В","В","Н","Н","П","Н","Н","В","В","Н","Н","Н","Н","Н","В","В","Н","Н","ПП","ПП","Н","В","В","Н","Н","Н",{"$f":"COUNTIF(Відвідуваністьзасерпень[[#This Row],[1]:[31]],Код1)","v":0},{"$f":"COUNTIF(Відвідуваністьзасерпень[[#This Row],[1]:[31]],Код2)","v":3},{"$f":"COUNTIF(Відвідуваністьзасерпень[[#This Row],[1]:[31]],Код3)","v":1},{"$f":"COUNTIF(Відвідуваністьзасерпень[[#This Row],[1]:[31]],Код4)","v":19},{"$f":"SUM(Відвідуваністьзасерпень[[#This Row],[ПП]:[П]])","v":4}]
[null,"С004",{"$f":"IFERROR(VLOOKUP(Відвідуваністьзасерпень[[#This Row],[Код студента]],Перелікстудентів[],18,FALSE),\"\")","v":"Студент 4"},"Н","Н","Н","Н","Н","В","В","Н","Н","Н","Н","Н","В","В","Н","Н","Н","Н","Н","В","В","Н","П","Н","Н","ПП","В","В","Н","ПП","Н",{"$f":"COUNTIF(Відвідуваністьзасерпень[[#This Row],[1]:[31]],Код1)","v":0},{"$f":"COUNTIF(Відвідуваністьзасерпень[[#This Row],[1]:[31]],Код2)","v":2},{"$f":"COUNTIF(Відвідуваністьзасерпень[[#This Row],[1]:[31]],Код3)","v":1},{"$f":"COUNTIF(Відвідуваністьзасерпень[[#This Row],[1]:[31]],Код4)","v":20},{"$f":"SUM(Відвідуваністьзасерпень[[#This Row],[ПП]:[П]])","v":3}]
[null,"С005",{"$f":"IFERROR(VLOOKUP(Відвідуваністьзасерпень[[#This Row],[Код студента]],Перелікстудентів[],18,FALSE),\"\")","v":"Студент 5"},"Н","Н","Н","Н","Н","В","В","Н","Н","Н","Н","Н","В","В","Н","Н","Н","Н","Н","В","В","Н","Н","Н","Н","Н","В","В","Н","Н","Н",{"$f":"COUNTIF(Відвідуваністьзасерпень[[#This Row],[1]:[31]],Код1)","v":0},{"$f":"COUNTIF(Відвідуваністьзасерпень[[#This Row],[1]:[31]],Код2)","v":0},{"$f":"COUNTIF(Відвідуваністьзасерпень[[#This Row],[1]:[31]],Код3)","v":0},{"$f":"COUNTIF(Відвідуваністьзасерпень[[#This Row],[1]:[31]],Код4)","v":23},{"$f":"SUM(Відвідуваністьзасерпень[[#This Row],[ПП]:[П]])","v":0}]
[null,null,"Усього днів відсутній",{"$f":"COUNTIF(Відвідуваністьзасерпень[1],\"П\")+COUNTIF(Відвідуваністьзасерпень[1],\"ПП\")","v":0},{"$f":"COUNTIF(Відвідуваністьзасерпень[2],\"П\")+COUNTIF(Відвідуваністьзасерпень[2],\"ПП\")","v":2},{"$f":"COUNTIF(Відвідуваністьзасерпень[3],\"П\")+COUNTIF(Відвідуваністьзасерпень[3],\"ПП\")","v":0},{"$f":"COUNTIF(Відвідуваністьзасерпень[4],\"П\")+COUNTIF(Відвідуваністьзасерпень[4],\"ПП\")","v":0},{"$f":"COUNTIF(Відвідуваністьзасерпень[5],\"П\")+COUNTIF(Відвідуваністьзасерпень[5],\"ПП\")","v":0},{"$f":"COUNTIF(Відвідуваністьзасерпень[6],\"П\")+COUNTIF(Відвідуваністьзасерпень[6],\"ПП\")","v":0},{"$f":"COUNTIF(Відвідуваністьзасерпень[7],\"П\")+COUNTIF(Відвідуваністьзасерпень[7],\"ПП\")","v":0},{"$f":"COUNTIF(Відвідуваністьзасерпень[8],\"П\")+COUNTIF(Відвідуваністьзасерпень[8],\"ПП\")","v":0},{"$f":"COUNTIF(Відвідуваністьзасерпень[9],\"П\")+COUNTIF(Відвідуваністьзасерпень[9],\"ПП\")","v":1},{"$f":"COUNTIF(Відвідуваністьзасерпень[10],\"П\")+COUNTIF(Відвідуваністьзасерпень[10],\"ПП\")","v":3},{"$f":"COUNTIF(Відвідуваністьзасерпень[11],\"П\")+COUNTIF(Відвідуваністьзасерпень[11],\"ПП\")","v":1},{"$f":"COUNTIF(Відвідуваністьзасерпень[12],\"П\")+COUNTIF(Відвідуваністьзасерпень[12],\"ПП\")","v":1},{"$f":"COUNTIF(Відвідуваністьзасерпень[13],\"П\")+COUNTIF(Відвідуваністьзасерпень[13],\"ПП\")","v":0},{"$f":"COUNTIF(Відвідуваністьзасерпень[14],\"П\")+COUNTIF(Відвідуваністьзасерпень[14],\"ПП\")","v":0},{"$f":"COUNTIF(Відвідуваністьзасерпень[15],\"П\")+COUNTIF(Відвідуваністьзасерпень[15],\"ПП\")","v":0},{"$f":"COUNTIF(Відвідуваністьзасерпень[16],\"П\")+COUNTIF(Відвідуваністьзасерпень[16],\"ПП\")","v":0},{"$f":"COUNTIF(Відвідуваністьзасерпень[17],\"П\")+COUNTIF(Відвідуваністьзасерпень[17],\"ПП\")","v":0},{"$f":"COUNTIF(Відвідуваністьзасерпень[18],\"П\")+COUNTIF(Відвідуваністьзасерпень[18],\"ПП\")","v":0},{"$f":"COUNTIF(Відвідуваністьзасерпень[19],\"П\")+COUNTIF(Відвідуваністьзасерпень[19],\"ПП\")","v":0},{"$f":"COUNTIF(Відвідуваністьзасерпень[20],\"П\")+COUNTIF(Відвідуваністьзасерпень[20],\"ПП\")","v":0},{"$f":"COUNTIF(Відвідуваністьзасерпень[21],\"П\")+COUNTIF(Відвідуваністьзасерпень[21],\"ПП\")","v":0},{"$f":"COUNTIF(Відвідуваністьзасерпень[22],\"П\")+COUNTIF(Відвідуваністьзасерпень[22],\"ПП\")","v":0},{"$f":"COUNTIF(Відвідуваністьзасерпень[23],\"П\")+COUNTIF(Відвідуваністьзасерпень[23],\"ПП\")","v":1},{"$f":"COUNTIF(Відвідуваністьзасерпень[24],\"П\")+COUNTIF(Відвідуваністьзасерпень[24],\"ПП\")","v":1},{"$f":"COUNTIF(Відвідуваністьзасерпень[25],\"П\")+COUNTIF(Відвідуваністьзасерпень[25],\"ПП\")","v":1},{"$f":"COUNTIF(Відвідуваністьзасерпень[26],\"П\")+COUNTIF(Відвідуваністьзасерпень[26],\"ПП\")","v":1},{"$f":"COUNTIF(Відвідуваністьзасерпень[27],\"П\")+COUNTIF(Відвідуваністьзасерпень[27],\"ПП\")","v":0},{"$f":"COUNTIF(Відвідуваністьзасерпень[28],\"П\")+COUNTIF(Відвідуваністьзасерпень[28],\"ПП\")","v":0},{"$f":"COUNTIF(Відвідуваністьзасерпень[29],\"П\")+COUNTIF(Відвідуваністьзасерпень[29],\"ПП\")","v":0},{"$f":"COUNTIF(Відвідуваністьзасерпень[30],\"П\")+COUNTIF(Відвідуваністьзасерпень[30],\"ПП\")","v":1},{"$f":"COUNTIF(Відвідуваністьзасерпень[31],\"П\")+COUNTIF(Відвідуваністьзасерпень[31],\"ПП\")","v":0},{"$f":"SUBTOTAL(109,Відвідуваністьзасерпень[З])","v":4},{"$f":"SUBTOTAL(109,Відвідуваністьзасерпень[ПП])","v":10},{"$f":"SUBTOTAL(109,Відвідуваністьзасерпень[П])","v":3},{"$f":"SUBTOTAL(109,Відвідуваністьзасерпень[Н])","v":98},{"$f":"SUBTOTAL(109,Відвідуваністьзасерпень[Відсутність, дн.])","v":13}]

{"sheet":"Вересень","index":3,"n_rows":12,"n_cols":39,"rows_kept":12,"merged":[[4,34,4,38]]}
["ОБЛІК ВІДВІДУВАННЯ ЗАНЯТЬ СТУДЕНТАМИ",{"$nulls":36},"Початок шкільного року:",{"$f":"Календарнийрік","v":2012}]
[]
[null,null,{"$f":"Текстпоясненьдокольорів","v":"ПОЯСНЕННЯ ДО КОЛЬОРІВ"},{"$f":"Код1","v":"З"},{"$f":"Код1текст","v":"Запізнення"},null,null,{"$f":"Код2","v":"ПП"},{"$f":"Код2текст","v":"Поважна причина"},{"$nulls":3},{"$f":"Код3","v":"П"},{"$f":"Код3текст","v":"Прогул"},null,null,{"$f":"Код4","v":"Н"},{"$f":"Код4текст","v":"На місці"},null,null,{"$f":"Код5","v":"В"},{"$f":"Код5текст","v":"Вихідний"}]
[]
[null,{"$f":"DATE(Календарнийрік,9,1)","v":"2012-09-01"},null,{"$f":"TEXT(WEEKDAY(DATE(Календарнийрік,9,1),1),\"aaa\")","v":"Сб"},{"$f":"TEXT(WEEKDAY(DATE(Календарнийрік,9,2),1),\"aaa\")","v":"Нд"},{"$f":"TEXT(WEEKDAY(DATE(Календарнийрік,9,3),1),\"aaa\")","v":"Пн"},{"$f":"TEXT(WEEKDAY(DATE(Календарнийрік,9,4),1),\"aaa\")","v":"Вт"},{"$f":"TEXT(WEEKDAY(DATE(Календарнийрік,9,5),1),\"aaa\")","v":"Ср"},{"$f":"TEXT(WEEKDAY(DATE(Календарнийрік,9,6),1),\"aaa\")","v":"Чт"},{"$f":"TEXT(WEEKDAY(DATE(Календарнийрік,9,7),1),\"aaa\")","v":"Пт"},{"$f":"TEXT(WEEKDAY(DATE(Календарнийрік,9,8),1),\"aaa\")","v":"Сб"},{"$f":"TEXT(WEEKDAY(DATE(Календарнийрік,9,9),1),\"aaa\")","v":"Нд"},{"$f":"TEXT(WEEKDAY(DATE(Календарнийрік,9,10),1),\"aaa\")","v":"Пн"},{"$f":"TEXT(WEEKDAY(DATE(Календарнийрік,9,11),1),\"aaa\")","v":"Вт"},{"$f":"TEXT(WEEKDAY(DATE(Календарнийрік,9,12),1),\"aaa\")","v":"Ср"},{"$f":"TEXT(WEEKDAY(DATE(Календарнийрік,9,13),1),\"aaa\")","v":"Чт"},{"$f":"TEXT(WEEKDAY(DATE(Календарнийрік,9,14),1),\"aaa\")","v":"Пт"},{"$f":"TEXT(WEEKDAY(DATE(Календарнийрік,9,15),1),\"aaa\")","v":"Сб"},{"$f":"TEXT(WEEKDAY(DATE(Календарнийрік,9,16),1),\"aaa\")","v":"Нд"},{"$f":"TEXT(WEEKDAY(DATE(Календарнийрік,9,17),1),\"aaa\")","v":"Пн"},{"$f":"TEXT(WEEKDAY(DATE(Календарнийрік,9,18),1),\"aaa\")","v":"Вт"},{"$f":"TEXT(WEEKDAY(DATE(Календарнийрік,9,19),1),\"aaa\")","v":"Ср"},{"$f":"TEXT(WEEKDAY(DATE(Календарнийрік,9,20),1),\"aaa\")","v":"Чт"},{"$f":"TEXT(WEEKDAY(DATE(Календарнийрік,9,21),1),\"aaa\")","v":"Пт"},{"$f":"TEXT(WEEKDAY(DATE(Календарнийрік,9,22),1),\"aaa\")","v":"Сб"},{"$f":"TEXT(WEEKDAY(DATE(Календарнийрік,9,23),1),\"aaa\")","v":"Нд"},{"$f":"TEXT(WEEKDAY(DATE(Календарнийрік,9,24),1),\"aaa\")","v":"Пн"},{"$f":"TEXT(WEEKDAY(DATE(Календарнийрік,9,25),1),\"aaa\")","v":"Вт"},{"$f":"TEXT(WEEKDAY(DATE(Календарнийрік,9,26),1),\"aaa\")","v":"Ср"},{"$f":"TEXT(WEEKDAY(DATE(Календарнийрік,9,27),1),\"aaa\")","v":"Чт"},{"$f":"TEXT(WEEKDAY(DATE(Календарнийрік,9,28),1),\"aaa\")","v":"Пт"},{"$f":"TEXT(WEEKDAY(DATE(Календарнийрік,9,29),1),\"aaa\")","v":"Сб"},{"$f":"TEXT(WEEKDAY(DATE(Календарнийрік,9,30),1),\"aaa\")","v":"Нд"},null,"Усього"]
[null,"Код студента","Ім’я студента","1","2","3","4","5","6","7","8","9","10","11","12","13","14","15","16","17","18","19","20","21","22","23","24","25","26","27","28","29","30"," ","З","ПП","П","Н","Відсутність, дн."]
[null,null,{"$f":"IFERROR(VLOOKUP(Відвідуваністьзавересень[[#This Row],[Код студента]],Перелікстудентів[],18,FALSE),\"\")","v":""},{"$nulls":31},{"$f":"COUNTIF(Відвідуваністьзавересень[[#This Row],[1]:[ ]],Код1)","v":0},{"$f":"COUNTIF(Відвідуваністьзавересень[[#This Row],[1]:[ ]],Код2)","v":0},{"$f":"COUNTIF(Відвідуваністьзавересень[[#This Row],[1]:[ ]],Код3)","v":0},{"$f":"COUNTIF(Відвідуваністьзавересень[[#This Row],[1]:[ ]],Код4)","v":0},{"$f":"SUM(Відвідуваністьзавересень[[#This Row],[ПП]:[П]])","v":0}]
[null,null,{"$f":"IFERROR(VLOOKUP(Відвідуваністьзавересень[[#This Row],[Код студента]],Перелікстудентів[],18,FALSE),\"\")","v":""},{"$nulls":31},{"$f":"COUNTIF(Відвідуваністьзавересень[[#This Row],[1]:[ ]],Код1)","v":0},{"$f":"COUNTIF(Відвідуваністьзавересень[[#This Row],[1]:[ ]],Код2)","v":0},{"$f":"COUNTIF(Відвідуваністьзавересень[[#This Row],[1]:[ ]],Код3)","v":0},{"$f":"COUNTIF(Відвідуваністьзавересень[[#This Row],[1]:[ ]],Код4)","v":0},{"$f":"SUM(Відвідуваністьзавересень[[#This Row],[ПП]:[П]])","v":0}]
[null,null,{"$f":"IFERROR(VLOOKUP(Відвідуваністьзавересень[[#This Row],[Код студента]],Перелікстудентів[],18,FALSE),\"\")","v":""},{"$nulls":31},{"$f":"COUNTIF(Відвідуваністьзавересень[[#This Row],[1]:[ ]],Код1)","v":0},{"$f":"COUNTIF(Відвідуваністьзавересень[[#This Row],[1]:[ ]],Код2)","v":0},{"$f":"COUNTIF(Відвідуваністьзавересень[[#This Row],[1]:[ ]],Код3)","v":0},{"$f":"COUNTIF(Відвідуваністьзавересень[[#This Row],[1]:[ ]],Код4)","v":0},{"$f":"SUM(Відвідуваністьзавересень[[#This Row],[ПП]:[П]])","v":0}]
[null,null,{"$f":"IFERROR(VLOOKUP(Відвідуваністьзавересень[[#This Row],[Код студента]],Перелікстудентів[],18,FALSE),\"\")","v":""},{"$nulls":31},{"$f":"COUNTIF(Відвідуваністьзавересень[[#This Row],[1]:[ ]],Код1)","v":0},{"$f":"COUNTIF(Відвідуваністьзавересень[[#This Row],[1]:[ ]],Код2)","v":0},{"$f":"COUNTIF(Відвідуваністьзавересень[[#This Row],[1]:[ ]],Код3)","v":0},{"$f":"COUNTIF(Відвідуваністьзавересень[[#This Row],[1]:[ ]],Код4)","v":0},{"$f":"SUM(Відвідуваністьзавересень[[#This Row],[ПП]:[П]])","v":0}]
[null,null,{"$f":"IFERROR(VLOOKUP(Відвідуваністьзавересень[[#This Row],[Код студента]],Перелікстудентів[],18,FALSE),\"\")","v":""},{"$nulls":31},{"$f":"COUNTIF(Відвідуваністьзавересень[[#This Row],[1]:[ ]],Код1)","v":0},{"$f":"COUNTIF(Відвідуваністьзавересень[[#This Row],[1]:[ ]],Код2)","v":0},{"$f":"COUNTIF(Відвідуваністьзавересень[[#This Row],[1]:[ ]],Код3)","v":0},{"$f":"COUNTIF(Відвідуваністьзавересень[[#This Row],[1]:[ ]],Код4)","v":0},{"$f":"SUM(Відвідуваністьзавересень[[#This Row],[ПП]:[П]])","v":0}]
[null,null,"Усього днів відсутній",{"$f":"COUNTIF(Відвідуваністьзавересень[1],\"П\")+COUNTIF(Відвідуваністьзавересень[1],\"ПП\")","v":0},{"$f":"COUNTIF(Відвідуваністьзавересень[2],\"П\")+COUNTIF(Відвідуваністьзавересень[2],\"ПП\")","v":0},{"$f":"COUNTIF(Відвідуваністьзавересень[3],\"П\")+COUNTIF(Відвідуваністьзавересень[3],\"ПП\")","v":0},{"$f":"COUNTIF(Відвідуваністьзавересень[4],\"П\")+COUNTIF(Відвідуваністьзавересень[4],\"ПП\")","v":0},{"$f":"COUNTIF(Відвідуваністьзавересень[5],\"П\")+COUNTIF(Відвідуваністьзавересень[5],\"ПП\")","v":0},{"$f":"COUNTIF(Відвідуваністьзавересень[6],\"П\")+COUNTIF(Відвідуваністьзавересень[6],\"ПП\")","v":0},{"$f":"COUNTIF(Відвідуваністьзавересень[7],\"П\")+COUNTIF(Відвідуваністьзавересень[7],\"ПП\")","v":0},{"$f":"COUNTIF(Відвідуваністьзавересень[8],\"П\")+COUNTIF(Відвідуваністьзавересень[8],\"ПП\")","v":0},{"$f":"COUNTIF(Відвідуваністьзавересень[9],\"П\")+COUNTIF(Відвідуваністьзавересень[9],\"ПП\")","v":0},{"$f":"COUNTIF(Відвідуваністьзавересень[10],\"П\")+COUNTIF(Відвідуваністьзавересень[10],\"ПП\")","v":0},{"$f":"COUNTIF(Відвідуваністьзавересень[11],\"П\")+COUNTIF(Відвідуваністьзавересень[11],\"ПП\")","v":0},{"$f":"COUNTIF(Відвідуваністьзавересень[12],\"П\")+COUNTIF(Відвідуваністьзавересень[12],\"ПП\")","v":0},{"$f":"COUNTIF(Відвідуваністьзавересень[13],\"П\")+COUNTIF(Відвідуваністьзавересень[13],\"ПП\")","v":0},{"$f":"COUNTIF(Відвідуваністьзавересень[14],\"П\")+COUNTIF(Відвідуваністьзавересень[14],\"ПП\")","v":0},{"$f":"COUNTIF(Відвідуваністьзавересень[15],\"П\")+COUNTIF(Відвідуваністьзавересень[15],\"ПП\")","v":0},{"$f":"COUNTIF(Відвідуваністьзавересень[16],\"П\")+COUNTIF(Відвідуваністьзавересень[16],\"ПП\")","v":0},{"$f":"COUNTIF(Відвідуваністьзавересень[17],\"П\")+COUNTIF(Відвідуваністьзавересень[17],\"ПП\")","v":0},{"$f":"COUNTIF(Відвідуваністьзавересень[18],\"П\")+COUNTIF(Відвідуваністьзавересень[18],\"ПП\")","v":0},{"$f":"COUNTIF(Відвідуваністьзавересень[19],\"П\")+COUNTIF(Відвідуваністьзавересень[19],\"ПП\")","v":0},{"$f":"COUNTIF(Відвідуваністьзавересень[20],\"П\")+COUNTIF(Відвідуваністьзавересень[20],\"ПП\")","v":0},{"$f":"COUNTIF(Відвідуваністьзавересень[21],\"П\")+COUNTIF(Відвідуваністьзавересень[21],\"ПП\")","v":0},{"$f":"COUNTIF(Відвідуваністьзавересень[22],\"П\")+COUNTIF(Відвідуваністьзавересень[22],\"ПП\")","v":0},{"$f":"COUNTIF(Відвідуваністьзавересень[23],\"П\")+COUNTIF(Відвідуваністьзавересень[23],\"ПП\")","v":0},{"$f":"COUNTIF(Відвідуваністьзавересень[24],\"П\")+COUNTIF(Відвідуваністьзавересень[24],\"ПП\")","v":0},{"$f":"COUNTIF(Відвідуваністьзавересень[25],\"П\")+COUNTIF(Відвідуваністьзавересень[25],\"ПП\")","v":0},{"$f":"COUNTIF(Відвідуваністьзавересень[26],\"П\")+COUNTIF(Відвідуваністьзавересень[26],\"ПП\")","v":0},{"$f":"COUNTIF(Відвідуваністьзавересень[27],\"П\")+COUNTIF(Відвідуваністьзавересень[27],\"ПП\")","v":0},{"$f":"COUNTIF(Відвідуваністьзавересень[28],\"П\")+COUNTIF(Відвідуваністьзавересень[28],\"ПП\")","v":0},{"$f":"COUNTIF(Відвідуваністьзавересень[29],\"П\")+COUNTIF(Відвідуваністьзавересень[29],\"ПП\")","v":0},{"$f":"COUNTIF(Відвідуваністьзавересень[30],\"П\")+COUNTIF(Відвідуваністьзавересень[30],\"ПП\")","v":0},{"$f":"COUNTIF(Відвідуваністьзавересень[[ ]],\"П\")+COUNTIF(Відвідуваністьзавересень[[ ]],\"ПП\")","v":0},{"$f":"SUBTOTAL(109,Відвідуваністьзавересень[З])","v":0},{"$f":"SUBTOTAL(109,Відвідуваністьзавересень[ПП])","v":0},{"$f":"SUBTOTAL(109,Відвідуваністьзавересень[П])","v":0},{"$f":"SUBTOTAL(109,Відвідуваністьзавересень[Н])","v":0},{"$f":"SUBTOTAL(109,Відвідуваністьзавересень[Відсутність, дн.])","v":0}]

{"sheet":"Жовтень","index":4,"n_rows":12,"n_cols":39,"rows_kept":12,"merged":[[4,34,4,38]]}
["ОБЛІК ВІДВІДУВАННЯ ЗАНЯТЬ СТУДЕНТАМИ",{"$nulls":36},"Початок шкільного року:",{"$f":"Календарнийрік","v":2012}]
[]
[null,null,{"$f":"Текстпоясненьдокольорів","v":"ПОЯСНЕННЯ ДО КОЛЬОРІВ"},{"$f":"Код1","v":"З"},{"$f":"Код1текст","v":"Запізнення"},null,null,{"$f":"Код2","v":"ПП"},{"$f":"Код2текст","v":"Поважна причина"},{"$nulls":3},{"$f":"Код3","v":"П"},{"$f":"Код3текст","v":"Прогул"},null,null,{"$f":"Код4","v":"Н"},{"$f":"Код4текст","v":"На місці"},null,null,{"$f":"Код5","v":"В"},{"$f":"Код5текст","v":"Вихідний"}]
[]
[null,{"$f":"DATE(Календарнийрік,10,1)","v":"2012-10-01"},null,{"$f":"TEXT(WEEKDAY(DATE(Календарнийрік,10,1),1),\"aaa\")","v":"Пн"},{"$f":"TEXT(WEEKDAY(DATE(Календарнийрік,10,2),1),\"aaa\")","v":"Вт"},{"$f":"TEXT(WEEKDAY(DATE(Календарнийрік,10,3),1),\"aaa\")","v":"Ср"},{"$f":"TEXT(WEEKDAY(DATE(Календарнийрік,10,4),1),\"aaa\")","v":"Чт"},{"$f":"TEXT(WEEKDAY(DATE(Календарнийрік,10,5),1),\"aaa\")","v":"Пт"},{"$f":"TEXT(WEEKDAY(DATE(Календарнийрік,10,6),1),\"aaa\")","v":"Сб"},{"$f":"TEXT(WEEKDAY(DATE(Календарнийрік,10,7),1),\"aaa\")","v":"Нд"},{"$f":"TEXT(WEEKDAY(DATE(Календарнийрік,10,8),1),\"aaa\")","v":"Пн"},{"$f":"TEXT(WEEKDAY(DATE(Календарнийрік,10,9),1),\"aaa\")","v":"Вт"},{"$f":"TEXT(WEEKDAY(DATE(Календарнийрік,10,10),1),\"aaa\")","v":"Ср"},{"$f":"TEXT(WEEKDAY(DATE(Календарнийрік,10,11),1),\"aaa\")","v":"Чт"},{"$f":"TEXT(WEEKDAY(DATE(Календарнийрік,10,12),1),\"aaa\")","v":"Пт"},{"$f":"TEXT(WEEKDAY(DATE(Календарнийрік,10,13),1),\"aaa\")","v":"Сб"},{"$f":"TEXT(WEEKDAY(DATE(Календарнийрік,10,14),1),\"aaa\")","v":"Нд"},{"$f":"TEXT(WEEKDAY(DATE(Календарнийрік,10,15),1),\"aaa\")","v":"Пн"},{"$f":"TEXT(WEEKDAY(DATE(Календарнийрік,10,16),1),\"aaa\")","v":"Вт"},{"$f":"TEXT(WEEKDAY(DATE(Календарнийрік,10,17),1),\"aaa\")","v":"Ср"},{"$f":"TEXT(WEEKDAY(DATE(Календарнийрік,10,18),1),\"aaa\")","v":"Чт"},{"$f":"TEXT(WEEKDAY(DATE(Календарнийрік,10,19),1),\"aaa\")","v":"Пт"},{"$f":"TEXT(WEEKDAY(DATE(Календарнийрік,10,20),1),\"aaa\")","v":"Сб"},{"$f":"TEXT(WEEKDAY(DATE(Календарнийрік,10,21),1),\"aaa\")","v":"Нд"},{"$f":"TEXT(WEEKDAY(DATE(Календарнийрік,10,22),1),\"aaa\")","v":"Пн"},{"$f":"TEXT(WEEKDAY(DATE(Календарнийрік,10,23),1),\"aaa\")","v":"Вт"},{"$f":"TEXT(WEEKDAY(DATE(Календарнийрік,10,24),1),\"aaa\")","v":"Ср"},{"$f":"TEXT(WEEKDAY(DATE(Календарнийрік,10,25),1),\"aaa\")","v":"Чт"},{"$f":"TEXT(WEEKDAY(DATE(Календарнийрік,10,26),1),\"aaa\")","v":"Пт"},{"$f":"TEXT(WEEKDAY(DATE(Календарнийрік,10,27),1),\"aaa\")","v":"Сб"},{"$f":"TEXT(WEEKDAY(DATE(Календарнийрік,10,28),1),\"aaa\")","v":"Нд"},{"$f":"TEXT(WEEKDAY(DATE(Календарнийрік,10,29),1),\"aaa\")","v":"Пн"},{"$f":"TEXT(WEEKDAY(DATE(Календарнийрік,10,30),1),\"aaa\")","v":"Вт"},{"$f":"TEXT(WEEKDAY(DATE(Календарнийрік,10,31),1),\"aaa\")","v":"Ср"},"Усього"]
[null,"Код студента","Ім’я студента","1","2","3","4","5","6","7","8","9","10","11","12","13","14","15","16","17","18","19","20","21","22","23","24","25","26","27","28","29","30","31","З","ПП","П","Н","Відсутність, дн."]
[null,null,{"$f":"IFERROR(VLOOKUP(Відвідуваністьзажовтень[[#This Row],[Код студента]],Перелікстудентів[],18,FALSE),\"\")","v":""},{"$nulls":31},{"$f":"COUNTIF(Відвідуваністьзажовтень[[#This Row],[1]:[31]],Код1)","v":0},{"$f":"COUNTIF(Відвідуваністьзажовтень[[#This Row],[1]:[31]],Код2)","v":0},{"$f":"COUNTIF(Відвідуваністьзажовтень[[#This Row],[1]:[31]],Код3)","v":0},{"$f":"COUNTIF(Відвідуваністьзажовтень[[#This Row],[1]:[31]],Код4)","v":0},{"$f":"SUM(Відвідуваністьзавересень[[#This Row],[ПП]:[П]])","v":0}]
[null,null,{"$f":"IFERROR(VLOOKUP(Відвідуваністьзажовтень[[#This Row],[Код студента]],Перелікстудентів[],18,FALSE),\"\")","v":""},{"$nulls":31},{"$f":"COUNTIF(Відвідуваністьзажовтень[[#This Row],[1]:[31]],Код1)","v":0},{"$f":"COUNTIF(Відвідуваністьзажовтень[[#This Row],[1]:[31]],Код2)","v":0},{"$f":"COUNTIF(Відвідуваністьзажовтень[[#This Row],[1]:[31]],Код3)","v":0},{"$f":"COUNTIF(Відвідуваністьзажовтень[[#This Row],[1]:[31]],Код4)","v":0},{"$f":"SUM(Відвідуваністьзавересень[[#This Row],[ПП]:[П]])","v":0}]
[null,null,{"$f":"IFERROR(VLOOKUP(Відвідуваністьзажовтень[[#This Row],[Код студента]],Перелікстудентів[],18,FALSE),\"\")","v":""},{"$nulls":31},{"$f":"COUNTIF(Відвідуваністьзажовтень[[#This Row],[1]:[31]],Код1)","v":0},{"$f":"COUNTIF(Відвідуваністьзажовтень[[#This Row],[1]:[31]],Код2)","v":0},{"$f":"COUNTIF(Відвідуваністьзажовтень[[#This Row],[1]:[31]],Код3)","v":0},{"$f":"COUNTIF(Відвідуваністьзажовтень[[#This Row],[1]:[31]],Код4)","v":0},{"$f":"SUM(Відвідуваністьзавересень[[#This Row],[ПП]:[П]])","v":0}]
[null,null,{"$f":"IFERROR(VLOOKUP(Відвідуваністьзажовтень[[#This Row],[Код студента]],Перелікстудентів[],18,FALSE),\"\")","v":""},{"$nulls":31},{"$f":"COUNTIF(Відвідуваністьзажовтень[[#This Row],[1]:[31]],Код1)","v":0},{"$f":"COUNTIF(Відвідуваністьзажовтень[[#This Row],[1]:[31]],Код2)","v":0},{"$f":"COUNTIF(Відвідуваністьзажовтень[[#This Row],[1]:[31]],Код3)","v":0},{"$f":"COUNTIF(Відвідуваністьзажовтень[[#This Row],[1]:[31]],Код4)","v":0},{"$f":"SUM(Відвідуваністьзавересень[[#This Row],[ПП]:[П]])","v":0}]
[null,null,{"$f":"IFERROR(VLOOKUP(Відвідуваністьзажовтень[[#This Row],[Код студента]],Перелікстудентів[],18,FALSE),\"\")","v":""},{"$nulls":31},{"$f":"COUNTIF(Відвідуваністьзажовтень[[#This Row],[1]:[31]],Код1)","v":0},{"$f":"COUNTIF(Відвідуваністьзажовтень[[#This Row],[1]:[31]],Код2)","v":0},{"$f":"COUNTIF(Відвідуваністьзажовтень[[#This Row],[1]:[31]],Код3)","v":0},{"$f":"COUNTIF(Відвідуваністьзажовтень[[#This Row],[1]:[31]],Код4)","v":0},{"$f":"SUM(Відвідуваністьзавересень[[#This Row],[ПП]:[П]])","v":0}]
[null,null,"Усього днів відсутній",{"$f":"COUNTIF(Відвідуваністьзажовтень[1],\"П\")+COUNTIF(Відвідуваністьзажовтень[1],\"ПП\")","v":0},{"$f":"COUNTIF(Відвідуваністьзажовтень[2],\"П\")+COUNTIF(Відвідуваністьзажовтень[2],\"ПП\")","v":0},{"$f":"COUNTIF(Відвідуваністьзажовтень[3],\"П\")+COUNTIF(Відвідуваністьзажовтень[3],\"ПП\")","v":0},{"$f":"COUNTIF(Відвідуваністьзажовтень[4],\"П\")+COUNTIF(Відвідуваністьзажовтень[4],\"ПП\")","v":0},{"$f":"COUNTIF(Відвідуваністьзажовтень[5],\"П\")+COUNTIF(Відвідуваністьзажовтень[5],\"ПП\")","v":0},{"$f":"COUNTIF(Відвідуваністьзажовтень[6],\"П\")+COUNTIF(Відвідуваністьзажовтень[6],\"ПП\")","v":0},{"$f":"COUNTIF(Відвідуваністьзажовтень[7],\"П\")+COUNTIF(Відвідуваністьзажовтень[7],\"ПП\")","v":0},{"$f":"COUNTIF(Відвідуваністьзажовтень[8],\"П\")+COUNTIF(Відвідуваністьзажовтень[8],\"ПП\")","v":0},{"$f":"COUNTIF(Відвідуваністьзажовтень[9],\"П\")+COUNTIF(Відвідуваністьзажовтень[9],\"ПП\")","v":0},{"$f":"COUNTIF(Відвідуваністьзажовтень[10],\"П\")+COUNTIF(Відвідуваністьзажовтень[10],\"ПП\")","v":0},{"$f":"COUNTIF(Відвідуваністьзажовтень[11],\"П\")+COUNTIF(Відвідуваністьзажовтень[11],\"ПП\")","v":0},{"$f":"COUNTIF(Відвідуваністьзажовтень[12],\"П\")+COUNTIF(Відвідуваністьзажовтень[12],\"ПП\")","v":0},{"$f":"COUNTIF(Відвідуваністьзажовтень[13],\"П\")+COUNTIF(Відвідуваністьзажовтень[13],\"ПП\")","v":0},{"$f":"COUNTIF(Відвідуваністьзажовтень[14],\"П\")+COUNTIF(Відвідуваністьзажовтень[14],\"ПП\")","v":0},{"$f":"COUNTIF(Відвідуваністьзажовтень[15],\"П\")+COUNTIF(Відвідуваністьзажовтень[15],\"ПП\")","v":0},{"$f":"COUNTIF(Відвідуваністьзажовтень[16],\"П\")+COUNTIF(Відвідуваністьзажовтень[16],\"ПП\")","v":0},{"$f":"COUNTIF(Відвідуваністьзажовтень[17],\"П\")+COUNTIF(Відвідуваністьзажовтень[17],\"ПП\")","v":0},{"$f":"COUNTIF(Відвідуваністьзажовтень[18],\"П\")+COUNTIF(Відвідуваністьзажовтень[18],\"ПП\")","v":0},{"$f":"COUNTIF(Відвідуваністьзажовтень[19],\"П\")+COUNTIF(Відвідуваністьзажовтень[19],\"ПП\")","v":0},{"$f":"COUNTIF(Відвідуваністьзажовтень[20],\"П\")+COUNTIF(Відвідуваністьзажовтень[20],\"ПП\")","v":0},{"$f":"COUNTIF(Відвідуваністьзажовтень[21],\"П\")+COUNTIF(Відвідуваністьзажовтень[21],\"ПП\")","v":0},{"$f":"COUNTIF(Відвідуваністьзажовтень[22],\"П\")+COUNTIF(Відвідуваністьзажовтень[22],\"ПП\")","v":0},{"$f":"COUNTIF(Відвідуваністьзажовтень[23],\"П\")+COUNTIF(Відвідуваністьзажовтень[23],\"ПП\")","v":0},{"$f":"COUNTIF(Відвідуваністьзажовтень[24],\"П\")+COUNTIF(Відвідуваністьзажовтень[24],\"ПП\")","v":0},{"$f":"COUNTIF(Відвідуваністьзажовтень[25],\"П\")+COUNTIF(Відвідуваністьзажовтень[25],\"ПП\")","v":0},{"$f":"COUNTIF(Відвідуваністьзажовтень[26],\"П\")+COUNTIF(Відвідуваністьзажовтень[26],\"ПП\")","v":0},{"$f":"COUNTIF(Відвідуваністьзажовтень[27],\"П\")+COUNTIF(Відвідуваністьзажовтень[27],\"ПП\")","v":0},{"$f":"COUNTIF(Відвідуваністьзажовтень[28],\"П\")+COUNTIF(Відвідуваністьзажовтень[28],\"ПП\")","v":0},{"$f":"COUNTIF(Відвідуваністьзажовтень[29],\"П\")+COUNTIF(Відвідуваністьзажовтень[29],\"ПП\")","v":0},{"$f":"COUNTIF(Відвідуваністьзажовтень[30],\"П\")+COUNTIF(Відвідуваністьзажовтень[30],\"ПП\")","v":0},{"$f":"COUNTIF(Відвідуваністьзажовтень[31],\"П\")+COUNTIF(Відвідуваністьзажовтень[31],\"ПП\")","v":0},{"$f":"SUBTOTAL(109,Відвідуваністьзажовтень[З])","v":0},{"$f":"SUBTOTAL(109,Відвідуваністьзажовтень[ПП])","v":0},{"$f":"SUBTOTAL(109,Відвідуваністьзажовтень[П])","v":0},{"$f":"SUBTOTAL(109,Відвідуваністьзажовтень[Н])","v":0},{"$f":"SUBTOTAL(109,Відвідуваністьзажовтень[Відсутність, дн.])","v":0}]

{"sheet":"Листопад","index":5,"n_rows":12,"n_cols":39,"rows_kept":12,"merged":[[4,34,4,38]]}
["ОБЛІК ВІДВІДУВАННЯ ЗАНЯТЬ СТУДЕНТАМИ",{"$nulls":36},"Початок шкільного року:",{"$f":"Календарнийрік","v":2012}]
[]
[null,null,{"$f":"Текстпоясненьдокольорів","v":"ПОЯСНЕННЯ ДО КОЛЬОРІВ"},{"$f":"Код1","v":"З"},{"$f":"Код1текст","v":"Запізнення"},null,null,{"$f":"Код2","v":"ПП"},{"$f":"Код2текст","v":"Поважна причина"},{"$nulls":3},{"$f":"Код3","v":"П"},{"$f":"Код3текст","v":"Прогул"},null,null,{"$f":"Код4","v":"Н"},{"$f":"Код4текст","v":"На місці"},null,null,{"$f":"Код5","v":"В"},{"$f":"Код5текст","v":"Вихідний"}]
[]
[null,{"$f":"DATE(Календарнийрік,11,1)","v":"2012-11-01"},null,{"$f":"TEXT(WEEKDAY(DATE(Календарнийрік,11,1),1),\"aaa\")","v":"Чт"},{"$f":"TEXT(WEEKDAY(DATE(Календарнийрік,11,2),1),\"aaa\")","v":"Пт"},{"$f":"TEXT(WEEKDAY(DATE(Календарнийрік,11,3),1),\"aaa\")","v":"Сб"},{"$f":"TEXT(WEEKDAY(DATE(Календарнийрік,11,4),1),\"aaa\")","v":"Нд"},{"$f":"TEXT(WEEKDAY(DATE(Календарнийрік,11,5),1),\"aaa\")","v":"Пн"},{"$f":"TEXT(WEEKDAY(DATE(Календарнийрік,11,6),1),\"aaa\")","v":"Вт"},{"$f":"TEXT(WEEKDAY(DATE(Календарнийрік,11,7),1),\"aaa\")","v":"Ср"},{"$f":"TEXT(WEEKDAY(DATE(Календарнийрік,11,8),1),\"aaa\")","v":"Чт"},{"$f":"TEXT(WEEKDAY(DATE(Календарнийрік,11,9),1),\"aaa\")","v":"Пт"},{"$f":"TEXT(WEEKDAY(DATE(Календарнийрік,11,10),1),\"aaa\")","v":"Сб"},{"$f":"TEXT(WEEKDAY(DATE(Календарнийрік,11,11),1),\"aaa\")","v":"Нд"},{"$f":"TEXT(WEEKDAY(DATE(Календарнийрік,11,12),1),\"aaa\")","v":"Пн"},{"$f":"TEXT(WEEKDAY(DATE(Календарнийрік,11,13),1),\"aaa\")","v":"Вт"},{"$f":"TEXT(WEEKDAY(DATE(Календарнийрік,11,14),1),\"aaa\")","v":"Ср"},{"$f":"TEXT(WEEKDAY(DATE(Календарнийрік,11,15),1),\"aaa\")","v":"Чт"},{"$f":"TEXT(WEEKDAY(DATE(Календарнийрік,11,16),1),\"aaa\")","v":"Пт"},{"$f":"TEXT(WEEKDAY(DATE(Календарнийрік,11,17),1),\"aaa\")","v":"Сб"},{"$f":"TEXT(WEEKDAY(DATE(Календарнийрік,11,18),1),\"aaa\")","v":"Нд"},{"$f":"TEXT(WEEKDAY(DATE(Календарнийрік,11,19),1),\"aaa\")","v":"Пн"},{"$f":"TEXT(WEEKDAY(DATE(Календарнийрік,11,20),1),\"aaa\")","v":"Вт"},{"$f":"TEXT(WEEKDAY(DATE(Календарнийрік,11,21),1),\"aaa\")","v":"Ср"},{"$f":"TEXT(WEEKDAY(DATE(Календарнийрік,11,22),1),\"aaa\")","v":"Чт"},{"$f":"TEXT(WEEKDAY(DATE(Календарнийрік,11,23),1),\"aaa\")","v":"Пт"},{"$f":"TEXT(WEEKDAY(DATE(Календарнийрік,11,24),1),\"aaa\")","v":"Сб"},{"$f":"TEXT(WEEKDAY(DATE(Календарнийрік,11,25),1),\"aaa\")","v":"Нд"},{"$f":"TEXT(WEEKDAY(DATE(Календарнийрік,11,26),1),\"aaa\")","v":"Пн"},{"$f":"TEXT(WEEKDAY(DATE(Календарнийрік,11,27),1),\"aaa\")","v":"Вт"},{"$f":"TEXT(WEEKDAY(DATE(Календарнийрік,11,28),1),\"aaa\")","v":"Ср"},{"$f":"TEXT(WEEKDAY(DATE(Календарнийрік,11,29),1),\"aaa\")","v":"Чт"},{"$f":"TEXT(WEEKDAY(DATE(Календарнийрік,11,30),1),\"aaa\")","v":"Пт"},null,"Усього"]
[null,"Код студента","Ім’я студента","1","2","3","4","5","6","7","8","9","10","11","12","13","14","15","16","17","18","19","20","21","22","23","24","25","26","27","28","29","30"," ","З","ПП","П","Н","Відсутність, дн."]
[null,null,{"$f":"IFERROR(VLOOKUP(Відвідуваністьзалистопад[[#This Row],[Код студента]],Перелікстудентів[],18,FALSE),\"\")","v":""},{"$nulls":31},{"$f":"COUNTIF(Відвідуваністьзалистопад[[#This Row],[1]:[ ]],Код1)","v":0},{"$f":"COUNTIF(Відвідуваністьзалистопад[[#This Row],[1]:[ ]],Код2)","v":0},{"$f":"COUNTIF(Відвідуваністьзалистопад[[#This Row],[1]:[ ]],Код3)","v":0},{"$f":"COUNTIF(Відвідуваністьзалистопад[[#This Row],[1]:[ ]],Код4)","v":0},{"$f":"SUM(Відвідуваністьзавересень[[#This Row],[ПП]:[П]])","v":0}]
[null,null,{"$f":"IFERROR(VLOOKUP(Відвідуваністьзалистопад[[#This Row],[Код студента]],Перелікстудентів[],18,FALSE),\"\")","v":""},{"$nulls":31},{"$f":"COUNTIF(Відвідуваністьзалистопад[[#This Row],[1]:[ ]],Код1)","v":0},{"$f":"COUNTIF(Відвідуваністьзалистопад[[#This Row],[1]:[ ]],Код2)","v":0},{"$f":"COUNTIF(Відвідуваністьзалистопад[[#This Row],[1]:[ ]],Код3)","v":0},{"$f":"COUNTIF(Відвідуваністьзалистопад[[#This Row],[1]:[ ]],Код4)","v":0},{"$f":"SUM(Відвідуваністьзавересень[[#This Row],[ПП]:[П]])","v":0}]
[null,null,{"$f":"IFERROR(VLOOKUP(Відвідуваністьзалистопад[[#This Row],[Код студента]],Перелікстудентів[],18,FALSE),\"\")","v":""},{"$nulls":31},{"$f":"COUNTIF(Відвідуваністьзалистопад[[#This Row],[1]:[ ]],Код1)","v":0},{"$f":"COUNTIF(Відвідуваністьзалистопад[[#This Row],[1]:[ ]],Код2)","v":0},{"$f":"COUNTIF(Відвідуваністьзалистопад[[#This Row],[1]:[ ]],Код3)","v":0},{"$f":"COUNTIF(Відвідуваністьзалистопад[[#This Row],[1]:[ ]],Код4)","v":0},{"$f":"SUM(Відвідуваністьзавересень[[#This Row],[ПП]:[П]])","v":0}]
[null,null,{"$f":"IFERROR(VLOOKUP(Відвідуваністьзалистопад[[#This Row],[Код студента]],Перелікстудентів[],18,FALSE),\"\")","v":""},{"$nulls":31},{"$f":"COUNTIF(Відвідуваністьзалистопад[[#This Row],[1]:[ ]],Код1)","v":0},{"$f":"COUNTIF(Відвідуваністьзалистопад[[#This Row],[1]:[ ]],Код2)","v":0},{"$f":"COUNTIF(Відвідуваністьзалистопад[[#This Row],[1]:[ ]],Код3)","v":0},{"$f":"COUNTIF(Відвідуваністьзалистопад[[#This Row],[1]:[ ]],Код4)","v":0},{"$f":"SUM(Відвідуваністьзавересень[[#This Row],[ПП]:[П]])","v":0}]
[null,null,{"$f":"IFERROR(VLOOKUP(Відвідуваністьзалистопад[[#This Row],[Код студента]],Перелікстудентів[],18,FALSE),\"\")","v":""},{"$nulls":31},{"$f":"COUNTIF(Відвідуваністьзалистопад[[#This Row],[1]:[ ]],Код1)","v":0},{"$f":"COUNTIF(Відвідуваністьзалистопад[[#This Row],[1]:[ ]],Код2)","v":0},{"$f":"COUNTIF(Відвідуваністьзалистопад[[#This Row],[1]:[ ]],Код3)","v":0},{"$f":"COUNTIF(Відвідуваністьзалистопад[[#This Row],[1]:[ ]],Код4)","v":0},{"$f":"SUM(Відвідуваністьзавересень[[#This Row],[ПП]:[П]])","v":0}]
[null,null,"Усього днів відсутній",{"$f":"COUNTIF(Відвідуваністьзалистопад[1],\"П\")+COUNTIF(Відвідуваністьзалистопад[1],\"ПП\")","v":0},{"$f":"COUNTIF(Відвідуваністьзалистопад[2],\"П\")+COUNTIF(Відвідуваністьзалистопад[2],\"ПП\")","v":0},{"$f":"COUNTIF(Відвідуваністьзалистопад[3],\"П\")+COUNTIF(Відвідуваністьзалистопад[3],\"ПП\")","v":0},{"$f":"COUNTIF(Відвідуваністьзалистопад[4],\"П\")+COUNTIF(Відвідуваністьзалистопад[4],\"ПП\")","v":0},{"$f":"COUNTIF(Відвідуваністьзалистопад[5],\"П\")+COUNTIF(Відвідуваністьзалистопад[5],\"ПП\")","v":0},{"$f":"COUNTIF(Відвідуваністьзалистопад[6],\"П\")+COUNTIF(Відвідуваністьзалистопад[6],\"ПП\")","v":0},{"$f":"COUNTIF(Відвідуваністьзалистопад[7],\"П\")+COUNTIF(Відвідуваністьзалистопад[7],\"ПП\")","v":0},{"$f":"COUNTIF(Відвідуваністьзалистопад[8],\"П\")+COUNTIF(Відвідуваністьзалистопад[8],\"ПП\")","v":0},{"$f":"COUNTIF(Відвідуваністьзалистопад[9],\"П\")+COUNTIF(Відвідуваністьзалистопад[9],\"ПП\")","v":0},{"$f":"COUNTIF(Відвідуваністьзалистопад[10],\"П\")+COUNTIF(Відвідуваністьзалистопад[10],\"ПП\")","v":0},{"$f":"COUNTIF(Відвідуваністьзалистопад[11],\"П\")+COUNTIF(Відвідуваністьзалистопад[11],\"ПП\")","v":0},{"$f":"COUNTIF(Відвідуваністьзалистопад[12],\"П\")+COUNTIF(Відвідуваністьзалистопад[12],\"ПП\")","v":0},{"$f":"COUNTIF(Відвідуваністьзалистопад[13],\"П\")+COUNTIF(Відвідуваністьзалистопад[13],\"ПП\")","v":0},{"$f":"COUNTIF(Відвідуваністьзалистопад[14],\"П\")+COUNTIF(Відвідуваністьзалистопад[14],\"ПП\")","v":0},{"$f":"COUNTIF(Відвідуваністьзалистопад[15],\"П\")+COUNTIF(Відвідуваністьзалистопад[15],\"ПП\")","v":0},{"$f":"COUNTIF(Відвідуваністьзалистопад[16],\"П\")+COUNTIF(Відвідуваністьзалистопад[16],\"ПП\")","v":0},{"$f":"COUNTIF(Відвідуваністьзалистопад[17],\"П\")+COUNTIF(Відвідуваністьзалистопад[17],\"ПП\")","v":0},{"$f":"COUNTIF(Відвідуваністьзалистопад[18],\"П\")+COUNTIF(Відвідуваністьзалистопад[18],\"ПП\")","v":0},{"$f":"COUNTIF(Відвідуваністьзалистопад[19],\"П\")+COUNTIF(Відвідуваністьзалистопад[19],\"ПП\")","v":0},{"$f":"COUNTIF(Відвідуваністьзалистопад[20],\"П\")+COUNTIF(Відвідуваністьзалистопад[20],\"ПП\")","v":0},{"$f":"COUNTIF(Відвідуваністьзалистопад[21],\"П\")+COUNTIF(Відвідуваністьзалистопад[21],\"ПП\")","v":0},{"$f":"COUNTIF(Відвідуваністьзалистопад[22],\"П\")+COUNTIF(Відвідуваністьзалистопад[22],\"ПП\")","v":0},{"$f":"COUNTIF(Відвідуваністьзалистопад[23],\"П\")+COUNTIF(Відвідуваністьзалистопад[23],\"ПП\")","v":0},{"$f":"COUNTIF(Відвідуваністьзалистопад[24],\"П\")+COUNTIF(Відвідуваністьзалистопад[24],\"ПП\")","v":0},{"$f":"COUNTIF(Відвідуваністьзалистопад[25],\"П\")+COUNTIF(Відвідуваністьзалистопад[25],\"ПП\")","v":0},{"$f":"COUNTIF(Відвідуваністьзалистопад[26],\"П\")+COUNTIF(Відвідуваністьзалистопад[26],\"ПП\")","v":0},{"$f":"COUNTIF(Відвідуваністьзалистопад[27],\"П\")+COUNTIF(Відвідуваністьзалистопад[27],\"ПП\")","v":0},{"$f":"COUNTIF(Відвідуваністьзалистопад[28],\"П\")+COUNTIF(Відвідуваністьзалистопад[28],\"ПП\")","v":0},{"$f":"COUNTIF(Відвідуваністьзалистопад[29],\"П\")+COUNTIF(Відвідуваністьзалистопад[29],\"ПП\")","v":0},{"$f":"COUNTIF(Відвідуваністьзалистопад[30],\"П\")+COUNTIF(Відвідуваністьзалистопад[30],\"ПП\")","v":0},{"$f":"COUNTIF(Відвідуваністьзалистопад[[ ]],\"П\")+COUNTIF(Відвідуваністьзалистопад[[ ]],\"ПП\")","v":0},{"$f":"SUBTOTAL(109,Відвідуваністьзалистопад[З])","v":0},{"$f":"SUBTOTAL(109,Відвідуваністьзалистопад[ПП])","v":0},{"$f":"SUBTOTAL(109,Відвідуваністьзалистопад[П])","v":0},{"$f":"SUBTOTAL(109,Відвідуваністьзалистопад[Н])","v":0},{"$f":"SUBTOTAL(109,Відвідуваністьзалистопад[Відсутність, дн.])","v":0}]

{"sheet":"Грудень","index":6,"n_rows":12,"n_cols":39,"rows_kept":12,"merged":[[4,34,4,38]]}
["ОБЛІК ВІДВІДУВАННЯ ЗАНЯТЬ СТУДЕНТАМИ",{"$nulls":36},"Початок шкільного року:",{"$f":"Календарнийрік","v":2012}]
[]
[null,null,{"$f":"Текстпоясненьдокольорів","v":"ПОЯСНЕННЯ ДО КОЛЬОРІВ"},{"$f":"Код1","v":"З"},{"$f":"Код1текст","v":"Запізнення"},null,null,{"$f":"Код2","v":"ПП"},{"$f":"Код2текст","v":"Поважна причина"},{"$nulls":3},{"$f":"Код3","v":"П"},{"$f":"Код3текст","v":"Прогул"},null,null,{"$f":"Код4","v":"Н"},{"$f":"Код4текст","v":"На місці"},null,null,{"$f":"Код5","v":"В"},{"$f":"Код5текст","v":"Вихідний"}]
[]
[null,{"$f":"DATE(Календарнийрік,12,1)","v":"2012-12-01"},null,{"$f":"TEXT(WEEKDAY(DATE(Календарнийрік,12,1),1),\"aaa\")","v":"Сб"},{"$f":"TEXT(WEEKDAY(DATE(Календарнийрік,12,2),1),\"aaa\")","v":"Нд"},{"$f":"TEXT(WEEKDAY(DATE(Календарнийрік,12,3),1),\"aaa\")","v":"Пн"},{"$f":"TEXT(WEEKDAY(DATE(Календарнийрік,12,4),1),\"aaa\")","v":"Вт"},{"$f":"TEXT(WEEKDAY(DATE(Календарнийрік,12,5),1),\"aaa\")","v":"Ср"},{"$f":"TEXT(WEEKDAY(DATE(Календарнийрік,12,6),1),\"aaa\")","v":"Чт"},{"$f":"TEXT(WEEKDAY(DATE(Календарнийрік,12,7),1),\"aaa\")","v":"Пт"},{"$f":"TEXT(WEEKDAY(DATE(Календарнийрік,12,8),1),\"aaa\")","v":"Сб"},{"$f":"TEXT(WEEKDAY(DATE(Календарнийрік,12,9),1),\"aaa\")","v":"Нд"},{"$f":"TEXT(WEEKDAY(DATE(Календарнийрік,12,10),1),\"aaa\")","v":"Пн"},{"$f":"TEXT(WEEKDAY(DATE(Календарнийрік,12,11),1),\"aaa\")","v":"Вт"},{"$f":"TEXT(WEEKDAY(DATE(Календарнийрік,12,12),1),\"aaa\")","v":"Ср"},{"$f":"TEXT(WEEKDAY(DATE(Календарнийрік,12,13),1),\"aaa\")","v":"Чт"},{"$f":"TEXT(WEEKDAY(DATE(Календарнийрік,12,14),1),\"aaa\")","v":"Пт"},{"$f":"TEXT(WEEKDAY(DATE(Календарнийрік,12,15),1),\"aaa\")","v":"Сб"},{"$f":"TEXT(WEEKDAY(DATE(Календарнийрік,12,16),1),\"aaa\")","v":"Нд"},{"$f":"TEXT(WEEKDAY(DATE(Календарнийрік,12,17),1),\"aaa\")","v":"Пн"},{"$f":"TEXT(WEEKDAY(DATE(Календарнийрік,12,18),1),\"aaa\")","v":"Вт"},{"$f":"TEXT(WEEKDAY(DATE(Календарнийрік,12,19),1),\"aaa\")","v":"Ср"},{"$f":"TEXT(WEEKDAY(DATE(Календарнийрік,12,20),1),\"aaa\")","v":"Чт"},{"$f":"TEXT(WEEKDAY(DATE(Календарнийрік,12,21),1),\"aaa\")","v":"Пт"},{"$f":"TEXT(WEEKDAY(DATE(Календарнийрік,12,22),1),\"aaa\")","v":"Сб"},{"$f":"TEXT(WEEKDAY(DATE(Календарнийрік,12,23),1),\"aaa\")","v":"Нд"},{"$f":"TEXT(WEEKDAY(DATE(Календарнийрік,12,24),1),\"aaa\")","v":"Пн"},{"$f":"TEXT(WEEKDAY(DATE(Календарнийрік,12,25),1),\"aaa\")","v":"Вт"},{"$f":"TEXT(WEEKDAY(DATE(Календарнийрік,12,26),1),\"aaa\")","v":"Ср"},{"$f":"TEXT(WEEKDAY(DATE(Календарнийрік,12,27),1),\"aaa\")","v":"Чт"},{"$f":"TEXT(WEEKDAY(DATE(Календарнийрік,12,28),1),\"aaa\")","v":"Пт"},{"$f":"TEXT(WEEKDAY(DATE(Календарнийрік,12,29),1),\"aaa\")","v":"Сб"},{"$f":"TEXT(WEEKDAY(DATE(Календарнийрік,12,30),1),\"aaa\")","v":"Нд"},{"$f":"TEXT(WEEKDAY(DATE(Календарнийрік,12,31),1),\"aaa\")","v":"Пн"},"Усього"]
[null,"Код студента","Ім’я студента","1","2","3","4","5","6","7","8","9","10","11","12","13","14","15","16","17","18","19","20","21","22","23","24","25","26","27","28","29","30","31","З","ПП","П","Н","Відсутність, дн."]
[null,null,{"$f":"IFERROR(VLOOKUP(Відвідуваністьзагрудень[[#This Row],[Код студента]],Перелікстудентів[],18,FALSE),\"\")","v":""},{"$nulls":31},{"$f":"COUNTIF(Відвідуваністьзагрудень[[#This Row],[1]:[31]],Код1)","v":0},{"$f":"COUNTIF(Відвідуваністьзагрудень[[#This Row],[1]:[31]],Код2)","v":0},{"$f":"COUNTIF(Відвідуваністьзагрудень[[#This Row],[1]:[31]],Код3)","v":0},{"$f":"COUNTIF(Відвідуваністьзагрудень[[#This Row],[1]:[31]],Код4)","v":0},{"$f":"SUM(Відвідуваністьзавересень[[#This Row],[ПП]:[П]])","v":0}]
[null,null,{"$f":"IFERROR(VLOOKUP(Відвідуваністьзагрудень[[#This Row],[Код студента]],Перелікстудентів[],18,FALSE),\"\")","v":""},{"$nulls":31},{"$f":"COUNTIF(Відвідуваністьзагрудень[[#This Row],[1]:[31]],Код1)","v":0},{"$f":"COUNTIF(Відвідуваністьзагрудень[[#This Row],[1]:[31]],Код2)","v":0},{"$f":"COUNTIF(Відвідуваністьзагрудень[[#This Row],[1]:[31]],Код3)","v":0},{"$f":"COUNTIF(Відвідуваністьзагрудень[[#This Row],[1]:[31]],Код4)","v":0},{"$f":"SUM(Відвідуваністьзавересень[[#This Row],[ПП]:[П]])","v":0}]
[null,null,{"$f":"IFERROR(VLOOKUP(Відвідуваністьзагрудень[[#This Row],[Код студента]],Перелікстудентів[],18,FALSE),\"\")","v":""},{"$nulls":31},{"$f":"COUNTIF(Відвідуваністьзагрудень[[#This Row],[1]:[31]],Код1)","v":0},{"$f":"COUNTIF(Відвідуваністьзагрудень[[#This Row],[1]:[31]],Код2)","v":0},{"$f":"COUNTIF(Відвідуваністьзагрудень[[#This Row],[1]:[31]],Код3)","v":0},{"$f":"COUNTIF(Відвідуваністьзагрудень[[#This Row],[1]:[31]],Код4)","v":0},{"$f":"SUM(Відвідуваністьзавересень[[#This Row],[ПП]:[П]])","v":0}]
[null,null,{"$f":"IFERROR(VLOOKUP(Відвідуваністьзагрудень[[#This Row],[Код студента]],Перелікстудентів[],18,FALSE),\"\")","v":""},{"$nulls":31},{"$f":"COUNTIF(Відвідуваністьзагрудень[[#This Row],[1]:[31]],Код1)","v":0},{"$f":"COUNTIF(Відвідуваністьзагрудень[[#This Row],[1]:[31]],Код2)","v":0},{"$f":"COUNTIF(Відвідуваністьзагрудень[[#This Row],[1]:[31]],Код3)","v":0},{"$f":"COUNTIF(Відвідуваністьзагрудень[[#This Row],[1]:[31]],Код4)","v":0},{"$f":"SUM(Відвідуваністьзавересень[[#This Row],[ПП]:[П]])","v":0}]
[null,null,{"$f":"IFERROR(VLOOKUP(Відвідуваністьзагрудень[[#This Row],[Код студента]],Перелікстудентів[],18,FALSE),\"\")","v":""},{"$nulls":31},{"$f":"COUNTIF(Відвідуваністьзагрудень[[#This Row],[1]:[31]],Код1)","v":0},{"$f":"COUNTIF(Відвідуваністьзагрудень[[#This Row],[1]:[31]],Код2)","v":0},{"$f":"COUNTIF(Відвідуваністьзагрудень[[#This Row],[1]:[31]],Код3)","v":0},{"$f":"COUNTIF(Відвідуваністьзагрудень[[#This Row],[1]:[31]],Код4)","v":0},{"$f":"SUM(Відвідуваністьзавересень[[#This Row],[ПП]:[П]])","v":0}]
[null,null,"Усього днів відсутній",{"$f":"COUNTIF(Відвідуваністьзагрудень[1],\"П\")+COUNTIF(Відвідуваністьзагрудень[1],\"ПП\")","v":0},{"$f":"COUNTIF(Відвідуваністьзагрудень[2],\"П\")+COUNTIF(Відвідуваністьзагрудень[2],\"ПП\")","v":0},{"$f":"COUNTIF(Відвідуваністьзагрудень[3],\"П\")+COUNTIF(Відвідуваністьзагрудень[3],\"ПП\")","v":0},{"$f":"COUNTIF(Відвідуваністьзагрудень[4],\"П\")+COUNTIF(Відвідуваністьзагрудень[4],\"ПП\")","v":0},{"$f":"COUNTIF(Відвідуваністьзагрудень[5],\"П\")+COUNTIF(Відвідуваністьзагрудень[5],\"ПП\")","v":0},{"$f":"COUNTIF(Відвідуваністьзагрудень[6],\"П\")+COUNTIF(Відвідуваністьзагрудень[6],\"ПП\")","v":0},{"$f":"COUNTIF(Відвідуваністьзагрудень[7],\"П\")+COUNTIF(Відвідуваністьзагрудень[7],\"ПП\")","v":0},{"$f":"COUNTIF(Відвідуваністьзагрудень[8],\"П\")+COUNTIF(Відвідуваністьзагрудень[8],\"ПП\")","v":0},{"$f":"COUNTIF(Відвідуваністьзагрудень[9],\"П\")+COUNTIF(Відвідуваністьзагрудень[9],\"ПП\")","v":0},{"$f":"COUNTIF(Відвідуваністьзагрудень[10],\"П\")+COUNTIF(Відвідуваністьзагрудень[10],\"ПП\")","v":0},{"$f":"COUNTIF(Відвідуваністьзагрудень[11],\"П\")+COUNTIF(Відвідуваністьзагрудень[11],\"ПП\")","v":0},{"$f":"COUNTIF(Відвідуваністьзагрудень[12],\"П\")+COUNTIF(Відвідуваністьзагрудень[12],\"ПП\")","v":0},{"$f":"COUNTIF(Відвідуваністьзагрудень[13],\"П\")+COUNTIF(Відвідуваністьзагрудень[13],\"ПП\")","v":0},{"$f":"COUNTIF(Відвідуваністьзагрудень[14],\"П\")+COUNTIF(Відвідуваністьзагрудень[14],\"ПП\")","v":0},{"$f":"COUNTIF(Відвідуваністьзагрудень[15],\"П\")+COUNTIF(Відвідуваністьзагрудень[15],\"ПП\")","v":0},{"$f":"COUNTIF(Відвідуваністьзагрудень[16],\"П\")+COUNTIF(Відвідуваністьзагрудень[16],\"ПП\")","v":0},{"$f":"COUNTIF(Відвідуваністьзагрудень[17],\"П\")+COUNTIF(Відвідуваністьзагрудень[17],\"ПП\")","v":0},{"$f":"COUNTIF(Відвідуваністьзагрудень[18],\"П\")+COUNTIF(Відвідуваністьзагрудень[18],\"ПП\")","v":0},{"$f":"COUNTIF(Відвідуваністьзагрудень[19],\"П\")+COUNTIF(Відвідуваністьзагрудень[19],\"ПП\")","v":0},{"$f":"COUNTIF(Відвідуваністьзагрудень[20],\"П\")+COUNTIF(Відвідуваністьзагрудень[20],\"ПП\")","v":0},{"$f":"COUNTIF(Відвідуваністьзагрудень[21],\"П\")+COUNTIF(Відвідуваністьзагрудень[21],\"ПП\")","v":0},{"$f":"COUNTIF(Відвідуваністьзагрудень[22],\"П\")+COUNTIF(Відвідуваністьзагрудень[22],\"ПП\")","v":0},{"$f":"COUNTIF(Відвідуваністьзагрудень[23],\"П\")+COUNTIF(Відвідуваністьзагрудень[23],\"ПП\")","v":0},{"$f":"COUNTIF(Відвідуваністьзагрудень[24],\"П\")+COUNTIF(Відвідуваністьзагрудень[24],\"ПП\")","v":0},{"$f":"COUNTIF(Відвідуваністьзагрудень[25],\"П\")+COUNTIF(Відвідуваністьзагрудень[25],\"ПП\")","v":0},{"$f":"COUNTIF(Відвідуваністьзагрудень[26],\"П\")+COUNTIF(Відвідуваністьзагрудень[26],\"ПП\")","v":0},{"$f":"COUNTIF(Відвідуваністьзагрудень[27],\"П\")+COUNTIF(Відвідуваністьзагрудень[27],\"ПП\")","v":0},{"$f":"COUNTIF(Відвідуваністьзагрудень[28],\"П\")+COUNTIF(Відвідуваністьзагрудень[28],\"ПП\")","v":0},{"$f":"COUNTIF(Відвідуваністьзагрудень[29],\"П\")+COUNTIF(Відвідуваністьзагрудень[29],\"ПП\")","v":0},{"$f":"COUNTIF(Відвідуваністьзагрудень[30],\"П\")+COUNTIF(Відвідуваністьзагрудень[30],\"ПП\")","v":0},{"$f":"COUNTIF(Відвідуваністьзагрудень[31],\"П\")+COUNTIF(Відвідуваністьзагрудень[31],\"ПП\")","v":0},{"$f":"SUBTOTAL(109,Відвідуваністьзагрудень[З])","v":0},{"$f":"SUBTOTAL(109,Відвідуваністьзагрудень[ПП])","v":0},{"$f":"SUBTOTAL(109,Відвідуваністьзагрудень[П])","v":0},{"$f":"SUBTOTAL(109,Відвідуваністьзагрудень[Н])","v":0},{"$f":"SUBTOTAL(109,Відвідуваністьзагрудень[Відсутність, дн.])","v":0}]

{"sheet":"Січень","index":7,"n_rows":12,"n_cols":39,"rows_kept":12,"merged":[[4,34,4,38]]}
["ОБЛІК ВІДВІДУВАННЯ ЗАНЯТЬ СТУДЕНТАМИ",{"$nulls":36},"Початок шкільного року:",{"$f":"Календарнийрік","v":2012}]
[]
[null,null,{"$f":"Текстпоясненьдокольорів","v":"ПОЯСНЕННЯ ДО КОЛЬОРІВ"},{"$f":"Код1","v":"З"},{"$f":"Код1текст","v":"Запізнення"},null,null,{"$f":"Код2","v":"ПП"},{"$f":"Код2текст","v":"Поважна причина"},{"$nulls":3},{"$f":"Код3","v":"П"},{"$f":"Код3текст","v":"Прогул"},null,null,{"$f":"Код4","v":"Н"},{"$f":"Код4текст","v":"На місці"},null,null,{"$f":"Код5","v":"В"},{"$f":"Код5текст","v":"Вихідний"}]
[]
[null,{"$f":"DATE(Календарнийрік+1,1,1)","v":"2013-01-01"},null,{"$f":"TEXT(WEEKDAY(DATE(Календарнийрік+1,1,1),1),\"aaa\")","v":"Вт"},{"$f":"TEXT(WEEKDAY(DATE(Календарнийрік+1,1,2),1),\"aaa\")","v":"Ср"},{"$f":"TEXT(WEEKDAY(DATE(Календарнийрік+1,1,3),1),\"aaa\")","v":"Чт"},{"$f":"TEXT(WEEKDAY(DATE(Календарнийрік+1,1,4),1),\"aaa\")","v":"Пт"},{"$f":"TEXT(WEEKDAY(DATE(Календарнийрік+1,1,5),1),\"aaa\")","v":"Сб"},{"$f":"TEXT(WEEKDAY(DATE(Календарнийрік+1,1,6),1),\"aaa\")","v":"Нд"},{"$f":"TEXT(WEEKDAY(DATE(Календарнийрік+1,1,7),1),\"aaa\")","v":"Пн"},{"$f":"TEXT(WEEKDAY(DATE(Календарнийрік+1,1,8),1),\"aaa\")","v":"Вт"},{"$f":"TEXT(WEEKDAY(DATE(Календарнийрік+1,1,9),1),\"aaa\")","v":"Ср"},{"$f":"TEXT(WEEKDAY(DATE(Календарнийрік+1,1,10),1),\"aaa\")","v":"Чт"},{"$f":"TEXT(WEEKDAY(DATE(Календарнийрік+1,1,11),1),\"aaa\")","v":"Пт"},{"$f":"TEXT(WEEKDAY(DATE(Календарнийрік+1,1,12),1),\"aaa\")","v":"Сб"},{"$f":"TEXT(WEEKDAY(DATE(Календарнийрік+1,1,13),1),\"aaa\")","v":"Нд"},{"$f":"TEXT(WEEKDAY(DATE(Календарнийрік+1,1,14),1),\"aaa\")","v":"Пн"},{"$f":"TEXT(WEEKDAY(DATE(Календарнийрік+1,1,15),1),\"aaa\")","v":"Вт"},{"$f":"TEXT(WEEKDAY(DATE(Календарнийрік+1,1,16),1),\"aaa\")","v":"Ср"},{"$f":"TEXT(WEEKDAY(DATE(Календарнийрік+1,1,17),1),\"aaa\")","v":"Чт"},{"$f":"TEXT(WEEKDAY(DATE(Календарнийрік+1,1,18),1),\"aaa\")","v":"Пт"},{"$f":"TEXT(WEEKDAY(DATE(Календарнийрік+1,1,19),1),\"aaa\")","v":"Сб"},{"$f":"TEXT(WEEKDAY(DATE(Календарнийрік+1,1,20),1),\"aaa\")","v":"Нд"},{"$f":"TEXT(WEEKDAY(DATE(Календарнийрік+1,1,21),1),\"aaa\")","v":"Пн"},{"$f":"TEXT(WEEKDAY(DATE(Календарнийрік+1,1,22),1),\"aaa\")","v":"Вт"},{"$f":"TEXT(WEEKDAY(DATE(Календарнийрік+1,1,23),1),\"aaa\")","v":"Ср"},{"$f":"TEXT(WEEKDAY(DATE(Календарнийрік+1,1,24),1),\"aaa\")","v":"Чт"},{"$f":"TEXT(WEEKDAY(DATE(Календарнийрік+1,1,25),1),\"aaa\")","v":"Пт"},{"$f":"TEXT(WEEKDAY(DATE(Календарнийрік+1,1,26),1),\"aaa\")","v":"Сб"},{"$f":"TEXT(WEEKDAY(DATE(Календарнийрік+1,1,27),1),\"aaa\")","v":"Нд"},{"$f":"TEXT(WEEKDAY(DATE(Календарнийрік+1,1,28),1),\"aaa\")","v":"Пн"},{"$f":"TEXT(WEEKDAY(DATE(Календарнийрік+1,1,29),1),\"aaa\")","v":"Вт"},{"$f":"TEXT(WEEKDAY(DATE(Календарнийрік+1,1,30),1),\"aaa\")","v":"Ср"},{"$f":"TEXT(WEEKDAY(DATE(Календарнийрік+1,1,31),1),\"aaa\")","v":"Чт"},"Усього"]
[null,"Код студента","Ім’я студента","1","2","3","4","5","6","7","8","9","10","11","12","13","14","15","16","17","18","19","20","21","22","23","24","25","26","27","28","29","30","31","З","ПП","П","Н","Відсутність, дн."]
[null,null,{"$f":"IFERROR(VLOOKUP(Відвідуваністьзасічень[[#This Row],[Код студента]],Перелікстудентів[],18,FALSE),\"\")","v":""},{"$nulls":31},{"$f":"COUNTIF(Відвідуваністьзасічень[[#This Row],[1]:[31]],Код1)","v":0},{"$f":"COUNTIF(Відвідуваністьзасічень[[#This Row],[1]:[31]],Код2)","v":0},{"$f":"COUNTIF(Відвідуваністьзасічень[[#This Row],[1]:[31]],Код3)","v":0},{"$f":"COUNTIF(Відвідуваністьзасічень[[#This Row],[1]:[31]],Код4)","v":0},{"$f":"SUM(Відвідуваністьзавересень[[#This Row],[ПП]:[П]])","v":0}]
[null,null,{"$f":"IFERROR(VLOOKUP(Відвідуваністьзасічень[[#This Row],[Код студента]],Перелікстудентів[],18,FALSE),\"\")","v":""},{"$nulls":31},{"$f":"COUNTIF(Відвідуваністьзасічень[[#This Row],[1]:[31]],Код1)","v":0},{"$f":"COUNTIF(Відвідуваністьзасічень[[#This Row],[1]:[31]],Код2)","v":0},{"$f":"COUNTIF(Відвідуваністьзасічень[[#This Row],[1]:[31]],Код3)","v":0},{"$f":"COUNTIF(Відвідуваністьзасічень[[#This Row],[1]:[31]],Код4)","v":0},{"$f":"SUM(Відвідуваністьзавересень[[#This Row],[ПП]:[П]])","v":0}]
[null,null,{"$f":"IFERROR(VLOOKUP(Відвідуваністьзасічень[[#This Row],[Код студента]],Перелікстудентів[],18,FALSE),\"\")","v":""},{"$nulls":31},{"$f":"COUNTIF(Відвідуваністьзасічень[[#This Row],[1]:[31]],Код1)","v":0},{"$f":"COUNTIF(Відвідуваністьзасічень[[#This Row],[1]:[31]],Код2)","v":0},{"$f":"COUNTIF(Відвідуваністьзасічень[[#This Row],[1]:[31]],Код3)","v":0},{"$f":"COUNTIF(Відвідуваністьзасічень[[#This Row],[1]:[31]],Код4)","v":0},{"$f":"SUM(Відвідуваністьзавересень[[#This Row],[ПП]:[П]])","v":0}]
[null,null,{"$f":"IFERROR(VLOOKUP(Відвідуваністьзасічень[[#This Row],[Код студента]],Перелікстудентів[],18,FALSE),\"\")","v":""},{"$nulls":31},{"$f":"COUNTIF(Відвідуваністьзасічень[[#This Row],[1]:[31]],Код1)","v":0},{"$f":"COUNTIF(Відвідуваністьзасічень[[#This Row],[1]:[31]],Код2)","v":0},{"$f":"COUNTIF(Відвідуваністьзасічень[[#This Row],[1]:[31]],Код3)","v":0},{"$f":"COUNTIF(Відвідуваністьзасічень[[#This Row],[1]:[31]],Код4)","v":0},{"$f":"SUM(Відвідуваністьзавересень[[#This Row],[ПП]:[П]])","v":0}]
[null,null,{"$f":"IFERROR(VLOOKUP(Відвідуваністьзасічень[[#This Row],[Код студента]],Перелікстудентів[],18,FALSE),\"\")","v":""},{"$nulls":31},{"$f":"COUNTIF(Відвідуваністьзасічень[[#This Row],[1]:[31]],Код1)","v":0},{"$f":"COUNTIF(Відвідуваністьзасічень[[#This Row],[1]:[31]],Код2)","v":0},{"$f":"COUNTIF(Відвідуваністьзасічень[[#This Row],[1]:[31]],Код3)","v":0},{"$f":"COUNTIF(Відвідуваністьзасічень[[#This Row],[1]:[31]],Код4)","v":0},{"$f":"SUM(Відвідуваністьзавересень[[#This Row],[ПП]:[П]])","v":0}]
[null,null,"Усього днів відсутній",{"$f":"COUNTIF(Відвідуваністьзасічень[1],\"П\")+COUNTIF(Відвідуваністьзасічень[1],\"ПП\")","v":0},{"$f":"COUNTIF(Відвідуваністьзасічень[2],\"П\")+COUNTIF(Відвідуваністьзасічень[2],\"ПП\")","v":0},{"$f":"COUNTIF(Відвідуваністьзасічень[3],\"П\")+COUNTIF(Відвідуваністьзасічень[3],\"ПП\")","v":0},{"$f":"COUNTIF(Відвідуваністьзасічень[4],\"П\")+COUNTIF(Відвідуваністьзасічень[4],\"ПП\")","v":0},{"$f":"COUNTIF(Відвідуваністьзасічень[5],\"П\")+COUNTIF(Відвідуваністьзасічень[5],\"ПП\")","v":0},{"$f":"COUNTIF(Відвідуваністьзасічень[6],\"П\")+COUNTIF(Відвідуваністьзасічень[6],\"ПП\")","v":0},{"$f":"COUNTIF(Відвідуваністьзасічень[7],\"П\")+COUNTIF(Відвідуваністьзасічень[7],\"ПП\")","v":0},{"$f":"COUNTIF(Відвідуваністьзасічень[8],\"П\")+COUNTIF(Відвідуваністьзасічень[8],\"ПП\")","v":0},{"$f":"COUNTIF(Відвідуваністьзасічень[9],\"П\")+COUNTIF(Відвідуваністьзасічень[9],\"ПП\")","v":0},{"$f":"COUNTIF(Відвідуваністьзасічень[10],\"П\")+COUNTIF(Відвідуваністьзасічень[10],\"ПП\")","v":0},{"$f":"COUNTIF(Відвідуваністьзасічень[11],\"П\")+COUNTIF(Відвідуваністьзасічень[11],\"ПП\")","v":0},{"$f":"COUNTIF(Відвідуваністьзасічень[12],\"П\")+COUNTIF(Відвідуваністьзасічень[12],\"ПП\")","v":0},{"$f":"COUNTIF(Відвідуваністьзасічень[13],\"П\")+COUNTIF(Відвідуваністьзасічень[13],\"ПП\")","v":0},{"$f":"COUNTIF(Відвідуваністьзасічень[14],\"П\")+COUNTIF(Відвідуваністьзасічень[14],\"ПП\")","v":0},{"$f":"COUNTIF(Відвідуваністьзасічень[15],\"П\")+COUNTIF(Відвідуваністьзасічень[15],\"ПП\")","v":0},{"$f":"COUNTIF(Відвідуваністьзасічень[16],\"П\")+COUNTIF(Відвідуваністьзасічень[16],\"ПП\")","v":0},{"$f":"COUNTIF(Відвідуваністьзасічень[17],\"П\")+COUNTIF(Відвідуваністьзасічень[17],\"ПП\")","v":0},{"$f":"COUNTIF(Відвідуваністьзасічень[18],\"П\")+COUNTIF(Відвідуваністьзасічень[18],\"ПП\")","v":0},{"$f":"COUNTIF(Відвідуваністьзасічень[19],\"П\")+COUNTIF(Відвідуваністьзасічень[19],\"ПП\")","v":0},{"$f":"COUNTIF(Відвідуваністьзасічень[20],\"П\")+COUNTIF(Відвідуваністьзасічень[20],\"ПП\")","v":0},{"$f":"COUNTIF(Відвідуваністьзасічень[21],\"П\")+COUNTIF(Відвідуваністьзасічень[21],\"ПП\")","v":0},{"$f":"COUNTIF(Відвідуваністьзасічень[22],\"П\")+COUNTIF(Відвідуваністьзасічень[22],\"ПП\")","v":0},{"$f":"COUNTIF(Відвідуваністьзасічень[23],\"П\")+COUNTIF(Відвідуваністьзасічень[23],\"ПП\")","v":0},{"$f":"COUNTIF(Відвідуваністьзасічень[24],\"П\")+COUNTIF(Відвідуваністьзасічень[24],\"ПП\")","v":0},{"$f":"COUNTIF(Відвідуваністьзасічень[25],\"П\")+COUNTIF(Відвідуваністьзасічень[25],\"ПП\")","v":0},{"$f":"COUNTIF(Відвідуваністьзасічень[26],\"П\")+COUNTIF(Відвідуваністьзасічень[26],\"ПП\")","v":0},{"$f":"COUNTIF(Відвідуваністьзасічень[27],\"П\")+COUNTIF(Відвідуваністьзасічень[27],\"ПП\")","v":0},{"$f":"COUNTIF(Відвідуваністьзасічень[28],\"П\")+COUNTIF(Відвідуваністьзасічень[28],\"ПП\")","v":0},{"$f":"COUNTIF(Відвідуваністьзасічень[29],\"П\")+COUNTIF(Відвідуваністьзасічень[29],\"ПП\")","v":0},{"$f":"COUNTIF(Відвідуваністьзасічень[30],\"П\")+COUNTIF(Відвідуваністьзасічень[30],\"ПП\")","v":0},{"$f":"COUNTIF(Відвідуваністьзасічень[31],\"П\")+COUNTIF(Відвідуваністьзасічень[31],\"ПП\")","v":0},{"$f":"SUBTOTAL(109,Відвідуваністьзасічень[З])","v":0},{"$f":"SUBTOTAL(109,Відвідуваністьзасічень[ПП])","v":0},{"$f":"SUBTOTAL(109,Відвідуваністьзасічень[П])","v":0},{"$f":"SUBTOTAL(109,Відвідуваністьзасічень[Н])","v":0},{"$f":"SUBTOTAL(109,Відвідуваністьзасічень[Відсутність, дн.])","v":0}]

{"sheet":"Лютий","index":8,"n_rows":12,"n_cols":39,"rows_kept":12,"merged":[[4,34,4,38]]}
["ОБЛІК ВІДВІДУВАННЯ ЗАНЯТЬ СТУДЕНТАМИ",{"$nulls":36},"Початок шкільного року:",{"$f":"Календарнийрік","v":2012}]
[]
[null,null,{"$f":"Текстпоясненьдокольорів","v":"ПОЯСНЕННЯ ДО КОЛЬОРІВ"},{"$f":"Код1","v":"З"},{"$f":"Код1текст","v":"Запізнення"},null,null,{"$f":"Код2","v":"ПП"},{"$f":"Код2текст","v":"Поважна причина"},{"$nulls":3},{"$f":"Код3","v":"П"},{"$f":"Код3текст","v":"Прогул"},null,null,{"$f":"Код4","v":"Н"},{"$f":"Код4текст","v":"На місці"},null,null,{"$f":"Код5","v":"В"},{"$f":"Код5текст","v":"Вихідний"}]
[]
[null,{"$f":"DATE(Календарнийрік+1,2,1)","v":"2013-02-01"},null,{"$f":"TEXT(WEEKDAY(DATE(Календарнийрік+1,2,1),1),\"aaa\")","v":"Пт"},{"$f":"TEXT(WEEKDAY(DATE(Календарнийрік+1,2,2),1),\"aaa\")","v":"Сб"},{"$f":"TEXT(WEEKDAY(DATE(Календарнийрік+1,2,3),1),\"aaa\")","v":"Нд"},{"$f":"TEXT(WEEKDAY(DATE(Календарнийрік+1,2,4),1),\"aaa\")","v":"Пн"},{"$f":"TEXT(WEEKDAY(DATE(Календарнийрік+1,2,5),1),\"aaa\")","v":"Вт"},{"$f":"TEXT(WEEKDAY(DATE(Календарнийрік+1,2,6),1),\"aaa\")","v":"Ср"},{"$f":"TEXT(WEEKDAY(DATE(Календарнийрік+1,2,7),1),\"aaa\")","v":"Чт"},{"$f":"TEXT(WEEKDAY(DATE(Календарнийрік+1,2,8),1),\"aaa\")","v":"Пт"},{"$f":"TEXT(WEEKDAY(DATE(Календарнийрік+1,2,9),1),\"aaa\")","v":"Сб"},{"$f":"TEXT(WEEKDAY(DATE(Календарнийрік+1,2,10),1),\"aaa\")","v":"Нд"},{"$f":"TEXT(WEEKDAY(DATE(Календарнийрік+1,2,11),1),\"aaa\")","v":"Пн"},{"$f":"TEXT(WEEKDAY(DATE(Календарнийрік+1,2,12),1),\"aaa\")","v":"Вт"},{"$f":"TEXT(WEEKDAY(DATE(Календарнийрік+1,2,13),1),\"aaa\")","v":"Ср"},{"$f":"TEXT(WEEKDAY(DATE(Календарнийрік+1,2,14),1),\"aaa\")","v":"Чт"},{"$f":"TEXT(WEEKDAY(DATE(Календарнийрік+1,2,15),1),\"aaa\")","v":"Пт"},{"$f":"TEXT(WEEKDAY(DATE(Календарнийрік+1,2,16),1),\"aaa\")","v":"Сб"},{"$f":"TEXT(WEEKDAY(DATE(Календарнийрік+1,2,17),1),\"aaa\")","v":"Нд"},{"$f":"TEXT(WEEKDAY(DATE(Календарнийрік+1,2,18),1),\"aaa\")","v":"Пн"},{"$f":"TEXT(WEEKDAY(DATE(Календарнийрік+1,2,19),1),\"aaa\")","v":"Вт"},{"$f":"TEXT(WEEKDAY(DATE(Календарнийрік+1,2,20),1),\"aaa\")","v":"Ср"},{"$f":"TEXT(WEEKDAY(DATE(Календарнийрік+1,2,21),1),\"aaa\")","v":"Чт"},{"$f":"TEXT(WEEKDAY(DATE(Календарнийрік+1,2,22),1),\"aaa\")","v":"Пт"},{"$f":"TEXT(WEEKDAY(DATE(Календарнийрік+1,2,23),1),\"aaa\")","v":"Сб"},{"$f":"TEXT(WEEKDAY(DATE(Календарнийрік+1,2,24),1),\"aaa\")","v":"Нд"},{"$f":"TEXT(WEEKDAY(DATE(Календарнийрік+1,2,25),1),\"aaa\")","v":"Пн"},{"$f":"TEXT(WEEKDAY(DATE(Календарнийрік+1,2,26),1),\"aaa\")","v":"Вт"},{"$f":"TEXT(WEEKDAY(DATE(Календарнийрік+1,2,27),1),\"aaa\")","v":"Ср"},{"$f":"TEXT(WEEKDAY(DATE(Календарнийрік+1,2,28),1),\"aaa\")","v":"Чт"},{"$f":"TEXT(WEEKDAY(DATE(Календарнийрік+1,2,29),1),\"aaa\")","v":"Пт"},null,null,"Усього"]
[null,"Код студента","Ім’я студента","1","2","3","4","5","6","7","8","9","10","11","12","13","14","15","16","17","18","19","20","21","22","23","24","25","26","27","28","29","30","31","З","ПП","П","Н","Відсутність, дн."]
[null,null,{"$f":"IFERROR(VLOOKUP(Відвідуваністьзалютий[[#This Row],[Код студента]],Перелікстудентів[],18,FALSE),\"\")","v":""},{"$nulls":31},{"$f":"COUNTIF(Відвідуваністьзалютий[[#This Row],[1]:[31]],Код1)","v":0},{"$f":"COUNTIF(Відвідуваністьзалютий[[#This Row],[1]:[31]],Код2)","v":0},{"$f":"COUNTIF(Відвідуваністьзалютий[[#This Row],[1]:[31]],Код3)","v":0},{"$f":"COUNTIF(Відвідуваністьзалютий[[#This Row],[1]:[31]],Код4)","v":0},{"$f":"SUM(Відвідуваністьзавересень[[#This Row],[ПП]:[П]])","v":0}]
[null,null,{"$f":"IFERROR(VLOOKUP(Відвідуваністьзалютий[[#This Row],[Код студента]],Перелікстудентів[],18,FALSE),\"\")","v":""},{"$nulls":31},{"$f":"COUNTIF(Відвідуваністьзалютий[[#This Row],[1]:[31]],Код1)","v":0},{"$f":"COUNTIF(Відвідуваністьзалютий[[#This Row],[1]:[31]],Код2)","v":0},{"$f":"COUNTIF(Відвідуваністьзалютий[[#This Row],[1]:[31]],Код3)","v":0},{"$f":"COUNTIF(Відвідуваністьзалютий[[#This Row],[1]:[31]],Код4)","v":0},{"$f":"SUM(Відвідуваністьзавересень[[#This Row],[ПП]:[П]])","v":0}]
[null,null,{"$f":"IFERROR(VLOOKUP(Відвідуваністьзалютий[[#This Row],[Код студента]],Перелікстудентів[],18,FALSE),\"\")","v":""},{"$nulls":31},{"$f":"COUNTIF(Відвідуваністьзалютий[[#This Row],[1]:[31]],Код1)","v":0},{"$f":"COUNTIF(Відвідуваністьзалютий[[#This Row],[1]:[31]],Код2)","v":0},{"$f":"COUNTIF(Відвідуваністьзалютий[[#This Row],[1]:[31]],Код3)","v":0},{"$f":"COUNTIF(Відвідуваністьзалютий[[#This Row],[1]:[31]],Код4)","v":0},{"$f":"SUM(Відвідуваністьзавересень[[#This Row],[ПП]:[П]])","v":0}]
[null,null,{"$f":"IFERROR(VLOOKUP(Відвідуваністьзалютий[[#This Row],[Код студента]],Перелікстудентів[],18,FALSE),\"\")","v":""},{"$nulls":31},{"$f":"COUNTIF(Відвідуваністьзалютий[[#This Row],[1]:[31]],Код1)","v":0},{"$f":"COUNTIF(Відвідуваністьзалютий[[#This Row],[1]:[31]],Код2)","v":0},{"$f":"COUNTIF(Відвідуваністьзалютий[[#This Row],[1]:[31]],Код3)","v":0},{"$f":"COUNTIF(Відвідуваністьзалютий[[#This Row],[1]:[31]],Код4)","v":0},{"$f":"SUM(Відвідуваністьзавересень[[#This Row],[ПП]:[П]])","v":0}]
[null,null,{"$f":"IFERROR(VLOOKUP(Відвідуваністьзалютий[[#This Row],[Код студента]],Перелікстудентів[],18,FALSE),\"\")","v":""},{"$nulls":31},{"$f":"COUNTIF(Відвідуваністьзалютий[[#This Row],[1]:[31]],Код1)","v":0},{"$f":"COUNTIF(Відвідуваністьзалютий[[#This Row],[1]:[31]],Код2)","v":0},{"$f":"COUNTIF(Відвідуваністьзалютий[[#This Row],[1]:[31]],Код3)","v":0},{"$f":"COUNTIF(Відвідуваністьзалютий[[#This Row],[1]:[31]],Код4)","v":0},{"$f":"SUM(Відвідуваністьзавересень[[#This Row],[ПП]:[П]])","v":0}]
[null,null,"Усього днів відсутній",{"$f":"COUNTIF(Відвідуваністьзалютий[1],\"П\")+COUNTIF(Відвідуваністьзалютий[1],\"ПП\")","v":0},{"$f":"COUNTIF(Відвідуваністьзалютий[2],\"П\")+COUNTIF(Відвідуваністьзалютий[2],\"ПП\")","v":0},{"$f":"COUNTIF(Відвідуваністьзалютий[3],\"П\")+COUNTIF(Відвідуваністьзалютий[3],\"ПП\")","v":0},{"$f":"COUNTIF(Відвідуваністьзалютий[4],\"П\")+COUNTIF(Відвідуваністьзалютий[4],\"ПП\")","v":0},{"$f":"COUNTIF(Відвідуваністьзалютий[5],\"П\")+COUNTIF(Відвідуваністьзалютий[5],\"ПП\")","v":0},{"$f":"COUNTIF(Відвідуваністьзалютий[6],\"П\")+COUNTIF(Відвідуваністьзалютий[6],\"ПП\")","v":0},{"$f":"COUNTIF(Відвідуваністьзалютий[7],\"П\")+COUNTIF(Відвідуваністьзалютий[7],\"ПП\")","v":0},{"$f":"COUNTIF(Відвідуваністьзалютий[8],\"П\")+COUNTIF(Відвідуваністьзалютий[8],\"ПП\")","v":0},{"$f":"COUNTIF(Відвідуваністьзалютий[9],\"П\")+COUNTIF(Відвідуваністьзалютий[9],\"ПП\")","v":0},{"$f":"COUNTIF(Відвідуваністьзалютий[10],\"П\")+COUNTIF(Відвідуваністьзалютий[10],\"ПП\")","v":0},{"$f":"COUNTIF(Відвідуваністьзалютий[11],\"П\")+COUNTIF(Відвідуваністьзалютий[11],\"ПП\")","v":0},{"$f":"COUNTIF(Відвідуваністьзалютий[12],\"П\")+COUNTIF(Відвідуваністьзалютий[12],\"ПП\")","v":0},{"$f":"COUNTIF(Відвідуваністьзалютий[13],\"П\")+COUNTIF(Відвідуваністьзалютий[13],\"ПП\")","v":0},{"$f":"COUNTIF(Відвідуваністьзалютий[14],\"П\")+COUNTIF(Відвідуваністьзалютий[14],\"ПП\")","v":0},{"$f":"COUNTIF(Відвідуваністьзалютий[15],\"П\")+COUNTIF(Відвідуваністьзалютий[15],\"ПП\")","v":0},{"$f":"COUNTIF(Відвідуваністьзалютий[16],\"П\")+COUNTIF(Відвідуваністьзалютий[16],\"ПП\")","v":0},{"$f":"COUNTIF(Відвідуваністьзалютий[17],\"П\")+COUNTIF(Відвідуваністьзалютий[17],\"ПП\")","v":0},{"$f":"COUNTIF(Відвідуваністьзалютий[18],\"П\")+COUNTIF(Відвідуваністьзалютий[18],\"ПП\")","v":0},{"$f":"COUNTIF(Відвідуваністьзалютий[19],\"П\")+COUNTIF(Відвідуваністьзалютий[19],\"ПП\")","v":0},{"$f":"COUNTIF(Відвідуваністьзалютий[20],\"П\")+COUNTIF(Відвідуваністьзалютий[20],\"ПП\")","v":0},{"$f":"COUNTIF(Відвідуваністьзалютий[21],\"П\")+COUNTIF(Відвідуваністьзалютий[21],\"ПП\")","v":0},{"$f":"COUNTIF(Відвідуваністьзалютий[22],\"П\")+COUNTIF(Відвідуваністьзалютий[22],\"ПП\")","v":0},{"$f":"COUNTIF(Відвідуваністьзалютий[23],\"П\")+COUNTIF(Відвідуваністьзалютий[23],\"ПП\")","v":0},{"$f":"COUNTIF(Відвідуваністьзалютий[24],\"П\")+COUNTIF(Відвідуваністьзалютий[24],\"ПП\")","v":0},{"$f":"COUNTIF(Відвідуваністьзалютий[25],\"П\")+COUNTIF(Відвідуваністьзалютий[25],\"ПП\")","v":0},{"$f":"COUNTIF(Відвідуваністьзалютий[26],\"П\")+COUNTIF(Відвідуваністьзалютий[26],\"ПП\")","v":0},{"$f":"COUNTIF(Відвідуваністьзалютий[27],\"П\")+COUNTIF(Відвідуваністьзалютий[27],\"ПП\")","v":0},{"$f":"COUNTIF(Відвідуваністьзалютий[28],\"П\")+COUNTIF(Відвідуваністьзалютий[28],\"ПП\")","v":0},{"$f":"COUNTIF(Відвідуваністьзалютий[29],\"П\")+COUNTIF(Відвідуваністьзалютий[29],\"ПП\")","v":0},{"$f":"COUNTIF(Відвідуваністьзалютий[30],\"П\")+COUNTIF(Відвідуваністьзалютий[30],\"ПП\")","v":0},{"$f":"COUNTIF(Відвідуваністьзалютий[31],\"П\")+COUNTIF(Відвідуваністьзалютий[31],\"ПП\")","v":0},{"$f":"SUBTOTAL(109,Відвідуваністьзалютий[З])","v":0},{"$f":"SUBTOTAL(109,Відвідуваністьзалютий[ПП])","v":0},{"$f":"SUBTOTAL(109,Відвідуваністьзалютий[П])","v":0},{"$f":"SUBTOTAL(109,Відвідуваністьзалютий[Н])","v":0},{"$f":"SUBTOTAL(109,Відвідуваністьзалютий[Відсутність, дн.])","v":0}]

{"sheet":"Березень","index":9,"n_rows":12,"n_cols":39,"rows_kept":12,"merged":[[4,34,4,38]]}
["ОБЛІК ВІДВІДУВАННЯ ЗАНЯТЬ СТУДЕНТАМИ",{"$nulls":36},"Початок шкільного року:",{"$f":"Календарнийрік","v":2012}]
[]
[null,null,{"$f":"Текстпоясненьдокольорів","v":"ПОЯСНЕННЯ ДО КОЛЬОРІВ"},{"$f":"Код1","v":"З"},{"$f":"Код1текст","v":"Запізнення"},null,null,{"$f":"Код2","v":"ПП"},{"$f":"Код2текст","v":"Поважна причина"},{"$nulls":3},{"$f":"Код3","v":"П"},{"$f":"Код3текст","v":"Прогул"},null,null,{"$f":"Код4","v":"Н"},{"$f":"Код4текст","v":"На місці"},null,null,{"$f":"Код5","v":"В"},{"$f":"Код5текст","v":"Вихідний"}]
[]
[null,{"$f":"DATE(Календарнийрік+1,3,1)","v":"2013-03-01"},null,{"$f":"TEXT(WEEKDAY(DATE(Календарнийрік+1,3,1),1),\"aaa\")","v":"Пт"},{"$f":"TEXT(WEEKDAY(DATE(Календарнийрік+1,3,2),1),\"aaa\")","v":"Сб"},{"$f":"TEXT(WEEKDAY(DATE(Календарнийрік+1,3,3),1),\"aaa\")","v":"Нд"},{"$f":"TEXT(WEEKDAY(DATE(Календарнийрік+1,3,4),1),\"aaa\")","v":"Пн"},{"$f":"TEXT(WEEKDAY(DATE(Календарнийрік+1,3,5),1),\"aaa\")","v":"Вт"},{"$f":"TEXT(WEEKDAY(DATE(Календарнийрік+1,3,6),1),\"aaa\")","v":"Ср"},{"$f":"TEXT(WEEKDAY(DATE(Календарнийрік+1,3,7),1),\"aaa\")","v":"Чт"},{"$f":"TEXT(WEEKDAY(DATE(Календарнийрік+1,3,8),1),\"aaa\")","v":"Пт"},{"$f":"TEXT(WEEKDAY(DATE(Календарнийрік+1,3,9),1),\"aaa\")","v":"Сб"},{"$f":"TEXT(WEEKDAY(DATE(Календарнийрік+1,3,10),1),\"aaa\")","v":"Нд"},{"$f":"TEXT(WEEKDAY(DATE(Календарнийрік+1,3,11),1),\"aaa\")","v":"Пн"},{"$f":"TEXT(WEEKDAY(DATE(Календарнийрік+1,3,12),1),\"aaa\")","v":"Вт"},{"$f":"TEXT(WEEKDAY(DATE(Календарнийрік+1,3,13),1),\"aaa\")","v":"Ср"},{"$f":"TEXT(WEEKDAY(DATE(Календарнийрік+1,3,14),1),\"aaa\")","v":"Чт"},{"$f":"TEXT(WEEKDAY(DATE(Календарнийрік+1,3,15),1),\"aaa\")","v":"Пт"},{"$f":"TEXT(WEEKDAY(DATE(Календарнийрік+1,3,16),1),\"aaa\")","v":"Сб"},{"$f":"TEXT(WEEKDAY(DATE(Календарнийрік+1,3,17),1),\"aaa\")","v":"Нд"},{"$f":"TEXT(WEEKDAY(DATE(Календарнийрік+1,3,18),1),\"aaa\")","v":"Пн"},{"$f":"TEXT(WEEKDAY(DATE(Календарнийрік+1,3,19),1),\"aaa\")","v":"Вт"},{"$f":"TEXT(WEEKDAY(DATE(Календарнийрік+1,3,20),1),\"aaa\")","v":"Ср"},{"$f":"TEXT(WEEKDAY(DATE(Календарнийрік+1,3,21),1),\"aaa\")","v":"Чт"},{"$f":"TEXT(WEEKDAY(DATE(Календарнийрік+1,3,22),1),\"aaa\")","v":"Пт"},{"$f":"TEXT(WEEKDAY(DATE(Календарнийрік+1,3,23),1),\"aaa\")","v":"Сб"},{"$f":"TEXT(WEEKDAY(DATE(Календарнийрік+1,3,24),1),\"aaa\")","v":"Нд"},{"$f":"TEXT(WEEKDAY(DATE(Календарнийрік+1,3,25),1),\"aaa\")","v":"Пн"},{"$f":"TEXT(WEEKDAY(DATE(Календарнийрік+1,3,26),1),\"aaa\")","v":"Вт"},{"$f":"TEXT(WEEKDAY(DATE(Календарнийрік+1,3,27),1),\"aaa\")","v":"Ср"},{"$f":"TEXT(WEEKDAY(DATE(Календарнийрік+1,3,28),1),\"aaa\")","v":"Чт"},{"$f":"TEXT(WEEKDAY(DATE(Календарнийрік+1,3,29),1),\"aaa\")","v":"Пт"},{"$f":"TEXT(WEEKDAY(DATE(Календарнийрік+1,3,30),1),\"aaa\")","v":"Сб"},{"$f":"TEXT(WEEKDAY(DATE(Календарнийрік+1,3,31),1),\"aaa\")","v":"Нд"},"Усього"]
[null,"Код студента","Ім’я студента","1","2","3","4","5","6","7","8","9","10","11","12","13","14","15","16","17","18","19","20","21","22","23","24","25","26","27","28","29","30","31","З","ПП","П","Н","Відсутність, дн."]
[null,null,{"$f":"IFERROR(VLOOKUP(Відвідуваністьзаберезень[[#This Row],[Код студента]],Перелікстудентів[],18,FALSE),\"\")","v":""},{"$nulls":31},{"$f":"COUNTIF(Відвідуваністьзаберезень[[#This Row],[1]:[31]],Код1)","v":0},{"$f":"COUNTIF(Відвідуваністьзаберезень[[#This Row],[1]:[31]],Код2)","v":0},{"$f":"COUNTIF(Відвідуваністьзаберезень[[#This Row],[1]:[31]],Код3)","v":0},{"$f":"COUNTIF(Відвідуваністьзаберезень[[#This Row],[1]:[31]],Код4)","v":0},{"$f":"SUM(Відвідуваністьзавересень[[#This Row],[ПП]:[П]])","v":0}]
[null,null,{"$f":"IFERROR(VLOOKUP(Відвідуваністьзаберезень[[#This Row],[Код студента]],Перелікстудентів[],18,FALSE),\"\")","v":""},{"$nulls":31},{"$f":"COUNTIF(Відвідуваністьзаберезень[[#This Row],[1]:[31]],Код1)","v":0},{"$f":"COUNTIF(Відвідуваністьзаберезень[[#This Row],[1]:[31]],Код2)","v":0},{"$f":"COUNTIF(Відвідуваністьзаберезень[[#This Row],[1]:[31]],Код3)","v":0},{"$f":"COUNTIF(Відвідуваністьзаберезень[[#This Row],[1]:[31]],Код4)","v":0},{"$f":"SUM(Відвідуваністьзавересень[[#This Row],[ПП]:[П]])","v":0}]
[null,null,{"$f":"IFERROR(VLOOKUP(Відвідуваністьзаберезень[[#This Row],[Код студента]],Перелікстудентів[],18,FALSE),\"\")","v":""},{"$nulls":31},{"$f":"COUNTIF(Відвідуваністьзаберезень[[#This Row],[1]:[31]],Код1)","v":0},{"$f":"COUNTIF(Відвідуваністьзаберезень[[#This Row],[1]:[31]],Код2)","v":0},{"$f":"COUNTIF(Відвідуваністьзаберезень[[#This Row],[1]:[31]],Код3)","v":0},{"$f":"COUNTIF(Відвідуваністьзаберезень[[#This Row],[1]:[31]],Код4)","v":0},{"$f":"SUM(Відвідуваністьзавересень[[#This Row],[ПП]:[П]])","v":0}]
[null,null,{"$f":"IFERROR(VLOOKUP(Відвідуваністьзаберезень[[#This Row],[Код студента]],Перелікстудентів[],18,FALSE),\"\")","v":""},{"$nulls":31},{"$f":"COUNTIF(Відвідуваністьзаберезень[[#This Row],[1]:[31]],Код1)","v":0},{"$f":"COUNTIF(Відвідуваністьзаберезень[[#This Row],[1]:[31]],Код2)","v":0},{"$f":"COUNTIF(Відвідуваністьзаберезень[[#This Row],[1]:[31]],Код3)","v":0},{"$f":"COUNTIF(Відвідуваністьзаберезень[[#This Row],[1]:[31]],Код4)","v":0},{"$f":"SUM(Відвідуваністьзавересень[[#This Row],[ПП]:[П]])","v":0}]
[null,null,{"$f":"IFERROR(VLOOKUP(Відвідуваністьзаберезень[[#This Row],[Код студента]],Перелікстудентів[],18,FALSE),\"\")","v":""},{"$nulls":31},{"$f":"COUNTIF(Відвідуваністьзаберезень[[#This Row],[1]:[31]],Код1)","v":0},{"$f":"COUNTIF(Відвідуваністьзаберезень[[#This Row],[1]:[31]],Код2)","v":0},{"$f":"COUNTIF(Відвідуваністьзаберезень[[#This Row],[1]:[31]],Код3)","v":0},{"$f":"COUNTIF(Відвідуваністьзаберезень[[#This Row],[1]:[31]],Код4)","v":0},{"$f":"SUM(Відвідуваністьзавересень[[#This Row],[ПП]:[П]])","v":0}]
[null,null,"Усього днів відсутній",{"$f":"COUNTIF(Відвідуваністьзаберезень[1],\"П\")+COUNTIF(Відвідуваністьзаберезень[1],\"ПП\")","v":0},{"$f":"COUNTIF(Відвідуваністьзаберезень[2],\"П\")+COUNTIF(Відвідуваністьзаберезень[2],\"ПП\")","v":0},{"$f":"COUNTIF(Відвідуваністьзаберезень[3],\"П\")+COUNTIF(Відвідуваністьзаберезень[3],\"ПП\")","v":0},{"$f":"COUNTIF(Відвідуваністьзаберезень[4],\"П\")+COUNTIF(Відвідуваністьзаберезень[4],\"ПП\")","v":0},{"$f":"COUNTIF(Відвідуваністьзаберезень[5],\"П\")+COUNTIF(Відвідуваністьзаберезень[5],\"ПП\")","v":0},{"$f":"COUNTIF(Відвідуваністьзаберезень[6],\"П\")+COUNTIF(Відвідуваністьзаберезень[6],\"ПП\")","v":0},{"$f":"COUNTIF(Відвідуваністьзаберезень[7],\"П\")+COUNTIF(Відвідуваністьзаберезень[7],\"ПП\")","v":0},{"$f":"COUNTIF(Відвідуваністьзаберезень[8],\"П\")+COUNTIF(Відвідуваністьзаберезень[8],\"ПП\")","v":0},{"$f":"COUNTIF(Відвідуваністьзаберезень[9],\"П\")+COUNTIF(Відвідуваністьзаберезень[9],\"ПП\")","v":0},{"$f":"COUNTIF(Відвідуваністьзаберезень[10],\"П\")+COUNTIF(Відвідуваністьзаберезень[10],\"ПП\")","v":0},{"$f":"COUNTIF(Відвідуваністьзаберезень[11],\"П\")+COUNTIF(Відвідуваністьзаберезень[11],\"ПП\")","v":0},{"$f":"COUNTIF(Відвідуваністьзаберезень[12],\"П\")+COUNTIF(Відвідуваністьзаберезень[12],\"ПП\")","v":0},{"$f":"COUNTIF(Відвідуваністьзаберезень[13],\"П\")+COUNTIF(Відвідуваністьзаберезень[13],\"ПП\")","v":0},{"$f":"COUNTIF(Відвідуваністьзаберезень[14],\"П\")+COUNTIF(Відвідуваністьзаберезень[14],\"ПП\")","v":0},{"$f":"COUNTIF(Відвідуваністьзаберезень[15],\"П\")+COUNTIF(Відвідуваністьзаберезень[15],\"ПП\")","v":0},{"$f":"COUNTIF(Відвідуваністьзаберезень[16],\"П\")+COUNTIF(Відвідуваністьзаберезень[16],\"ПП\")","v":0},{"$f":"COUNTIF(Відвідуваністьзаберезень[17],\"П\")+COUNTIF(Відвідуваністьзаберезень[17],\"ПП\")","v":0},{"$f":"COUNTIF(Відвідуваністьзаберезень[18],\"П\")+COUNTIF(Відвідуваністьзаберезень[18],\"ПП\")","v":0},{"$f":"COUNTIF(Відвідуваністьзаберезень[19],\"П\")+COUNTIF(Відвідуваністьзаберезень[19],\"ПП\")","v":0},{"$f":"COUNTIF(Відвідуваністьзаберезень[20],\"П\")+COUNTIF(Відвідуваністьзаберезень[20],\"ПП\")","v":0},{"$f":"COUNTIF(Відвідуваністьзаберезень[21],\"П\")+COUNTIF(Відвідуваністьзаберезень[21],\"ПП\")","v":0},{"$f":"COUNTIF(Відвідуваністьзаберезень[22],\"П\")+COUNTIF(Відвідуваністьзаберезень[22],\"ПП\")","v":0},{"$f":"COUNTIF(Відвідуваністьзаберезень[23],\"П\")+COUNTIF(Відвідуваністьзаберезень[23],\"ПП\")","v":0},{"$f":"COUNTIF(Відвідуваністьзаберезень[24],\"П\")+COUNTIF(Відвідуваністьзаберезень[24],\"ПП\")","v":0},{"$f":"COUNTIF(Відвідуваністьзаберезень[25],\"П\")+COUNTIF(Відвідуваністьзаберезень[25],\"ПП\")","v":0},{"$f":"COUNTIF(Відвідуваністьзаберезень[26],\"П\")+COUNTIF(Відвідуваністьзаберезень[26],\"ПП\")","v":0},{"$f":"COUNTIF(Відвідуваністьзаберезень[27],\"П\")+COUNTIF(Відвідуваністьзаберезень[27],\"ПП\")","v":0},{"$f":"COUNTIF(Відвідуваністьзаберезень[28],\"П\")+COUNTIF(Відвідуваністьзаберезень[28],\"ПП\")","v":0},{"$f":"COUNTIF(Відвідуваністьзаберезень[29],\"П\")+COUNTIF(Відвідуваністьзаберезень[29],\"ПП\")","v":0},{"$f":"COUNTIF(Відвідуваністьзаберезень[30],\"П\")+COUNTIF(Відвідуваністьзаберезень[30],\"ПП\")","v":0},{"$f":"COUNTIF(Відвідуваністьзаберезень[31],\"П\")+COUNTIF(Відвідуваністьзаберезень[31],\"ПП\")","v":0},{"$f":"SUBTOTAL(109,Відвідуваністьзаберезень[З])","v":0},{"$f":"SUBTOTAL(109,Відвідуваністьзаберезень[ПП])","v":0},{"$f":"SUBTOTAL(109,Відвідуваністьзаберезень[П])","v":0},{"$f":"SUBTOTAL(109,Відвідуваністьзаберезень[Н])","v":0},{"$f":"SUBTOTAL(109,Відвідуваністьзаберезень[Відсутність, дн.])","v":0}]

{"sheet":"Квітень","index":10,"n_rows":12,"n_cols":39,"rows_kept":12,"merged":[[4,34,4,38]]}
["ОБЛІК ВІДВІДУВАННЯ ЗАНЯТЬ СТУДЕНТАМИ",{"$nulls":36},"Початок шкільного року:",{"$f":"Календарнийрік","v":2012}]
[]
[null,null,{"$f":"Текстпоясненьдокольорів","v":"ПОЯСНЕННЯ ДО КОЛЬОРІВ"},{"$f":"Код1","v":"З"},{"$f":"Код1текст","v":"Запізнення"},null,null,{"$f":"Код2","v":"ПП"},{"$f":"Код2текст","v":"Поважна причина"},{"$nulls":3},{"$f":"Код3","v":"П"},{"$f":"Код3текст","v":"Прогул"},null,null,{"$f":"Код4","v":"Н"},{"$f":"Код4текст","v":"На місці"},null,null,{"$f":"Код5","v":"В"},{"$f":"Код5текст","v":"Вихідний"}]
[]
[null,{"$f":"DATE(Календарнийрік+1,4,1)","v":"2013-04-01"},null,{"$f":"TEXT(WEEKDAY(DATE(Календарнийрік+1,4,1),1),\"aaa\")","v":"Пн"},{"$f":"TEXT(WEEKDAY(DATE(Календарнийрік+1,4,2),1),\"aaa\")","v":"Вт"},{"$f":"TEXT(WEEKDAY(DATE(Календарнийрік+1,4,3),1),\"aaa\")","v":"Ср"},{"$f":"TEXT(WEEKDAY(DATE(Календарнийрік+1,4,4),1),\"aaa\")","v":"Чт"},{"$f":"TEXT(WEEKDAY(DATE(Календарнийрік+1,4,5),1),\"aaa\")","v":"Пт"},{"$f":"TEXT(WEEKDAY(DATE(Календарнийрік+1,4,6),1),\"aaa\")","v":"Сб"},{"$f":"TEXT(WEEKDAY(DATE(Календарнийрік+1,4,7),1),\"aaa\")","v":"Нд"},{"$f":"TEXT(WEEKDAY(DATE(Календарнийрік+1,4,8),1),\"aaa\")","v":"Пн"},{"$f":"TEXT(WEEKDAY(DATE(Календарнийрік+1,4,9),1),\"aaa\")","v":"Вт"},{"$f":"TEXT(WEEKDAY(DATE(Календарнийрік+1,4,10),1),\"aaa\")","v":"Ср"},{"$f":"TEXT(WEEKDAY(DATE(Календарнийрік+1,4,11),1),\"aaa\")","v":"Чт"},{"$f":"TEXT(WEEKDAY(DATE(Календарнийрік+1,4,12),1),\"aaa\")","v":"Пт"},{"$f":"TEXT(WEEKDAY(DATE(Календарнийрік+1,4,13),1),\"aaa\")","v":"Сб"},{"$f":"TEXT(WEEKDAY(DATE(Календарнийрік+1,4,14),1),\"aaa\")","v":"Нд"},{"$f":"TEXT(WEEKDAY(DATE(Календарнийрік+1,4,15),1),\"aaa\")","v":"Пн"},{"$f":"TEXT(WEEKDAY(DATE(Календарнийрік+1,4,16),1),\"aaa\")","v":"Вт"},{"$f":"TEXT(WEEKDAY(DATE(Календарнийрік+1,4,17),1),\"aaa\")","v":"Ср"},{"$f":"TEXT(WEEKDAY(DATE(Календарнийрік+1,4,18),1),\"aaa\")","v":"Чт"},{"$f":"TEXT(WEEKDAY(DATE(Календарнийрік+1,4,19),1),\"aaa\")","v":"Пт"},{"$f":"TEXT(WEEKDAY(DATE(Календарнийрік+1,4,20),1),\"aaa\")","v":"Сб"},{"$f":"TEXT(WEEKDAY(DATE(Календарнийрік+1,4,21),1),\"aaa\")","v":"Нд"},{"$f":"TEXT(WEEKDAY(DATE(Календарнийрік+1,4,22),1),\"aaa\")","v":"Пн"},{"$f":"TEXT(WEEKDAY(DATE(Календарнийрік+1,4,23),1),\"aaa\")","v":"Вт"},{"$f":"TEXT(WEEKDAY(DATE(Календарнийрік+1,4,24),1),\"aaa\")","v":"Ср"},{"$f":"TEXT(WEEKDAY(DATE(Календарнийрік+1,4,25),1),\"aaa\")","v":"Чт"},{"$f":"TEXT(WEEKDAY(DATE(Календарнийрік+1,4,26),1),\"aaa\")","v":"Пт"},{"$f":"TEXT(WEEKDAY(DATE(Календарнийрік+1,4,27),1),\"aaa\")","v":"Сб"},{"$f":"TEXT(WEEKDAY(DATE(Календарнийрік+1,4,28),1),\"aaa\")","v":"Нд"},{"$f":"TEXT(WEEKDAY(DATE(Календарнийрік+1,4,29),1),\"aaa\")","v":"Пн"},{"$f":"TEXT(WEEKDAY(DATE(Календарнийрік+1,4,30),1),\"aaa\")","v":"Вт"},null,"Усього"]
[null,"Код студента","Ім’я студента","1","2","3","4","5","6","7","8","9","10","11","12","13","14","15","16","17","18","19","20","21","22","23","24","25","26","27","28","29","30"," ","З","ПП","П","Н","Відсутність, дн."]
[null,null,{"$f":"IFERROR(VLOOKUP(Відвідуваністьзаквітень[[#This Row],[Код студента]],Перелікстудентів[],18,FALSE),\"\")","v":""},{"$nulls":31},{"$f":"COUNTIF(Відвідуваністьзаквітень[[#This Row],[1]:[ ]],Код1)","v":0},{"$f":"COUNTIF(Відвідуваністьзаквітень[[#This Row],[1]:[ ]],Код2)","v":0},{"$f":"COUNTIF(Відвідуваністьзаквітень[[#This Row],[1]:[ ]],Код3)","v":0},{"$f":"COUNTIF(Відвідуваністьзаквітень[[#This Row],[1]:[ ]],Код4)","v":0},{"$f":"SUM(Відвідуваністьзавересень[[#This Row],[ПП]:[П]])","v":0}]
[null,null,{"$f":"IFERROR(VLOOKUP(Відвідуваністьзаквітень[[#This Row],[Код студента]],Перелікстудентів[],18,FALSE),\"\")","v":""},{"$nulls":31},{"$f":"COUNTIF(Відвідуваністьзаквітень[[#This Row],[1]:[ ]],Код1)","v":0},{"$f":"COUNTIF(Відвідуваністьзаквітень[[#This Row],[1]:[ ]],Код2)","v":0},{"$f":"COUNTIF(Відвідуваністьзаквітень[[#This Row],[1]:[ ]],Код3)","v":0},{"$f":"COUNTIF(Відвідуваністьзаквітень[[#This Row],[1]:[ ]],Код4)","v":0},{"$f":"SUM(Відвідуваністьзавересень[[#This Row],[ПП]:[П]])","v":0}]
[null,null,{"$f":"IFERROR(VLOOKUP(Відвідуваністьзаквітень[[#This Row],[Код студента]],Перелікстудентів[],18,FALSE),\"\")","v":""},{"$nulls":31},{"$f":"COUNTIF(Відвідуваністьзаквітень[[#This Row],[1]:[ ]],Код1)","v":0},{"$f":"COUNTIF(Відвідуваністьзаквітень[[#This Row],[1]:[ ]],Код2)","v":0},{"$f":"COUNTIF(Відвідуваністьзаквітень[[#This Row],[1]:[ ]],Код3)","v":0},{"$f":"COUNTIF(Відвідуваністьзаквітень[[#This Row],[1]:[ ]],Код4)","v":0},{"$f":"SUM(Відвідуваністьзавересень[[#This Row],[ПП]:[П]])","v":0}]
[null,null,{"$f":"IFERROR(VLOOKUP(Відвідуваністьзаквітень[[#This Row],[Код студента]],Перелікстудентів[],18,FALSE),\"\")","v":""},{"$nulls":31},{"$f":"COUNTIF(Відвідуваністьзаквітень[[#This Row],[1]:[ ]],Код1)","v":0},{"$f":"COUNTIF(Відвідуваністьзаквітень[[#This Row],[1]:[ ]],Код2)","v":0},{"$f":"COUNTIF(Відвідуваністьзаквітень[[#This Row],[1]:[ ]],Код3)","v":0},{"$f":"COUNTIF(Відвідуваністьзаквітень[[#This Row],[1]:[ ]],Код4)","v":0},{"$f":"SUM(Відвідуваністьзавересень[[#This Row],[ПП]:[П]])","v":0}]
[null,null,{"$f":"IFERROR(VLOOKUP(Відвідуваністьзаквітень[[#This Row],[Код студента]],Перелікстудентів[],18,FALSE),\"\")","v":""},{"$nulls":31},{"$f":"COUNTIF(Відвідуваністьзаквітень[[#This Row],[1]:[ ]],Код1)","v":0},{"$f":"COUNTIF(Відвідуваністьзаквітень[[#This Row],[1]:[ ]],Код2)","v":0},{"$f":"COUNTIF(Відвідуваністьзаквітень[[#This Row],[1]:[ ]],Код3)","v":0},{"$f":"COUNTIF(Відвідуваністьзаквітень[[#This Row],[1]:[ ]],Код4)","v":0},{"$f":"SUM(Відвідуваністьзавересень[[#This Row],[ПП]:[П]])","v":0}]
[null,null,"Усього днів відсутній",{"$f":"COUNTIF(Відвідуваністьзаквітень[1],\"П\")+COUNTIF(Відвідуваністьзаквітень[1],\"ПП\")","v":0},{"$f":"COUNTIF(Відвідуваністьзаквітень[2],\"П\")+COUNTIF(Відвідуваністьзаквітень[2],\"ПП\")","v":0},{"$f":"COUNTIF(Відвідуваністьзаквітень[3],\"П\")+COUNTIF(Відвідуваністьзаквітень[3],\"ПП\")","v":0},{"$f":"COUNTIF(Відвідуваністьзаквітень[4],\"П\")+COUNTIF(Відвідуваністьзаквітень[4],\"ПП\")","v":0},{"$f":"COUNTIF(Відвідуваністьзаквітень[5],\"П\")+COUNTIF(Відвідуваністьзаквітень[5],\"ПП\")","v":0},{"$f":"COUNTIF(Відвідуваністьзаквітень[6],\"П\")+COUNTIF(Відвідуваністьзаквітень[6],\"ПП\")","v":0},{"$f":"COUNTIF(Відвідуваністьзаквітень[7],\"П\")+COUNTIF(Відвідуваністьзаквітень[7],\"ПП\")","v":0},{"$f":"COUNTIF(Відвідуваністьзаквітень[8],\"П\")+COUNTIF(Відвідуваністьзаквітень[8],\"ПП\")","v":0},{"$f":"COUNTIF(Відвідуваністьзаквітень[9],\"П\")+COUNTIF(Відвідуваністьзаквітень[9],\"ПП\")","v":0},{"$f":"COUNTIF(Відвідуваністьзаквітень[10],\"П\")+COUNTIF(Відвідуваністьзаквітень[10],\"ПП\")","v":0},{"$f":"COUNTIF(Відвідуваністьзаквітень[11],\"П\")+COUNTIF(Відвідуваністьзаквітень[11],\"ПП\")","v":0},{"$f":"COUNTIF(Відвідуваністьзаквітень[12],\"П\")+COUNTIF(Відвідуваністьзаквітень[12],\"ПП\")","v":0},{"$f":"COUNTIF(Відвідуваністьзаквітень[13],\"П\")+COUNTIF(Відвідуваністьзаквітень[13],\"ПП\")","v":0},{"$f":"COUNTIF(Відвідуваністьзаквітень[14],\"П\")+COUNTIF(Відвідуваністьзаквітень[14],\"ПП\")","v":0},{"$f":"COUNTIF(Відвідуваністьзаквітень[15],\"П\")+COUNTIF(Відвідуваністьзаквітень[15],\"ПП\")","v":0},{"$f":"COUNTIF(Відвідуваністьзаквітень[16],\"П\")+COUNTIF(Відвідуваністьзаквітень[16],\"ПП\")","v":0},{"$f":"COUNTIF(Відвідуваністьзаквітень[17],\"П\")+COUNTIF(Відвідуваністьзаквітень[17],\"ПП\")","v":0},{"$f":"COUNTIF(Відвідуваністьзаквітень[18],\"П\")+COUNTIF(Відвідуваністьзаквітень[18],\"ПП\")","v":0},{"$f":"COUNTIF(Відвідуваністьзаквітень[19],\"П\")+COUNTIF(Відвідуваністьзаквітень[19],\"ПП\")","v":0},{"$f":"COUNTIF(Відвідуваністьзаквітень[20],\"П\")+COUNTIF(Відвідуваністьзаквітень[20],\"ПП\")","v":0},{"$f":"COUNTIF(Відвідуваністьзаквітень[21],\"П\")+COUNTIF(Відвідуваністьзаквітень[21],\"ПП\")","v":0},{"$f":"COUNTIF(Відвідуваністьзаквітень[22],\"П\")+COUNTIF(Відвідуваністьзаквітень[22],\"ПП\")","v":0},{"$f":"COUNTIF(Відвідуваністьзаквітень[23],\"П\")+COUNTIF(Відвідуваністьзаквітень[23],\"ПП\")","v":0},{"$f":"COUNTIF(Відвідуваністьзаквітень[24],\"П\")+COUNTIF(Відвідуваністьзаквітень[24],\"ПП\")","v":0},{"$f":"COUNTIF(Відвідуваністьзаквітень[25],\"П\")+COUNTIF(Відвідуваністьзаквітень[25],\"ПП\")","v":0},{"$f":"COUNTIF(Відвідуваністьзаквітень[26],\"П\")+COUNTIF(Відвідуваністьзаквітень[26],\"ПП\")","v":0},{"$f":"COUNTIF(Відвідуваністьзаквітень[27],\"П\")+COUNTIF(Відвідуваністьзаквітень[27],\"ПП\")","v":0},{"$f":"COUNTIF(Відвідуваністьзаквітень[28],\"П\")+COUNTIF(Відвідуваністьзаквітень[28],\"ПП\")","v":0},{"$f":"COUNTIF(Відвідуваністьзаквітень[29],\"П\")+COUNTIF(Відвідуваністьзаквітень[29],\"ПП\")","v":0},{"$f":"COUNTIF(Відвідуваністьзаквітень[30],\"П\")+COUNTIF(Відвідуваністьзаквітень[30],\"ПП\")","v":0},{"$f":"COUNTIF(Відвідуваністьзаквітень[[ ]],\"П\")+COUNTIF(Відвідуваністьзаквітень[[ ]],\"ПП\")","v":0},{"$f":"SUBTOTAL(109,Відвідуваністьзаквітень[З])","v":0},{"$f":"SUBTOTAL(109,Відвідуваністьзаквітень[ПП])","v":0},{"$f":"SUBTOTAL(109,Відвідуваністьзаквітень[П])","v":0},{"$f":"SUBTOTAL(109,Відвідуваністьзаквітень[Н])","v":0},{"$f":"SUBTOTAL(109,Відвідуваністьзаквітень[Відсутність, дн.])","v":0}]

{"sheet":"Травень","index":11,"n_rows":12,"n_cols":39,"rows_kept":12,"merged":[[4,34,4,38]]}
["ОБЛІК ВІДВІДУВАННЯ ЗАНЯТЬ СТУДЕНТАМИ",{"$nulls":36},"Початок шкільного року:",{"$f":"Календарнийрік","v":2012}]
[]
[null,null,{"$f":"Текстпоясненьдокольорів","v":"ПОЯСНЕННЯ ДО КОЛЬОРІВ"},{"$f":"Код1","v":"З"},{"$f":"Код1текст","v":"Запізнення"},null,null,{"$f":"Код2","v":"ПП"},{"$f":"Код2текст","v":"Поважна причина"},{"$nulls":3},{"$f":"Код3","v":"П"},{"$f":"Код3текст","v":"Прогул"},null,null,{"$f":"Код4","v":"Н"},{"$f":"Код4текст","v":"На місці"},null,null,{"$f":"Код5","v":"В"},{"$f":"Код5текст","v":"Вихідний"}]
[]
[null,{"$f":"DATE(Календарнийрік+1,5,1)","v":"2013-05-01"},null,{"$f":"TEXT(WEEKDAY(DATE(Календарнийрік+1,5,1),1),\"aaa\")","v":"Ср"},{"$f":"TEXT(WEEKDAY(DATE(Календарнийрік+1,5,2),1),\"aaa\")","v":"Чт"},{"$f":"TEXT(WEEKDAY(DATE(Календарнийрік+1,5,3),1),\"aaa\")","v":"Пт"},{"$f":"TEXT(WEEKDAY(DATE(Календарнийрік+1,5,4),1),\"aaa\")","v":"Сб"},{"$f":"TEXT(WEEKDAY(DATE(Календарнийрік+1,5,5),1),\"aaa\")","v":"Нд"},{"$f":"TEXT(WEEKDAY(DATE(Календарнийрік+1,5,6),1),\"aaa\")","v":"Пн"},{"$f":"TEXT(WEEKDAY(DATE(Календарнийрік+1,5,7),1),\"aaa\")","v":"Вт"},{"$f":"TEXT(WEEKDAY(DATE(Календарнийрік+1,5,8),1),\"aaa\")","v":"Ср"},{"$f":"TEXT(WEEKDAY(DATE(Календарнийрік+1,5,9),1),\"aaa\")","v":"Чт"},{"$f":"TEXT(WEEKDAY(DATE(Календарнийрік+1,5,10),1),\"aaa\")","v":"Пт"},{"$f":"TEXT(WEEKDAY(DATE(Календарнийрік+1,5,11),1),\"aaa\")","v":"Сб"},{"$f":"TEXT(WEEKDAY(DATE(Календарнийрік+1,5,12),1),\"aaa\")","v":"Нд"},{"$f":"TEXT(WEEKDAY(DATE(Календарнийрік+1,5,13),1),\"aaa\")","v":"Пн"},{"$f":"TEXT(WEEKDAY(DATE(Календарнийрік+1,5,14),1),\"aaa\")","v":"Вт"},{"$f":"TEXT(WEEKDAY(DATE(Календарнийрік+1,5,15),1),\"aaa\")","v":"Ср"},{"$f":"TEXT(WEEKDAY(DATE(Календарнийрік+1,5,16),1),\"aaa\")","v":"Чт"},{"$f":"TEXT(WEEKDAY(DATE(Календарнийрік+1,5,17),1),\"aaa\")","v":"Пт"},{"$f":"TEXT(WEEKDAY(DATE(Календарнийрік+1,5,18),1),\"aaa\")","v":"Сб"},{"$f":"TEXT(WEEKDAY(DATE(Календарнийрік+1,5,19),1),\"aaa\")","v":"Нд"},{"$f":"TEXT(WEEKDAY(DATE(Календарнийрік+1,5,20),1),\"aaa\")","v":"Пн"},{"$f":"TEXT(WEEKDAY(DATE(Календарнийрік+1,5,21),1),\"aaa\")","v":"Вт"},{"$f":"TEXT(WEEKDAY(DATE(Календарнийрік+1,5,22),1),\"aaa\")","v":"Ср"},{"$f":"TEXT(WEEKDAY(DATE(Календарнийрік+1,5,23),1),\"aaa\")","v":"Чт"},{"$f":"TEXT(WEEKDAY(DATE(Календарнийрік+1,5,24),1),\"aaa\")","v":"Пт"},{"$f":"TEXT(WEEKDAY(DATE(Календарнийрік+1,5,25),1),\"aaa\")","v":"Сб"},{"$f":"TEXT(WEEKDAY(DATE(Календарнийрік+1,5,26),1),\"aaa\")","v":"Нд"},{"$f":"TEXT(WEEKDAY(DATE(Календарнийрік+1,5,27),1),\"aaa\")","v":"Пн"},{"$f":"TEXT(WEEKDAY(DATE(Календарнийрік+1,5,28),1),\"aaa\")","v":"Вт"},{"$f":"TEXT(WEEKDAY(DATE(Календарнийрік+1,5,29),1),\"aaa\")","v":"Ср"},{"$f":"TEXT(WEEKDAY(DATE(Календарнийрік+1,5,30),1),\"aaa\")","v":"Чт"},{"$f":"TEXT(WEEKDAY(DATE(Календарнийрік+1,5,31),1),\"aaa\")","v":"Пт"},"Усього"]
[null,"Код студента","Ім’я студента","1","2","3","4","5","6","7","8","9","10","11","12","13","14","15","16","17","18","19","20","21","22","23","24","25","26","27","28","29","30","31","З","ПП","П","Н","Відсутність, дн."]
[null,null,{"$f":"IFERROR(VLOOKUP(Відвідуваністьзатравень[[#This Row],[Код студента]],Перелікстудентів[],18,FALSE),\"\")","v":""},{"$nulls":31},{"$f":"COUNTIF(Відвідуваністьзатравень[[#This Row],[1]:[31]],Код1)","v":0},{"$f":"COUNTIF(Відвідуваністьзатравень[[#This Row],[1]:[31]],Код2)","v":0},{"$f":"COUNTIF(Відвідуваністьзатравень[[#This Row],[1]:[31]],Код3)","v":0},{"$f":"COUNTIF(Відвідуваністьзатравень[[#This Row],[1]:[31]],Код4)","v":0},{"$f":"SUM(Відвідуваністьзавересень[[#This Row],[ПП]:[П]])","v":0}]
[null,null,{"$f":"IFERROR(VLOOKUP(Відвідуваністьзатравень[[#This Row],[Код студента]],Перелікстудентів[],18,FALSE),\"\")","v":""},{"$nulls":31},{"$f":"COUNTIF(Відвідуваністьзатравень[[#This Row],[1]:[31]],Код1)","v":0},{"$f":"COUNTIF(Відвідуваністьзатравень[[#This Row],[1]:[31]],Код2)","v":0},{"$f":"COUNTIF(Відвідуваністьзатравень[[#This Row],[1]:[31]],Код3)","v":0},{"$f":"COUNTIF(Відвідуваністьзатравень[[#This Row],[1]:[31]],Код4)","v":0},{"$f":"SUM(Відвідуваністьзавересень[[#This Row],[ПП]:[П]])","v":0}]
[null,null,{"$f":"IFERROR(VLOOKUP(Відвідуваністьзатравень[[#This Row],[Код студента]],Перелікстудентів[],18,FALSE),\"\")","v":""},{"$nulls":31},{"$f":"COUNTIF(Відвідуваністьзатравень[[#This Row],[1]:[31]],Код1)","v":0},{"$f":"COUNTIF(Відвідуваністьзатравень[[#This Row],[1]:[31]],Код2)","v":0},{"$f":"COUNTIF(Відвідуваністьзатравень[[#This Row],[1]:[31]],Код3)","v":0},{"$f":"COUNTIF(Відвідуваністьзатравень[[#This Row],[1]:[31]],Код4)","v":0},{"$f":"SUM(Відвідуваністьзавересень[[#This Row],[ПП]:[П]])","v":0}]
[null,null,{"$f":"IFERROR(VLOOKUP(Відвідуваністьзатравень[[#This Row],[Код студента]],Перелікстудентів[],18,FALSE),\"\")","v":""},{"$nulls":31},{"$f":"COUNTIF(Відвідуваністьзатравень[[#This Row],[1]:[31]],Код1)","v":0},{"$f":"COUNTIF(Відвідуваністьзатравень[[#This Row],[1]:[31]],Код2)","v":0},{"$f":"COUNTIF(Відвідуваністьзатравень[[#This Row],[1]:[31]],Код3)","v":0},{"$f":"COUNTIF(Відвідуваністьзатравень[[#This Row],[1]:[31]],Код4)","v":0},{"$f":"SUM(Відвідуваністьзавересень[[#This Row],[ПП]:[П]])","v":0}]
[null,null,{"$f":"IFERROR(VLOOKUP(Відвідуваністьзатравень[[#This Row],[Код студента]],Перелікстудентів[],18,FALSE),\"\")","v":""},{"$nulls":31},{"$f":"COUNTIF(Відвідуваністьзатравень[[#This Row],[1]:[31]],Код1)","v":0},{"$f":"COUNTIF(Відвідуваністьзатравень[[#This Row],[1]:[31]],Код2)","v":0},{"$f":"COUNTIF(Відвідуваністьзатравень[[#This Row],[1]:[31]],Код3)","v":0},{"$f":"COUNTIF(Відвідуваністьзатравень[[#This Row],[1]:[31]],Код4)","v":0},{"$f":"SUM(Відвідуваністьзавересень[[#This Row],[ПП]:[П]])","v":0}]
[null,null,"Усього днів відсутній",{"$f":"COUNTIF(Відвідуваністьзатравень[1],\"П\")+COUNTIF(Відвідуваністьзатравень[1],\"ПП\")","v":0},{"$f":"COUNTIF(Відвідуваністьзатравень[2],\"П\")+COUNTIF(Відвідуваністьзатравень[2],\"ПП\")","v":0},{"$f":"COUNTIF(Відвідуваністьзатравень[3],\"П\")+COUNTIF(Відвідуваністьзатравень[3],\"ПП\")","v":0},{"$f":"COUNTIF(Відвідуваністьзатравень[4],\"П\")+COUNTIF(Відвідуваністьзатравень[4],\"ПП\")","v":0},{"$f":"COUNTIF(Відвідуваністьзатравень[5],\"П\")+COUNTIF(Відвідуваністьзатравень[5],\"ПП\")","v":0},{"$f":"COUNTIF(Відвідуваністьзатравень[6],\"П\")+COUNTIF(Відвідуваністьзатравень[6],\"ПП\")","v":0},{"$f":"COUNTIF(Відвідуваністьзатравень[7],\"П\")+COUNTIF(Відвідуваністьзатравень[7],\"ПП\")","v":0},{"$f":"COUNTIF(Відвідуваністьзатравень[8],\"П\")+COUNTIF(Відвідуваністьзатравень[8],\"ПП\")","v":0},{"$f":"COUNTIF(Відвідуваністьзатравень[9],\"П\")+COUNTIF(Відвідуваністьзатравень[9],\"ПП\")","v":0},{"$f":"COUNTIF(Відвідуваністьзатравень[10],\"П\")+COUNTIF(Відвідуваністьзатравень[10],\"ПП\")","v":0},{"$f":"COUNTIF(Відвідуваністьзатравень[11],\"П\")+COUNTIF(Відвідуваністьзатравень[11],\"ПП\")","v":0},{"$f":"COUNTIF(Відвідуваністьзатравень[12],\"П\")+COUNTIF(Відвідуваністьзатравень[12],\"ПП\")","v":0},{"$f":"COUNTIF(Відвідуваністьзатравень[13],\"П\")+COUNTIF(Відвідуваністьзатравень[13],\"ПП\")","v":0},{"$f":"COUNTIF(Відвідуваністьзатравень[14],\"П\")+COUNTIF(Відвідуваністьзатравень[14],\"ПП\")","v":0},{"$f":"COUNTIF(Відвідуваністьзатравень[15],\"П\")+COUNTIF(Відвідуваністьзатравень[15],\"ПП\")","v":0},{"$f":"COUNTIF(Відвідуваністьзатравень[16],\"П\")+COUNTIF(Відвідуваністьзатравень[16],\"ПП\")","v":0},{"$f":"COUNTIF(Відвідуваністьзатравень[17],\"П\")+COUNTIF(Відвідуваністьзатравень[17],\"ПП\")","v":0},{"$f":"COUNTIF(Відвідуваністьзатравень[18],\"П\")+COUNTIF(Відвідуваністьзатравень[18],\"ПП\")","v":0},{"$f":"COUNTIF(Відвідуваністьзатравень[19],\"П\")+COUNTIF(Відвідуваністьзатравень[19],\"ПП\")","v":0},{"$f":"COUNTIF(Відвідуваністьзатравень[20],\"П\")+COUNTIF(Відвідуваністьзатравень[20],\"ПП\")","v":0},{"$f":"COUNTIF(Відвідуваністьзатравень[21],\"П\")+COUNTIF(Відвідуваністьзатравень[21],\"ПП\")","v":0},{"$f":"COUNTIF(Відвідуваністьзатравень[22],\"П\")+COUNTIF(Відвідуваністьзатравень[22],\"ПП\")","v":0},{"$f":"COUNTIF(Відвідуваністьзатравень[23],\"П\")+COUNTIF(Відвідуваністьзатравень[23],\"ПП\")","v":0},{"$f":"COUNTIF(Відвідуваністьзатравень[24],\"П\")+COUNTIF(Відвідуваністьзатравень[24],\"ПП\")","v":0},{"$f":"COUNTIF(Відвідуваністьзатравень[25],\"П\")+COUNTIF(Відвідуваністьзатравень[25],\"ПП\")","v":0},{"$f":"COUNTIF(Відвідуваністьзатравень[26],\"П\")+COUNTIF(Відвідуваністьзатравень[26],\"ПП\")","v":0},{"$f":"COUNTIF(Відвідуваністьзатравень[27],\"П\")+COUNTIF(Відвідуваністьзатравень[27],\"ПП\")","v":0},{"$f":"COUNTIF(Відвідуваністьзатравень[28],\"П\")+COUNTIF(Відвідуваністьзатравень[28],\"ПП\")","v":0},{"$f":"COUNTIF(Відвідуваністьзатравень[29],\"П\")+COUNTIF(Відвідуваністьзатравень[29],\"ПП\")","v":0},{"$f":"COUNTIF(Відвідуваністьзатравень[30],\"П\")+COUNTIF(Відвідуваністьзатравень[30],\"ПП\")","v":0},{"$f":"COUNTIF(Відвідуваністьзатравень[31],\"П\")+COUNTIF(Відвідуваністьзатравень[31],\"ПП\")","v":0},{"$f":"SUBTOTAL(109,Відвідуваністьзатравень[З])","v":0},{"$f":"SUBTOTAL(109,Відвідуваністьзатравень[ПП])","v":0},{"$f":"SUBTOTAL(109,Відвідуваністьзатравень[П])","v":0},{"$f":"SUBTOTAL(109,Відвідуваністьзатравень[Н])","v":0},{"$f":"SUBTOTAL(109,Відвідуваністьзатравень[Відсутність, дн.])","v":0}]

{"sheet":"Червень","index":12,"n_rows":12,"n_cols":39,"rows_kept":12,"merged":[[4,34,4,38]]}
["ОБЛІК ВІДВІДУВАННЯ ЗАНЯТЬ СТУДЕНТАМИ",{"$nulls":36},"Початок шкільного року:",{"$f":"Календарнийрік","v":2012}]
[]
[null,null,{"$f":"Текстпоясненьдокольорів","v":"ПОЯСНЕННЯ ДО КОЛЬОРІВ"},{"$f":"Код1","v":"З"},{"$f":"Код1текст","v":"Запізнення"},null,null,{"$f":"Код2","v":"ПП"},{"$f":"Код2текст","v":"Поважна причина"},{"$nulls":3},{"$f":"Код3","v":"П"},{"$f":"Код3текст","v":"Прогул"},null,null,{"$f":"Код4","v":"Н"},{"$f":"Код4текст","v":"На місці"},null,null,{"$f":"Код5","v":"В"},{"$f":"Код5текст","v":"Вихідний"}]
[]
[null,{"$f":"DATE(Календарнийрік+1,6,1)","v":"2013-06-01"},null,{"$f":"TEXT(WEEKDAY(DATE(Календарнийрік+1,6,1),1),\"aaa\")","v":"Сб"},{"$f":"TEXT(WEEKDAY(DATE(Календарнийрік+1,6,2),1),\"aaa\")","v":"Нд"},{"$f":"TEXT(WEEKDAY(DATE(Календарнийрік+1,6,3),1),\"aaa\")","v":"Пн"},{"$f":"TEXT(WEEKDAY(DATE(Календарнийрік+1,6,4),1),\"aaa\")","v":"Вт"},{"$f":"TEXT(WEEKDAY(DATE(Календарнийрік+1,6,5),1),\"aaa\")","v":"Ср"},{"$f":"TEXT(WEEKDAY(DATE(Календарнийрік+1,6,6),1),\"aaa\")","v":"Чт"},{"$f":"TEXT(WEEKDAY(DATE(Календарнийрік+1,6,7),1),\"aaa\")","v":"Пт"},{"$f":"TEXT(WEEKDAY(DATE(Календарнийрік+1,6,8),1),\"aaa\")","v":"Сб"},{"$f":"TEXT(WEEKDAY(DATE(Календарнийрік+1,6,9),1),\"aaa\")","v":"Нд"},{"$f":"TEXT(WEEKDAY(DATE(Календарнийрік+1,6,10),1),\"aaa\")","v":"Пн"},{"$f":"TEXT(WEEKDAY(DATE(Календарнийрік+1,6,11),1),\"aaa\")","v":"Вт"},{"$f":"TEXT(WEEKDAY(DATE(Календарнийрік+1,6,12),1),\"aaa\")","v":"Ср"},{"$f":"TEXT(WEEKDAY(DATE(Календарнийрік+1,6,13),1),\"aaa\")","v":"Чт"},{"$f":"TEXT(WEEKDAY(DATE(Календарнийрік+1,6,14),1),\"aaa\")","v":"Пт"},{"$f":"TEXT(WEEKDAY(DATE(Календарнийрік+1,6,15),1),\"aaa\")","v":"Сб"},{"$f":"TEXT(WEEKDAY(DATE(Календарнийрік+1,6,16),1),\"aaa\")","v":"Нд"},{"$f":"TEXT(WEEKDAY(DATE(Календарнийрік+1,6,17),1),\"aaa\")","v":"Пн"},{"$f":"TEXT(WEEKDAY(DATE(Календарнийрік+1,6,18),1),\"aaa\")","v":"Вт"},{"$f":"TEXT(WEEKDAY(DATE(Календарнийрік+1,6,19),1),\"aaa\")","v":"Ср"},{"$f":"TEXT(WEEKDAY(DATE(Календарнийрік+1,6,20),1),\"aaa\")","v":"Чт"},{"$f":"TEXT(WEEKDAY(DATE(Календарнийрік+1,6,21),1),\"aaa\")","v":"Пт"},{"$f":"TEXT(WEEKDAY(DATE(Календарнийрік+1,6,22),1),\"aaa\")","v":"Сб"},{"$f":"TEXT(WEEKDAY(DATE(Календарнийрік+1,6,23),1),\"aaa\")","v":"Нд"},{"$f":"TEXT(WEEKDAY(DATE(Календарнийрік+1,6,24),1),\"aaa\")","v":"Пн"},{"$f":"TEXT(WEEKDAY(DATE(Календарнийрік+1,6,25),1),\"aaa\")","v":"Вт"},{"$f":"TEXT(WEEKDAY(DATE(Календарнийрік+1,6,26),1),\"aaa\")","v":"Ср"},{"$f":"TEXT(WEEKDAY(DATE(Календарнийрік+1,6,27),1),\"aaa\")","v":"Чт"},{"$f":"TEXT(WEEKDAY(DATE(Календарнийрік+1,6,28),1),\"aaa\")","v":"Пт"},{"$f":"TEXT(WEEKDAY(DATE(Календарнийрік+1,6,29),1),\"aaa\")","v":"Сб"},{"$f":"TEXT(WEEKDAY(DATE(Календарнийрік+1,6,30),1),\"aaa\")","v":"Нд"},null,"Усього"]
[null,"Код студента","Ім’я студента","1","2","3","4","5","6","7","8","9","10","11","12","13","14","15","16","17","18","19","20","21","22","23","24","25","26","27","28","29","30"," ","З","ПП","П","Н","Відсутність, дн."]
[null,null,{"$f":"IFERROR(VLOOKUP(Відвідуваністьзачервень[[#This Row],[Код студента]],Перелікстудентів[],18,FALSE),\"\")","v":""},{"$nulls":31},{"$f":"COUNTIF(Відвідуваністьзачервень[[#This Row],[1]:[ ]],Код1)","v":0},{"$f":"COUNTIF(Відвідуваністьзачервень[[#This Row],[1]:[ ]],Код2)","v":0},{"$f":"COUNTIF(Відвідуваністьзачервень[[#This Row],[1]:[ ]],Код3)","v":0},{"$f":"COUNTIF(Відвідуваністьзачервень[[#This Row],[1]:[ ]],Код4)","v":0},{"$f":"SUM(Відвідуваністьзавересень[[#This Row],[ПП]:[П]])","v":0}]
[null,null,{"$f":"IFERROR(VLOOKUP(Відвідуваністьзачервень[[#This Row],[Код студента]],Перелікстудентів[],18,FALSE),\"\")","v":""},{"$nulls":31},{"$f":"COUNTIF(Відвідуваністьзачервень[[#This Row],[1]:[ ]],Код1)","v":0},{"$f":"COUNTIF(Відвідуваністьзачервень[[#This Row],[1]:[ ]],Код2)","v":0},{"$f":"COUNTIF(Відвідуваністьзачервень[[#This Row],[1]:[ ]],Код3)","v":0},{"$f":"COUNTIF(Відвідуваністьзачервень[[#This Row],[1]:[ ]],Код4)","v":0},{"$f":"SUM(Відвідуваністьзавересень[[#This Row],[ПП]:[П]])","v":0}]
[null,null,{"$f":"IFERROR(VLOOKUP(Відвідуваністьзачервень[[#This Row],[Код студента]],Перелікстудентів[],18,FALSE),\"\")","v":""},{"$nulls":31},{"$f":"COUNTIF(Відвідуваністьзачервень[[#This Row],[1]:[ ]],Код1)","v":0},{"$f":"COUNTIF(Відвідуваністьзачервень[[#This Row],[1]:[ ]],Код2)","v":0},{"$f":"COUNTIF(Відвідуваністьзачервень[[#This Row],[1]:[ ]],Код3)","v":0},{"$f":"COUNTIF(Відвідуваністьзачервень[[#This Row],[1]:[ ]],Код4)","v":0},{"$f":"SUM(Відвідуваністьзавересень[[#This Row],[ПП]:[П]])","v":0}]
[null,null,{"$f":"IFERROR(VLOOKUP(Відвідуваністьзачервень[[#This Row],[Код студента]],Перелікстудентів[],18,FALSE),\"\")","v":""},{"$nulls":31},{"$f":"COUNTIF(Відвідуваністьзачервень[[#This Row],[1]:[ ]],Код1)","v":0},{"$f":"COUNTIF(Відвідуваністьзачервень[[#This Row],[1]:[ ]],Код2)","v":0},{"$f":"COUNTIF(Відвідуваністьзачервень[[#This Row],[1]:[ ]],Код3)","v":0},{"$f":"COUNTIF(Відвідуваністьзачервень[[#This Row],[1]:[ ]],Код4)","v":0},{"$f":"SUM(Відвідуваністьзавересень[[#This Row],[ПП]:[П]])","v":0}]
[null,null,{"$f":"IFERROR(VLOOKUP(Відвідуваністьзачервень[[#This Row],[Код студента]],Перелікстудентів[],18,FALSE),\"\")","v":""},{"$nulls":31},{"$f":"COUNTIF(Відвідуваністьзачервень[[#This Row],[1]:[ ]],Код1)","v":0},{"$f":"COUNTIF(Відвідуваністьзачервень[[#This Row],[1]:[ ]],Код2)","v":0},{"$f":"COUNTIF(Відвідуваністьзачервень[[#This Row],[1]:[ ]],Код3)","v":0},{"$f":"COUNTIF(Відвідуваністьзачервень[[#This Row],[1]:[ ]],Код4)","v":0},{"$f":"SUM(Відвідуваністьзавересень[[#This Row],[ПП]:[П]])","v":0}]
[null,null,"Усього днів відсутній",{"$f":"COUNTIF(Відвідуваністьзачервень[1],\"П\")+COUNTIF(Відвідуваністьзачервень[1],\"ПП\")","v":0},{"$f":"COUNTIF(Відвідуваністьзачервень[2],\"П\")+COUNTIF(Відвідуваністьзачервень[2],\"ПП\")","v":0},{"$f":"COUNTIF(Відвідуваністьзачервень[3],\"П\")+COUNTIF(Відвідуваністьзачервень[3],\"ПП\")","v":0},{"$f":"COUNTIF(Відвідуваністьзачервень[4],\"П\")+COUNTIF(Відвідуваністьзачервень[4],\"ПП\")","v":0},{"$f":"COUNTIF(Відвідуваністьзачервень[5],\"П\")+COUNTIF(Відвідуваністьзачервень[5],\"ПП\")","v":0},{"$f":"COUNTIF(Відвідуваністьзачервень[6],\"П\")+COUNTIF(Відвідуваністьзачервень[6],\"ПП\")","v":0},{"$f":"COUNTIF(Відвідуваністьзачервень[7],\"П\")+COUNTIF(Відвідуваністьзачервень[7],\"ПП\")","v":0},{"$f":"COUNTIF(Відвідуваністьзачервень[8],\"П\")+COUNTIF(Відвідуваністьзачервень[8],\"ПП\")","v":0},{"$f":"COUNTIF(Відвідуваністьзачервень[9],\"П\")+COUNTIF(Відвідуваністьзачервень[9],\"ПП\")","v":0},{"$f":"COUNTIF(Відвідуваністьзачервень[10],\"П\")+COUNTIF(Відвідуваністьзачервень[10],\"ПП\")","v":0},{"$f":"COUNTIF(Відвідуваністьзачервень[11],\"П\")+COUNTIF(Відвідуваністьзачервень[11],\"ПП\")","v":0},{"$f":"COUNTIF(Відвідуваністьзачервень[12],\"П\")+COUNTIF(Відвідуваністьзачервень[12],\"ПП\")","v":0},{"$f":"COUNTIF(Відвідуваністьзачервень[13],\"П\")+COUNTIF(Відвідуваністьзачервень[13],\"ПП\")","v":0},{"$f":"COUNTIF(Відвідуваністьзачервень[14],\"П\")+COUNTIF(Відвідуваністьзачервень[14],\"ПП\")","v":0},{"$f":"COUNTIF(Відвідуваністьзачервень[15],\"П\")+COUNTIF(Відвідуваністьзачервень[15],\"ПП\")","v":0},{"$f":"COUNTIF(Відвідуваністьзачервень[16],\"П\")+COUNTIF(Відвідуваністьзачервень[16],\"ПП\")","v":0},{"$f":"COUNTIF(Відвідуваністьзачервень[17],\"П\")+COUNTIF(Відвідуваністьзачервень[17],\"ПП\")","v":0},{"$f":"COUNTIF(Відвідуваністьзачервень[18],\"П\")+COUNTIF(Відвідуваністьзачервень[18],\"ПП\")","v":0},{"$f":"COUNTIF(Відвідуваністьзачервень[19],\"П\")+COUNTIF(Відвідуваністьзачервень[19],\"ПП\")","v":0},{"$f":"COUNTIF(Відвідуваністьзачервень[20],\"П\")+COUNTIF(Відвідуваністьзачервень[20],\"ПП\")","v":0},{"$f":"COUNTIF(Відвідуваністьзачервень[21],\"П\")+COUNTIF(Відвідуваністьзачервень[21],\"ПП\")","v":0},{"$f":"COUNTIF(Відвідуваністьзачервень[22],\"П\")+COUNTIF(Відвідуваністьзачервень[22],\"ПП\")","v":0},{"$f":"COUNTIF(Відвідуваністьзачервень[23],\"П\")+COUNTIF(Відвідуваністьзачервень[23],\"ПП\")","v":0},{"$f":"COUNTIF(Відвідуваністьзачервень[24],\"П\")+COUNTIF(Відвідуваністьзачервень[24],\"ПП\")","v":0},{"$f":"COUNTIF(Відвідуваністьзачервень[25],\"П\")+COUNTIF(Відвідуваністьзачервень[25],\"ПП\")","v":0},{"$f":"COUNTIF(Відвідуваністьзачервень[26],\"П\")+COUNTIF(Відвідуваністьзачервень[26],\"ПП\")","v":0},{"$f":"COUNTIF(Відвідуваністьзачервень[27],\"П\")+COUNTIF(Відвідуваністьзачервень[27],\"ПП\")","v":0},{"$f":"COUNTIF(Відвідуваністьзачервень[28],\"П\")+COUNTIF(Відвідуваністьзачервень[28],\"ПП\")","v":0},{"$f":"COUNTIF(Відвідуваністьзачервень[29],\"П\")+COUNTIF(Відвідуваністьзачервень[29],\"ПП\")","v":0},{"$f":"COUNTIF(Відвідуваністьзачервень[30],\"П\")+COUNTIF(Відвідуваністьзачервень[30],\"ПП\")","v":0},{"$f":"COUNTIF(Відвідуваністьзачервень[[ ]],\"П\")+COUNTIF(Відвідуваністьзачервень[[ ]],\"ПП\")","v":0},{"$f":"SUBTOTAL(109,Відвідуваністьзачервень[З])","v":0},{"$f":"SUBTOTAL(109,Відвідуваністьзачервень[ПП])","v":0},{"$f":"SUBTOTAL(109,Відвідуваністьзачервень[П])","v":0},{"$f":"SUBTOTAL(109,Відвідуваністьзачервень[Н])","v":0},{"$f":"SUBTOTAL(109,Відвідуваністьзачервень[Відсутність, дн.])","v":0}]

{"sheet":"Липень","index":13,"n_rows":12,"n_cols":39,"rows_kept":12,"merged":[[4,34,4,38]]}
["ОБЛІК ВІДВІДУВАННЯ ЗАНЯТЬ СТУДЕНТАМИ",{"$nulls":36},"Початок шкільного року:",{"$f":"Календарнийрік","v":2012}]
[]
[null,null,{"$f":"Текстпоясненьдокольорів","v":"ПОЯСНЕННЯ ДО КОЛЬОРІВ"},{"$f":"Код1","v":"З"},{"$f":"Код1текст","v":"Запізнення"},null,null,{"$f":"Код2","v":"ПП"},{"$f":"Код2текст","v":"Поважна причина"},{"$nulls":3},{"$f":"Код3","v":"П"},{"$f":"Код3текст","v":"Прогул"},null,null,{"$f":"Код4","v":"Н"},{"$f":"Код4текст","v":"На місці"},null,null,{"$f":"Код5","v":"В"},{"$f":"Код5текст","v":"Вихідний"}]
[]
[null,{"$f":"DATE(Календарнийрік+1,7,1)","v":"2013-07-01"},null,{"$f":"TEXT(WEEKDAY(DATE(Календарнийрік+1,7,1),1),\"aaa\")","v":"Пн"},{"$f":"TEXT(WEEKDAY(DATE(Календарнийрік+1,7,2),1),\"aaa\")","v":"Вт"},{"$f":"TEXT(WEEKDAY(DATE(Календарнийрік+1,7,3),1),\"aaa\")","v":"Ср"},{"$f":"TEXT(WEEKDAY(DATE(Календарнийрік+1,7,4),1),\"aaa\")","v":"Чт"},{"$f":"TEXT(WEEKDAY(DATE(Календарнийрік+1,7,5),1),\"aaa\")","v":"Пт"},{"$f":"TEXT(WEEKDAY(DATE(Календарнийрік+1,7,6),1),\"aaa\")","v":"Сб"},{"$f":"TEXT(WEEKDAY(DATE(Календарнийрік+1,7,7),1),\"aaa\")","v":"Нд"},{"$f":"TEXT(WEEKDAY(DATE(Календарнийрік+1,7,8),1),\"aaa\")","v":"Пн"},{"$f":"TEXT(WEEKDAY(DATE(Календарнийрік+1,7,9),1),\"aaa\")","v":"Вт"},{"$f":"TEXT(WEEKDAY(DATE(Календарнийрік+1,7,10),1),\"aaa\")","v":"Ср"},{"$f":"TEXT(WEEKDAY(DATE(Календарнийрік+1,7,11),1),\"aaa\")","v":"Чт"},{"$f":"TEXT(WEEKDAY(DATE(Календарнийрік+1,7,12),1),\"aaa\")","v":"Пт"},{"$f":"TEXT(WEEKDAY(DATE(Календарнийрік+1,7,13),1),\"aaa\")","v":"Сб"},{"$f":"TEXT(WEEKDAY(DATE(Календарнийрік+1,7,14),1),\"aaa\")","v":"Нд"},{"$f":"TEXT(WEEKDAY(DATE(Календарнийрік+1,7,15),1),\"aaa\")","v":"Пн"},{"$f":"TEXT(WEEKDAY(DATE(Календарнийрік+1,7,16),1),\"aaa\")","v":"Вт"},{"$f":"TEXT(WEEKDAY(DATE(Календарнийрік+1,7,17),1),\"aaa\")","v":"Ср"},{"$f":"TEXT(WEEKDAY(DATE(Календарнийрік+1,7,18),1),\"aaa\")","v":"Чт"},{"$f":"TEXT(WEEKDAY(DATE(Календарнийрік+1,7,19),1),\"aaa\")","v":"Пт"},{"$f":"TEXT(WEEKDAY(DATE(Календарнийрік+1,7,20),1),\"aaa\")","v":"Сб"},{"$f":"TEXT(WEEKDAY(DATE(Календарнийрік+1,7,21),1),\"aaa\")","v":"Нд"},{"$f":"TEXT(WEEKDAY(DATE(Календарнийрік+1,7,22),1),\"aaa\")","v":"Пн"},{"$f":"TEXT(WEEKDAY(DATE(Календарнийрік+1,7,23),1),\"aaa\")","v":"Вт"},{"$f":"TEXT(WEEKDAY(DATE(Календарнийрік+1,7,24),1),\"aaa\")","v":"Ср"},{"$f":"TEXT(WEEKDAY(DATE(Календарнийрік+1,7,25),1),\"aaa\")","v":"Чт"},{"$f":"TEXT(WEEKDAY(DATE(Календарнийрік+1,7,26),1),\"aaa\")","v":"Пт"},{"$f":"TEXT(WEEKDAY(DATE(Календарнийрік+1,7,27),1),\"aaa\")","v":"Сб"},{"$f":"TEXT(WEEKDAY(DATE(Календарнийрік+1,7,28),1),\"aaa\")","v":"Нд"},{"$f":"TEXT(WEEKDAY(DATE(Календарнийрік+1,7,29),1),\"aaa\")","v":"Пн"},{"$f":"TEXT(WEEKDAY(DATE(Календарнийрік+1,7,30),1),\"aaa\")","v":"Вт"},{"$f":"TEXT(WEEKDAY(DATE(Календарнийрік+1,7,31),1),\"aaa\")","v":"Ср"},"Усього"]
[null,"Код студента","Ім’я студента","1","2","3","4","5","6","7","8","9","10","11","12","13","14","15","16","17","18","19","20","21","22","23","24","25","26","27","28","29","30","31","З","ПП","П","Н","Відсутність, дн."]
[null,null,{"$f":"IFERROR(VLOOKUP(Відвідуваністьзалипень[[#This Row],[Код студента]],Перелікстудентів[],18,FALSE),\"\")","v":""},{"$nulls":31},{"$f":"COUNTIF(Відвідуваністьзалипень[[#This Row],[1]:[31]],Код1)","v":0},{"$f":"COUNTIF(Відвідуваністьзалипень[[#This Row],[1]:[31]],Код2)","v":0},{"$f":"COUNTIF(Відвідуваністьзалипень[[#This Row],[1]:[31]],Код3)","v":0},{"$f":"COUNTIF(Відвідуваністьзалипень[[#This Row],[1]:[31]],Код4)","v":0},{"$f":"SUM(Відвідуваністьзавересень[[#This Row],[ПП]:[П]])","v":0}]
[null,null,{"$f":"IFERROR(VLOOKUP(Відвідуваністьзалипень[[#This Row],[Код студента]],Перелікстудентів[],18,FALSE),\"\")","v":""},{"$nulls":31},{"$f":"COUNTIF(Відвідуваністьзалипень[[#This Row],[1]:[31]],Код1)","v":0},{"$f":"COUNTIF(Відвідуваністьзалипень[[#This Row],[1]:[31]],Код2)","v":0},{"$f":"COUNTIF(Відвідуваністьзалипень[[#This Row],[1]:[31]],Код3)","v":0},{"$f":"COUNTIF(Відвідуваністьзалипень[[#This Row],[1]:[31]],Код4)","v":0},{"$f":"SUM(Відвідуваністьзавересень[[#This Row],[ПП]:[П]])","v":0}]
[null,null,{"$f":"IFERROR(VLOOKUP(Відвідуваністьзалипень[[#This Row],[Код студента]],Перелікстудентів[],18,FALSE),\"\")","v":""},{"$nulls":31},{"$f":"COUNTIF(Відвідуваністьзалипень[[#This Row],[1]:[31]],Код1)","v":0},{"$f":"COUNTIF(Відвідуваністьзалипень[[#This Row],[1]:[31]],Код2)","v":0},{"$f":"COUNTIF(Відвідуваністьзалипень[[#This Row],[1]:[31]],Код3)","v":0},{"$f":"COUNTIF(Відвідуваністьзалипень[[#This Row],[1]:[31]],Код4)","v":0},{"$f":"SUM(Відвідуваністьзавересень[[#This Row],[ПП]:[П]])","v":0}]
[null,null,{"$f":"IFERROR(VLOOKUP(Відвідуваністьзалипень[[#This Row],[Код студента]],Перелікстудентів[],18,FALSE),\"\")","v":""},{"$nulls":31},{"$f":"COUNTIF(Відвідуваністьзалипень[[#This Row],[1]:[31]],Код1)","v":0},{"$f":"COUNTIF(Відвідуваністьзалипень[[#This Row],[1]:[31]],Код2)","v":0},{"$f":"COUNTIF(Відвідуваністьзалипень[[#This Row],[1]:[31]],Код3)","v":0},{"$f":"COUNTIF(Відвідуваністьзалипень[[#This Row],[1]:[31]],Код4)","v":0},{"$f":"SUM(Відвідуваністьзавересень[[#This Row],[ПП]:[П]])","v":0}]
[null,null,{"$f":"IFERROR(VLOOKUP(Відвідуваністьзалипень[[#This Row],[Код студента]],Перелікстудентів[],18,FALSE),\"\")","v":""},{"$nulls":31},{"$f":"COUNTIF(Відвідуваністьзалипень[[#This Row],[1]:[31]],Код1)","v":0},{"$f":"COUNTIF(Відвідуваністьзалипень[[#This Row],[1]:[31]],Код2)","v":0},{"$f":"COUNTIF(Відвідуваністьзалипень[[#This Row],[1]:[31]],Код3)","v":0},{"$f":"COUNTIF(Відвідуваністьзалипень[[#This Row],[1]:[31]],Код4)","v":0},{"$f":"SUM(Відвідуваністьзавересень[[#This Row],[ПП]:[П]])","v":0}]
[null,null,"Усього днів відсутній",{"$f":"COUNTIF(Відвідуваністьзалипень[1],\"П\")+COUNTIF(Відвідуваністьзалипень[1],\"ПП\")","v":0},{"$f":"COUNTIF(Відвідуваністьзалипень[2],\"П\")+COUNTIF(Відвідуваністьзалипень[2],\"ПП\")","v":0},{"$f":"COUNTIF(Відвідуваністьзалипень[3],\"П\")+COUNTIF(Відвідуваністьзалипень[3],\"ПП\")","v":0},{"$f":"COUNTIF(Відвідуваністьзалипень[4],\"П\")+COUNTIF(Відвідуваністьзалипень[4],\"ПП\")","v":0},{"$f":"COUNTIF(Відвідуваністьзалипень[5],\"П\")+COUNTIF(Відвідуваністьзалипень[5],\"ПП\")","v":0},{"$f":"COUNTIF(Відвідуваністьзалипень[6],\"П\")+COUNTIF(Відвідуваністьзалипень[6],\"ПП\")","v":0},{"$f":"COUNTIF(Відвідуваністьзалипень[7],\"П\")+COUNTIF(Відвідуваністьзалипень[7],\"ПП\")","v":0},{"$f":"COUNTIF(Відвідуваністьзалипень[8],\"П\")+COUNTIF(Відвідуваністьзалипень[8],\"ПП\")","v":0},{"$f":"COUNTIF(Відвідуваністьзалипень[9],\"П\")+COUNTIF(Відвідуваністьзалипень[9],\"ПП\")","v":0},{"$f":"COUNTIF(Відвідуваністьзалипень[10],\"П\")+COUNTIF(Відвідуваністьзалипень[10],\"ПП\")","v":0},{"$f":"COUNTIF(Відвідуваністьзалипень[11],\"П\")+COUNTIF(Відвідуваністьзалипень[11],\"ПП\")","v":0},{"$f":"COUNTIF(Відвідуваністьзалипень[12],\"П\")+COUNTIF(Відвідуваністьзалипень[12],\"ПП\")","v":0},{"$f":"COUNTIF(Відвідуваністьзалипень[13],\"П\")+COUNTIF(Відвідуваністьзалипень[13],\"ПП\")","v":0},{"$f":"COUNTIF(Відвідуваністьзалипень[14],\"П\")+COUNTIF(Відвідуваністьзалипень[14],\"ПП\")","v":0},{"$f":"COUNTIF(Відвідуваністьзалипень[15],\"П\")+COUNTIF(Відвідуваністьзалипень[15],\"ПП\")","v":0},{"$f":"COUNTIF(Відвідуваністьзалипень[16],\"П\")+COUNTIF(Відвідуваністьзалипень[16],\"ПП\")","v":0},{"$f":"COUNTIF(Відвідуваністьзалипень[17],\"П\")+COUNTIF(Відвідуваністьзалипень[17],\"ПП\")","v":0},{"$f":"COUNTIF(Відвідуваністьзалипень[18],\"П\")+COUNTIF(Відвідуваністьзалипень[18],\"ПП\")","v":0},{"$f":"COUNTIF(Відвідуваністьзалипень[19],\"П\")+COUNTIF(Відвідуваністьзалипень[19],\"ПП\")","v":0},{"$f":"COUNTIF(Відвідуваністьзалипень[20],\"П\")+COUNTIF(Відвідуваністьзалипень[20],\"ПП\")","v":0},{"$f":"COUNTIF(Відвідуваністьзалипень[21],\"П\")+COUNTIF(Відвідуваністьзалипень[21],\"ПП\")","v":0},{"$f":"COUNTIF(Відвідуваністьзалипень[22],\"П\")+COUNTIF(Відвідуваністьзалипень[22],\"ПП\")","v":0},{"$f":"COUNTIF(Відвідуваністьзалипень[23],\"П\")+COUNTIF(Відвідуваністьзалипень[23],\"ПП\")","v":0},{"$f":"COUNTIF(Відвідуваністьзалипень[24],\"П\")+COUNTIF(Відвідуваністьзалипень[24],\"ПП\")","v":0},{"$f":"COUNTIF(Відвідуваністьзалипень[25],\"П\")+COUNTIF(Відвідуваністьзалипень[25],\"ПП\")","v":0},{"$f":"COUNTIF(Відвідуваністьзалипень[26],\"П\")+COUNTIF(Відвідуваністьзалипень[26],\"ПП\")","v":0},{"$f":"COUNTIF(Відвідуваністьзалипень[27],\"П\")+COUNTIF(Відвідуваністьзалипень[27],\"ПП\")","v":0},{"$f":"COUNTIF(Відвідуваністьзалипень[28],\"П\")+COUNTIF(Відвідуваністьзалипень[28],\"ПП\")","v":0},{"$f":"COUNTIF(Відвідуваністьзалипень[29],\"П\")+COUNTIF(Відвідуваністьзалипень[29],\"ПП\")","v":0},{"$f":"COUNTIF(Відвідуваністьзалипень[30],\"П\")+COUNTIF(Відвідуваністьзалипень[30],\"ПП\")","v":0},{"$f":"COUNTIF(Відвідуваністьзалипень[31],\"П\")+COUNTIF(Відвідуваністьзалипень[31],\"ПП\")","v":0},{"$f":"SUBTOTAL(109,Відвідуваністьзалипень[З])","v":0},{"$f":"SUBTOTAL(109,Відвідуваністьзалипень[ПП])","v":0},{"$f":"SUBTOTAL(109,Відвідуваністьзалипень[П])","v":0},{"$f":"SUBTOTAL(109,Відвідуваністьзалипень[Н])","v":0},{"$f":"SUBTOTAL(109,Відвідуваністьзалипень[Відсутність, дн.])","v":0}]

{"sheet":"Звіт про відвідуваність","index":14,"n_rows":40,"n_cols":37,"rows_kept":40,"merged":[[2,3,2,14],[2,15,2,17],[2,18,2,21],[2,22,2,29],[2,30,2,31],[2,32,2,35],[3,1,3,2],[3,3,3,14],[3,15,3,17],[3,18,3,21],[3,22,3,29],[3,30,3,31],[3,32,3,35],[4,1,4,9],[4,10,4,21],[4,22,4,29],[4,30,4,36],[5,1,5,9],[5,10,5,21],[5,22,5,29],[5,30,5,36],[6,1,6,9],[6,10,6,21],[6,22,6,29],[6,30,6,36],[7,1,7,9],[7,10,7,21],[7,22,7,29],[7,30,7,36],[8,1,8,9],[8,10,8,21],[8,22,8,29],[8,30,8,36],[9,1,9,9],[9,10,9,21],[9,22,9,29],[9,30,9,36],[13,1,14,32],[13,33,13,36],[15,1,16,1],[15,33,16,33],[15,34,16,34],[15,35,16,35],[15,36,16,36],[17,1,18,1],[17,33,18,33],[17,34,18,34],[17,35,18,35],[17,36,18,36],[19,1,20,1],[19,33,20,33],[19,34,20,34],[19,35,20,35],[19,36,20,36],[21,1,22,1],[21,33,22,33],[21,34,22,34],[21,35,22,35],[21,36,22,36],[23,1,24,1],[23,33,24,33],[23,34,24,34],[23,35,24,35],[23,36,24,36],[25,1,26,1],[25,33,26,33],[25,34,26,34],[25,35,26,35],[25,36,26,36],[27,1,28,1],[27,33,28,33],[27,34,28,34],[27,35,28,35],[27,36,28,36],[29,1,30,1],[29,33,30,33],[29,34,30,34],[29,35,30,35],[29,36,30,36],[31,1,32,1],[31,33,32,33],[31,34,32,34],[31,35,32,35],[31,36,32,36],[33,1,34,1],[33,33,34,33],[33,34,34,34],[33,35,34,35],[33,36,34,36],[35,1,36,1],[35,33,36,33],[35,34,36,34],[35,35,36,35],[35,36,36,36],[37,1,38,1],[37,33,38,33],[37,34,38,34],[37,35,38,35],[37,36,38,36],[39,30,39,32]]}
[{"$f":"\"Звіт про відвідуваність занять: \"","v":"Звіт про відвідуваність занять: "},{"$nulls":11},{"$f":"D4","v":"Ігор Олександров"}]
[]
[null,"Код студента",null,"Ім’я студента",{"$nulls":11},"Стать",null,null,"Дата народження",{"$nulls":3},"Школа",{"$nulls":7},"Клас",null,"Викладач",{"$nulls":3},"№ аудиторії"]
[null,"С001",null,{"$f":"IFERROR(VLOOKUP(Пошукстудента,Перелікстудентів[],18,FALSE),\"\")","v":"Ігор Олександров"},{"$nulls":11},{"$f":"IFERROR(VLOOKUP(Пошукстудента,Перелікстудентів[],4,FALSE),\"\")","v":"Ч"},null,null,{"$f":"IFERROR(VLOOKUP(Пошукстудента,Перелікстудентів[],5,FALSE),\"\")","v":"1997-03-28"},{"$nulls":3},"Школа образотворчого мистецтва",{"$nulls":7},7,null,"Арсеній Стародуб",{"$nulls":3},123]
[null,"Ім’я батька/матері/опікуна1",{"$nulls":8},"Відносини",{"$nulls":11},"Робочий телефон",{"$nulls":7},"Домашній телефон"]
[null,{"$f":"IFERROR(VLOOKUP(Пошукстудента,Перелікстудентів[],6,FALSE),\"\")","v":"Василина"},{"$nulls":8},{"$f":"IFERROR(VLOOKUP(Пошукстудента,Перелікстудентів[],7,FALSE),\"\")","v":"Олександров"},{"$nulls":11},{"$f":"IFERROR(VLOOKUP(Пошукстудента,Перелікстудентів[],8,FALSE),\"\")","v":1235550134},{"$nulls":7},{"$f":"IFERROR(VLOOKUP(Пошукстудента,Перелікстудентів[],9,FALSE),\"\")","v":2345550134}]
[null,"Ім’я батька/матері/опікуна2",{"$nulls":8},"Відносини",{"$nulls":11},"Робочий телефон",{"$nulls":7},"Домашній телефон"]
[null,{"$f":"IFERROR(VLOOKUP(Пошукстудента,Перелікстудентів[],10,FALSE),\"\")","v":"Михайло Олександров"},{"$nulls":8},{"$f":"IFERROR(VLOOKUP(Пошукстудента,Перелікстудентів[],11,FALSE),\"\")","v":"Батько"},{"$nulls":11},{"$f":"IFERROR(VLOOKUP(Пошукстудента,Перелікстудентів[],12,FALSE),\"\")","v":1235550134},{"$nulls":7},{"$f":"IFERROR(VLOOKUP(Пошукстудента,Перелікстудентів[],13,FALSE),\"\")","v":2345550134}]
[null,"В екстрених ситуаціях телефонувати",{"$nulls":8},"Відносини",{"$nulls":11},"Робочий телефон",{"$nulls":7},"Домашній телефон"]
[null,{"$f":"IFERROR(VLOOKUP(Пошукстудента,Перелікстудентів[],14,FALSE),\"\")","v":"Василь Ступкар"},{"$nulls":8},{"$f":"IFERROR(VLOOKUP(Пошукстудента,Перелікстудентів[],15,FALSE),\"\")","v":"Дідусь"},{"$nulls":11},{"$f":"IFERROR(VLOOKUP(Пошукстудента,Перелікстудентів[],16,FALSE),\"\")","v":7895550189},{"$nulls":7},{"$f":"IFERROR(VLOOKUP(Пошукстудента,Перелікстудентів[],17,FALSE),\"\")","v":7895550134}]
[]
[null,{"$f":"Серпень!C3","v":"ПОЯСНЕННЯ ДО КОЛЬОРІВ"},{"$nulls":4},{"$f":"Серпень!D3","v":"З"},{"$f":"Серпень!E3","v":"Запізнення"},null,null,{"$f":"Серпень!H3","v":"ПП"},{"$f":"Серпень!I3","v":"Поважна причина"},{"$nulls":4},{"$f":"Серпень!M3","v":"П"},{"$f":"Серпень!N3","v":"Прогул"},{"$nulls":3},{"$f":"Серпень!Q3","v":"Н"},{"$f":"Серпень!R3","v":"На місці"},null,null,{"$f":"Серпень!U3","v":"В"},{"$f":"Серпень!V3","v":"Вихідний"}]
[]
[null,"Відвідування",{"$nulls":31},"Усього відвідав занять"]
[{"$nulls":33},"З","ПП","П","Н"]
[null,"Серпень",1,2,3,4,5,6,7,8,9,10,11,12,13,14,15,16,17,18,19,20,21,22,23,24,25,26,27,28,29,30,31,{"$f":"COUNTIF($D17:$AH17,Код1)","v":2},{"$f":"COUNTIF($D17:$AH17,Код2)","v":1},{"$f":"COUNTIF($D17:$AH17,Код3)","v":0},{"$f":"COUNTIF($D17:$AH17,Код4)","v":19}]
[null,null,{"$f":"IFERROR(VLOOKUP(Пошукстудента,Відвідуваністьзасерпень[],3,FALSE),\"\")","v":"Н"},{"$f":"IFERROR(VLOOKUP(Пошукстудента,Відвідуваністьзасерпень[],4,FALSE),\"\")","v":"Н"},{"$f":"IFERROR(VLOOKUP(Пошукстудента,Відвідуваністьзасерпень[],5,FALSE),\"\")","v":"З"},{"$f":"IFERROR(VLOOKUP(Пошукстудента,Відвідуваністьзасерпень[],6,FALSE),\"\")","v":"З"},{"$f":"IFERROR(VLOOKUP(Пошукстудента,Відвідуваністьзасерпень[],7,FALSE),\"\")","v":"Н"},{"$f":"IFERROR(VLOOKUP(Пошукстудента,Відвідуваністьзасерпень[],8,FALSE),\"\")","v":"В"},{"$f":"IFERROR(VLOOKUP(Пошукстудента,Відвідуваністьзасерпень[],9,FALSE),\"\")","v":"В"},{"$f":"IFERROR(VLOOKUP(Пошукстудента,Відвідуваністьзасерпень[],10,FALSE),\"\")","v":"Н"},{"$f":"IFERROR(VLOOKUP(Пошукстудента,Відвідуваністьзасерпень[],11,FALSE),\"\")","v":"Н"},{"$f":"IFERROR(VLOOKUP(Пошукстудента,Відвідуваністьзасерпень[],12,FALSE),\"\")","v":"ПП"},{"$f":"IFERROR(VLOOKUP(Пошукстудента,Відвідуваністьзасерпень[],13,FALSE),\"\")","v":"Н"},{"$f":"IFERROR(VLOOKUP(Пошукстудента,Відвідуваністьзасерпень[],14,FALSE),\"\")","v":"Н"},{"$f":"IFERROR(VLOOKUP(Пошукстудента,Відвідуваністьзасерпень[],15,FALSE),\"\")","v":"В"},{"$f":"IFERROR(VLOOKUP(Пошукстудента,Відвідуваністьзасерпень[],16,FALSE),\"\")","v":"В"},{"$f":"IFERROR(VLOOKUP(Пошукстудента,Відвідуваністьзасерпень[],17,FALSE),\"\")","v":"Н"},{"$f":"IFERROR(VLOOKUP(Пошукстудента,Відвідуваністьзасерпень[],18,FALSE),\"\")","v":"Н"},{"$f":"IFERROR(VLOOKUP(Пошукстудента,Відвідуваністьзасерпень[],19,FALSE),\"\")","v":"Н"},{"$f":"IFERROR(VLOOKUP(Пошукстудента,Відвідуваністьзасерпень[],20,FALSE),\"\")","v":"Н"},{"$f":"IFERROR(VLOOKUP(Пошукстудента,Відвідуваністьзасерпень[],21,FALSE),\"\")","v":"Н"},{"$f":"IFERROR(VLOOKUP(Пошукстудента,Відвідуваністьзасерпень[],22,FALSE),\"\")","v":"В"},{"$f":"IFERROR(VLOOKUP(Пошукстудента,Відвідуваністьзасерпень[],23,FALSE),\"\")","v":"В"},{"$f":"IFERROR(VLOOKUP(Пошукстудента,Відвідуваністьзасерпень[],24,FALSE),\"\")","v":"Н"},{"$f":"IFERROR(VLOOKUP(Пошукстудента,Відвідуваністьзасерпень[],25,FALSE),\"\")","v":"Н"},{"$f":"IFERROR(VLOOKUP(Пошукстудента,Відвідуваністьзасерпень[],26,FALSE),\"\")","v":"Н"},{"$f":"IFERROR(VLOOKUP(Пошукстудента,Відвідуваністьзасерпень[],27,FALSE),\"\")","v":"Н"},{"$f":"IFERROR(VLOOKUP(Пошукстудента,Відвідуваністьзасерпень[],28,FALSE),\"\")","v":"Н"},{"$f":"IFERROR(VLOOKUP(Пошукстудента,Відвідуваністьзасерпень[],29,FALSE),\"\")","v":"В"},{"$f":"IFERROR(VLOOKUP(Пошукстудента,Відвідуваністьзасерпень[],30,FALSE),\"\")","v":"В"},{"$f":"IFERROR(VLOOKUP(Пошукстудента,Відвідуваністьзасерпень[],31,FALSE),\"\")","v":"Н"},{"$f":"IFERROR(VLOOKUP(Пошукстудента,Відвідуваністьзасерпень[],32,FALSE),\"\")","v":"Н"},{"$f":"IFERROR(VLOOKUP(Пошукстудента,Відвідуваністьзасерпень[],33,FALSE),\"\")","v":"Н"}]
[null,"Вересень",1,2,3,4,5,6,7,8,9,10,11,12,13,14,15,16,17,18,19,20,21,22,23,24,25,26,27,28,29,30,null,{"$f":"COUNTIF($D19:$AH19,Код1)","v":0},{"$f":"COUNTIF($D19:$AH19,Код2)","v":0},{"$f":"COUNTIF($D19:$AH19,Код3)","v":0},{"$f":"COUNTIF($D19:$AH19,Код4)","v":0}]
[null,null,{"$f":"IFERROR(VLOOKUP(Пошукстудента,Відвідуваністьзавересень[],3,FALSE),\"\")","v":""},{"$f":"IFERROR(VLOOKUP(Пошукстудента,Відвідуваністьзавересень[],4,FALSE),\"\")","v":""},{"$f":"IFERROR(VLOOKUP(Пошукстудента,Відвідуваністьзавересень[],5,FALSE),\"\")","v":""},{"$f":"IFERROR(VLOOKUP(Пошукстудента,Відвідуваністьзавересень[],6,FALSE),\"\")","v":""},{"$f":"IFERROR(VLOOKUP(Пошукстудента,Відвідуваністьзавересень[],7,FALSE),\"\")","v":""},{"$f":"IFERROR(VLOOKUP(Пошукстудента,Відвідуваністьзавересень[],8,FALSE),\"\")","v":""},{"$f":"IFERROR(VLOOKUP(Пошукстудента,Відвідуваністьзавересень[],9,FALSE),\"\")","v":""},{"$f":"IFERROR(VLOOKUP(Пошукстудента,Відвідуваністьзавересень[],10,FALSE),\"\")","v":""},{"$f":"IFERROR(VLOOKUP(Пошукстудента,Відвідуваністьзавересень[],11,FALSE),\"\")","v":""},{"$f":"IFERROR(VLOOKUP(Пошукстудента,Відвідуваністьзавересень[],12,FALSE),\"\")","v":""},{"$f":"IFERROR(VLOOKUP(Пошукстудента,Відвідуваністьзавересень[],13,FALSE),\"\")","v":""},{"$f":"IFERROR(VLOOKUP(Пошукстудента,Відвідуваністьзавересень[],14,FALSE),\"\")","v":""},{"$f":"IFERROR(VLOOKUP(Пошукстудента,Відвідуваністьзавересень[],15,FALSE),\"\")","v":""},{"$f":"IFERROR(VLOOKUP(Пошукстудента,Відвідуваністьзавересень[],16,FALSE),\"\")","v":""},{"$f":"IFERROR(VLOOKUP(Пошукстудента,Відвідуваністьзавересень[],17,FALSE),\"\")","v":""},{"$f":"IFERROR(VLOOKUP(Пошукстудента,Відвідуваністьзавересень[],18,FALSE),\"\")","v":""},{"$f":"IFERROR(VLOOKUP(Пошукстудента,Відвідуваністьзавересень[],19,FALSE),\"\")","v":""},{"$f":"IFERROR(VLOOKUP(Пошукстудента,Відвідуваністьзавересень[],20,FALSE),\"\")","v":""},{"$f":"IFERROR(VLOOKUP(Пошукстудента,Відвідуваністьзавересень[],21,FALSE),\"\")","v":""},{"$f":"IFERROR(VLOOKUP(Пошукстудента,Відвідуваністьзавересень[],22,FALSE),\"\")","v":""},{"$f":"IFERROR(VLOOKUP(Пошукстудента,Відвідуваністьзавересень[],23,FALSE),\"\")","v":""},{"$f":"IFERROR(VLOOKUP(Пошукстудента,Відвідуваністьзавересень[],24,FALSE),\"\")","v":""},{"$f":"IFERROR(VLOOKUP(Пошукстудента,Відвідуваністьзавересень[],25,FALSE),\"\")","v":""},{"$f":"IFERROR(VLOOKUP(Пошукстудента,Відвідуваністьзавересень[],26,FALSE),\"\")","v":""},{"$f":"IFERROR(VLOOKUP(Пошукстудента,Відвідуваністьзавересень[],27,FALSE),\"\")","v":""},{"$f":"IFERROR(VLOOKUP(Пошукстудента,Відвідуваністьзавересень[],28,FALSE),\"\")","v":""},{"$f":"IFERROR(VLOOKUP(Пошукстудента,Відвідуваністьзавересень[],29,FALSE),\"\")","v":""},{"$f":"IFERROR(VLOOKUP(Пошукстудента,Відвідуваністьзавересень[],30,FALSE),\"\")","v":""},{"$f":"IFERROR(VLOOKUP(Пошукстудента,Відвідуваністьзавересень[],31,FALSE),\"\")","v":""},{"$f":"IFERROR(VLOOKUP(Пошукстудента,Відвідуваністьзавересень[],32,FALSE),\"\")","v":""}]
[null,"Жовтень",1,2,3,4,5,6,7,8,9,10,11,12,13,14,15,16,17,18,19,20,21,22,23,24,25,26,27,28,29,30,31,{"$f":"COUNTIF($D21:$AH21,Код1)","v":0},{"$f":"COUNTIF($D21:$AH21,Код2)","v":0},{"$f":"COUNTIF($D21:$AH21,Код3)","v":0},{"$f":"COUNTIF($D21:$AH21,Код4)","v":0}]
[null,null,{"$f":"IFERROR(VLOOKUP(Пошукстудента,Відвідуваністьзажовтень[],3,FALSE),\"\")","v":""},{"$f":"IFERROR(VLOOKUP(Пошукстудента,Відвідуваністьзажовтень[],4,FALSE),\"\")","v":""},{"$f":"IFERROR(VLOOKUP(Пошукстудента,Відвідуваністьзажовтень[],5,FALSE),\"\")","v":""},{"$f":"IFERROR(VLOOKUP(Пошукстудента,Відвідуваністьзажовтень[],6,FALSE),\"\")","v":""},{"$f":"IFERROR(VLOOKUP(Пошукстудента,Відвідуваністьзажовтень[],7,FALSE),\"\")","v":""},{"$f":"IFERROR(VLOOKUP(Пошукстудента,Відвідуваністьзажовтень[],8,FALSE),\"\")","v":""},{"$f":"IFERROR(VLOOKUP(Пошукстудента,Відвідуваністьзажовтень[],9,FALSE),\"\")","v":""},{"$f":"IFERROR(VLOOKUP(Пошукстудента,Відвідуваністьзажовтень[],10,FALSE),\"\")","v":""},{"$f":"IFERROR(VLOOKUP(Пошукстудента,Відвідуваністьзажовтень[],11,FALSE),\"\")","v":""},{"$f":"IFERROR(VLOOKUP(Пошукстудента,Відвідуваністьзажовтень[],12,FALSE),\"\")","v":""},{"$f":"IFERROR(VLOOKUP(Пошукстудента,Відвідуваністьзажовтень[],13,FALSE),\"\")","v":""},{"$f":"IFERROR(VLOOKUP(Пошукстудента,Відвідуваністьзажовтень[],14,FALSE),\"\")","v":""},{"$f":"IFERROR(VLOOKUP(Пошукстудента,Відвідуваністьзажовтень[],15,FALSE),\"\")","v":""},{"$f":"IFERROR(VLOOKUP(Пошукстудента,Відвідуваністьзажовтень[],16,FALSE),\"\")","v":""},{"$f":"IFERROR(VLOOKUP(Пошукстудента,Відвідуваністьзажовтень[],17,FALSE),\"\")","v":""},{"$f":"IFERROR(VLOOKUP(Пошукстудента,Відвідуваністьзажовтень[],18,FALSE),\"\")","v":""},{"$f":"IFERROR(VLOOKUP(Пошукстудента,Відвідуваністьзажовтень[],19,FALSE),\"\")","v":""},{"$f":"IFERROR(VLOOKUP(Пошукстудента,Відвідуваністьзажовтень[],20,FALSE),\"\")","v":""},{"$f":"IFERROR(VLOOKUP(Пошукстудента,Відвідуваністьзажовтень[],21,FALSE),\"\")","v":""},{"$f":"IFERROR(VLOOKUP(Пошукстудента,Відвідуваністьзажовтень[],22,FALSE),\"\")","v":""},{"$f":"IFERROR(VLOOKUP(Пошукстудента,Відвідуваністьзажовтень[],23,FALSE),\"\")","v":""},{"$f":"IFERROR(VLOOKUP(Пошукстудента,Відвідуваністьзажовтень[],24,FALSE),\"\")","v":""},{"$f":"IFERROR(VLOOKUP(Пошукстудента,Відвідуваністьзажовтень[],25,FALSE),\"\")","v":""},{"$f":"IFERROR(VLOOKUP(Пошукстудента,Відвідуваністьзажовтень[],26,FALSE),\"\")","v":""},{"$f":"IFERROR(VLOOKUP(Пошукстудента,Відвідуваністьзажовтень[],27,FALSE),\"\")","v":""},{"$f":"IFERROR(VLOOKUP(Пошукстудента,Відвідуваністьзажовтень[],28,FALSE),\"\")","v":""},{"$f":"IFERROR(VLOOKUP(Пошукстудента,Відвідуваністьзажовтень[],29,FALSE),\"\")","v":""},{"$f":"IFERROR(VLOOKUP(Пошукстудента,Відвідуваністьзажовтень[],30,FALSE),\"\")","v":""},{"$f":"IFERROR(VLOOKUP(Пошукстудента,Відвідуваністьзажовтень[],31,FALSE),\"\")","v":""},{"$f":"IFERROR(VLOOKUP(Пошукстудента,Відвідуваністьзажовтень[],32,FALSE),\"\")","v":""},{"$f":"IFERROR(VLOOKUP(Пошукстудента,Відвідуваністьзажовтень[],33,FALSE),\"\")","v":""}]
[null,"Листопад",1,2,3,4,5,6,7,8,9,10,11,12,13,14,15,16,17,18,19,20,21,22,23,24,25,26,27,28,29,30,null,{"$f":"COUNTIF($D23:$AH23,Код1)","v":0},{"$f":"COUNTIF($D23:$AH23,Код2)","v":0},{"$f":"COUNTIF($D23:$AH23,Код3)","v":0},{"$f":"COUNTIF($D23:$AH23,Код4)","v":0}]
[null,null,{"$f":"IFERROR(VLOOKUP(Пошукстудента,Відвідуваністьзалистопад[],3,FALSE),\"\")","v":""},{"$f":"IFERROR(VLOOKUP(Пошукстудента,Відвідуваністьзалистопад[],4,FALSE),\"\")","v":""},{"$f":"IFERROR(VLOOKUP(Пошукстудента,Відвідуваністьзалистопад[],5,FALSE),\"\")","v":""},{"$f":"IFERROR(VLOOKUP(Пошукстудента,Відвідуваністьзалистопад[],6,FALSE),\"\")","v":""},{"$f":"IFERROR(VLOOKUP(Пошукстудента,Відвідуваністьзалистопад[],7,FALSE),\"\")","v":""},{"$f":"IFERROR(VLOOKUP(Пошукстудента,Відвідуваністьзалистопад[],8,FALSE),\"\")","v":""},{"$f":"IFERROR(VLOOKUP(Пошукстудента,Відвідуваністьзалистопад[],9,FALSE),\"\")","v":""},{"$f":"IFERROR(VLOOKUP(Пошукстудента,Відвідуваністьзалистопад[],10,FALSE),\"\")","v":""},{"$f":"IFERROR(VLOOKUP(Пошукстудента,Відвідуваністьзалистопад[],11,FALSE),\"\")","v":""},{"$f":"IFERROR(VLOOKUP(Пошукстудента,Відвідуваністьзалистопад[],12,FALSE),\"\")","v":""},{"$f":"IFERROR(VLOOKUP(Пошукстудента,Відвідуваністьзалистопад[],13,FALSE),\"\")","v":""},{"$f":"IFERROR(VLOOKUP(Пошукстудента,Відвідуваністьзалистопад[],14,FALSE),\"\")","v":""},{"$f":"IFERROR(VLOOKUP(Пошукстудента,Відвідуваністьзалистопад[],15,FALSE),\"\")","v":""},{"$f":"IFERROR(VLOOKUP(Пошукстудента,Відвідуваністьзалистопад[],16,FALSE),\"\")","v":""},{"$f":"IFERROR(VLOOKUP(Пошукстудента,Відвідуваністьзалистопад[],17,FALSE),\"\")","v":""},{"$f":"IFERROR(VLOOKUP(Пошукстудента,Відвідуваністьзалистопад[],18,FALSE),\"\")","v":""},{"$f":"IFERROR(VLOOKUP(Пошукстудента,Відвідуваністьзалистопад[],19,FALSE),\"\")","v":""},{"$f":"IFERROR(VLOOKUP(Пошукстудента,Відвідуваністьзалистопад[],20,FALSE),\"\")","v":""},{"$f":"IFERROR(VLOOKUP(Пошукстудента,Відвідуваністьзалистопад[],21,FALSE),\"\")","v":""},{"$f":"IFERROR(VLOOKUP(Пошукстудента,Відвідуваністьзалистопад[],22,FALSE),\"\")","v":""},{"$f":"IFERROR(VLOOKUP(Пошукстудента,Відвідуваністьзалистопад[],23,FALSE),\"\")","v":""},{"$f":"IFERROR(VLOOKUP(Пошукстудента,Відвідуваністьзалистопад[],24,FALSE),\"\")","v":""},{"$f":"IFERROR(VLOOKUP(Пошукстудента,Відвідуваністьзалистопад[],25,FALSE),\"\")","v":""},{"$f":"IFERROR(VLOOKUP(Пошукстудента,Відвідуваністьзалистопад[],26,FALSE),\"\")","v":""},{"$f":"IFERROR(VLOOKUP(Пошукстудента,Відвідуваністьзалистопад[],27,FALSE),\"\")","v":""},{"$f":"IFERROR(VLOOKUP(Пошукстудента,Відвідуваністьзалистопад[],28,FALSE),\"\")","v":""},{"$f":"IFERROR(VLOOKUP(Пошукстудента,Відвідуваністьзалистопад[],29,FALSE),\"\")","v":""},{"$f":"IFERROR(VLOOKUP(Пошукстудента,Відвідуваністьзалистопад[],30,FALSE),\"\")","v":""},{"$f":"IFERROR(VLOOKUP(Пошукстудента,Відвідуваністьзалистопад[],31,FALSE),\"\")","v":""},{"$f":"IFERROR(VLOOKUP(Пошукстудента,Відвідуваністьзалистопад[],32,FALSE),\"\")","v":""}]
[null,"Грудень",1,2,3,4,5,6,7,8,9,10,11,12,13,14,15,16,17,18,19,20,21,22,23,24,25,26,27,28,29,30,31,{"$f":"COUNTIF($D25:$AH25,Код1)","v":0},{"$f":"COUNTIF($D25:$AH25,Код2)","v":0},{"$f":"COUNTIF($D25:$AH25,Код3)","v":0},{"$f":"COUNTIF($D25:$AH25,Код4)","v":0}]
[null,null,{"$f":"IFERROR(VLOOKUP(Пошукстудента,Відвідуваністьзагрудень[],3,FALSE),\"\")","v":""},{"$f":"IFERROR(VLOOKUP(Пошукстудента,Відвідуваністьзагрудень[],4,FALSE),\"\")","v":""},{"$f":"IFERROR(VLOOKUP(Пошукстудента,Відвідуваністьзагрудень[],5,FALSE),\"\")","v":""},{"$f":"IFERROR(VLOOKUP(Пошукстудента,Відвідуваністьзагрудень[],6,FALSE),\"\")","v":""},{"$f":"IFERROR(VLOOKUP(Пошукстудента,Відвідуваністьзагрудень[],7,FALSE),\"\")","v":""},{"$f":"IFERROR(VLOOKUP(Пошукстудента,Відвідуваністьзагрудень[],8,FALSE),\"\")","v":""},{"$f":"IFERROR(VLOOKUP(Пошукстудента,Відвідуваністьзагрудень[],9,FALSE),\"\")","v":""},{"$f":"IFERROR(VLOOKUP(Пошукстудента,Відвідуваністьзагрудень[],10,FALSE),\"\")","v":""},{"$f":"IFERROR(VLOOKUP(Пошукстудента,Відвідуваністьзагрудень[],11,FALSE),\"\")","v":""},{"$f":"IFERROR(VLOOKUP(Пошукстудента,Відвідуваністьзагрудень[],12,FALSE),\"\")","v":""},{"$f":"IFERROR(VLOOKUP(Пошукстудента,Відвідуваністьзагрудень[],13,FALSE),\"\")","v":""},{"$f":"IFERROR(VLOOKUP(Пошукстудента,Відвідуваністьзагрудень[],14,FALSE),\"\")","v":""},{"$f":"IFERROR(VLOOKUP(Пошукстудента,Відвідуваністьзагрудень[],15,FALSE),\"\")","v":""},{"$f":"IFERROR(VLOOKUP(Пошукстудента,Відвідуваністьзагрудень[],16,FALSE),\"\")","v":""},{"$f":"IFERROR(VLOOKUP(Пошукстудента,Відвідуваністьзагрудень[],17,FALSE),\"\")","v":""},{"$f":"IFERROR(VLOOKUP(Пошукстудента,Відвідуваністьзагрудень[],18,FALSE),\"\")","v":""},{"$f":"IFERROR(VLOOKUP(Пошукстудента,Відвідуваністьзагрудень[],19,FALSE),\"\")","v":""},{"$f":"IFERROR(VLOOKUP(Пошукстудента,Відвідуваністьзагрудень[],20,FALSE),\"\")","v":""},{"$f":"IFERROR(VLOOKUP(Пошукстудента,Відвідуваністьзагрудень[],21,FALSE),\"\")","v":""},{"$f":"IFERROR(VLOOKUP(Пошукстудента,Відвідуваністьзагрудень[],22,FALSE),\"\")","v":""},{"$f":"IFERROR(VLOOKUP(Пошукстудента,Відвідуваністьзагрудень[],23,FALSE),\"\")","v":""},{"$f":"IFERROR(VLOOKUP(Пошукстудента,Відвідуваністьзагрудень[],24,FALSE),\"\")","v":""},{"$f":"IFERROR(VLOOKUP(Пошукстудента,Відвідуваністьзагрудень[],25,FALSE),\"\")","v":""},{"$f":"IFERROR(VLOOKUP(Пошукстудента,Відвідуваністьзагрудень[],26,FALSE),\"\")","v":""},{"$f":"IFERROR(VLOOKUP(Пошукстудента,Відвідуваністьзагрудень[],27,FALSE),\"\")","v":""},{"$f":"IFERROR(VLOOKUP(Пошукстудента,Відвідуваністьзагрудень[],28,FALSE),\"\")","v":""},{"$f":"IFERROR(VLOOKUP(Пошукстудента,Відвідуваністьзагрудень[],29,FALSE),\"\")","v":""},{"$f":"IFERROR(VLOOKUP(Пошукстудента,Відвідуваністьзагрудень[],30,FALSE),\"\")","v":""},{"$f":"IFERROR(VLOOKUP(Пошукстудента,Відвідуваністьзагрудень[],31,FALSE),\"\")","v":""},{"$f":"IFERROR(VLOOKUP(Пошукстудента,Відвідуваністьзагрудень[],32,FALSE),\"\")","v":""},{"$f":"IFERROR(VLOOKUP(Пошукстудента,Відвідуваністьзагрудень[],33,FALSE),\"\")","v":""}]
[null,"Січень",1,2,3,4,5,6,7,8,9,10,11,12,13,14,15,16,17,18,19,20,21,22,23,24,25,26,27,28,29,30,31,{"$f":"COUNTIF($D27:$AH27,Код1)","v":0},{"$f":"COUNTIF($D27:$AH27,Код2)","v":0},{"$f":"COUNTIF($D27:$AH27,Код3)","v":0},{"$f":"COUNTIF($D27:$AH27,Код4)","v":0}]
[null,null,{"$f":"IFERROR(VLOOKUP(Пошукстудента,Відвідуваністьзасічень[],3,FALSE),\"\")","v":""},{"$f":"IFERROR(VLOOKUP(Пошукстудента,Відвідуваністьзасічень[],4,FALSE),\"\")","v":""},{"$f":"IFERROR(VLOOKUP(Пошукстудента,Відвідуваністьзасічень[],5,FALSE),\"\")","v":""},{"$f":"IFERROR(VLOOKUP(Пошукстудента,Відвідуваністьзасічень[],6,FALSE),\"\")","v":""},{"$f":"IFERROR(VLOOKUP(Пошукстудента,Відвідуваністьзасічень[],7,FALSE),\"\")","v":""},{"$f":"IFERROR(VLOOKUP(Пошукстудента,Відвідуваністьзасічень[],8,FALSE),\"\")","v":""},{"$f":"IFERROR(VLOOKUP(Пошукстудента,Відвідуваністьзасічень[],9,FALSE),\"\")","v":""},{"$f":"IFERROR(VLOOKUP(Пошукстудента,Відвідуваністьзасічень[],10,FALSE),\"\")","v":""},{"$f":"IFERROR(VLOOKUP(Пошукстудента,Відвідуваністьзасічень[],11,FALSE),\"\")","v":""},{"$f":"IFERROR(VLOOKUP(Пошукстудента,Відвідуваністьзасічень[],12,FALSE),\"\")","v":""},{"$f":"IFERROR(VLOOKUP(Пошукстудента,Відвідуваністьзасічень[],13,FALSE),\"\")","v":""},{"$f":"IFERROR(VLOOKUP(Пошукстудента,Відвідуваністьзасічень[],14,FALSE),\"\")","v":""},{"$f":"IFERROR(VLOOKUP(Пошукстудента,Відвідуваністьзасічень[],15,FALSE),\"\")","v":""},{"$f":"IFERROR(VLOOKUP(Пошукстудента,Відвідуваністьзасічень[],16,FALSE),\"\")","v":""},{"$f":"IFERROR(VLOOKUP(Пошукстудента,Відвідуваністьзасічень[],17,FALSE),\"\")","v":""},{"$f":"IFERROR(VLOOKUP(Пошукстудента,Відвідуваністьзасічень[],18,FALSE),\"\")","v":""},{"$f":"IFERROR(VLOOKUP(Пошукстудента,Відвідуваністьзасічень[],19,FALSE),\"\")","v":""},{"$f":"IFERROR(VLOOKUP(Пошукстудента,Відвідуваністьзасічень[],20,FALSE),\"\")","v":""},{"$f":"IFERROR(VLOOKUP(Пошукстудента,Відвідуваністьзасічень[],21,FALSE),\"\")","v":""},{"$f":"IFERROR(VLOOKUP(Пошукстудента,Відвідуваністьзасічень[],22,FALSE),\"\")","v":""},{"$f":"IFERROR(VLOOKUP(Пошукстудента,Відвідуваністьзасічень[],23,FALSE),\"\")","v":""},{"$f":"IFERROR(VLOOKUP(Пошукстудента,Відвідуваністьзасічень[],24,FALSE),\"\")","v":""},{"$f":"IFERROR(VLOOKUP(Пошукстудента,Відвідуваністьзасічень[],25,FALSE),\"\")","v":""},{"$f":"IFERROR(VLOOKUP(Пошукстудента,Відвідуваністьзасічень[],26,FALSE),\"\")","v":""},{"$f":"IFERROR(VLOOKUP(Пошукстудента,Відвідуваністьзасічень[],27,FALSE),\"\")","v":""},{"$f":"IFERROR(VLOOKUP(Пошукстудента,Відвідуваністьзасічень[],28,FALSE),\"\")","v":""},{"$f":"IFERROR(VLOOKUP(Пошукстудента,Відвідуваністьзасічень[],29,FALSE),\"\")","v":""},{"$f":"IFERROR(VLOOKUP(Пошукстудента,Відвідуваністьзасічень[],30,FALSE),\"\")","v":""},{"$f":"IFERROR(VLOOKUP(Пошукстудента,Відвідуваністьзасічень[],31,FALSE),\"\")","v":""},{"$f":"IFERROR(VLOOKUP(Пошукстудента,Відвідуваністьзасічень[],32,FALSE),\"\")","v":""},{"$f":"IFERROR(VLOOKUP(Пошукстудента,Відвідуваністьзасічень[],33,FALSE),\"\")","v":""}]
[null,"Лютий",1,2,3,4,5,6,7,8,9,10,11,12,13,14,15,16,17,18,19,20,21,22,23,24,25,26,27,28,29,null,null,{"$f":"COUNTIF($D29:$AH29,Код1)","v":0},{"$f":"COUNTIF($D29:$AH29,Код2)","v":0},{"$f":"COUNTIF($D29:$AH29,Код3)","v":0},{"$f":"COUNTIF($D29:$AH29,Код4)","v":0}]
[null,null,{"$f":"IFERROR(VLOOKUP(Пошукстудента,Відвідуваністьзалютий[],3,FALSE),\"\")","v":""},{"$f":"IFERROR(VLOOKUP(Пошукстудента,Відвідуваністьзалютий[],4,FALSE),\"\")","v":""},{"$f":"IFERROR(VLOOKUP(Пошукстудента,Відвідуваністьзалютий[],5,FALSE),\"\")","v":""},{"$f":"IFERROR(VLOOKUP(Пошукстудента,Відвідуваністьзалютий[],6,FALSE),\"\")","v":""},{"$f":"IFERROR(VLOOKUP(Пошукстудента,Відвідуваністьзалютий[],7,FALSE),\"\")","v":""},{"$f":"IFERROR(VLOOKUP(Пошукстудента,Відвідуваністьзалютий[],8,FALSE),\"\")","v":""},{"$f":"IFERROR(VLOOKUP(Пошукстудента,Відвідуваністьзалютий[],9,FALSE),\"\")","v":""},{"$f":"IFERROR(VLOOKUP(Пошукстудента,Відвідуваністьзалютий[],10,FALSE),\"\")","v":""},{"$f":"IFERROR(VLOOKUP(Пошукстудента,Відвідуваністьзалютий[],11,FALSE),\"\")","v":""},{"$f":"IFERROR(VLOOKUP(Пошукстудента,Відвідуваністьзалютий[],12,FALSE),\"\")","v":""},{"$f":"IFERROR(VLOOKUP(Пошукстудента,Відвідуваністьзалютий[],13,FALSE),\"\")","v":""},{"$f":"IFERROR(VLOOKUP(Пошукстудента,Відвідуваністьзалютий[],14,FALSE),\"\")","v":""},{"$f":"IFERROR(VLOOKUP(Пошукстудента,Відвідуваністьзалютий[],15,FALSE),\"\")","v":""},{"$f":"IFERROR(VLOOKUP(Пошукстудента,Відвідуваністьзалютий[],16,FALSE),\"\")","v":""},{"$f":"IFERROR(VLOOKUP(Пошукстудента,Відвідуваністьзалютий[],17,FALSE),\"\")","v":""},{"$f":"IFERROR(VLOOKUP(Пошукстудента,Відвідуваністьзалютий[],18,FALSE),\"\")","v":""},{"$f":"IFERROR(VLOOKUP(Пошукстудента,Відвідуваністьзалютий[],19,FALSE),\"\")","v":""},{"$f":"IFERROR(VLOOKUP(Пошукстудента,Відвідуваністьзалютий[],20,FALSE),\"\")","v":""},{"$f":"IFERROR(VLOOKUP(Пошукстудента,Відвідуваністьзалютий[],21,FALSE),\"\")","v":""},{"$f":"IFERROR(VLOOKUP(Пошукстудента,Відвідуваністьзалютий[],22,FALSE),\"\")","v":""},{"$f":"IFERROR(VLOOKUP(Пошукстудента,Відвідуваністьзалютий[],23,FALSE),\"\")","v":""},{"$f":"IFERROR(VLOOKUP(Пошукстудента,Відвідуваністьзалютий[],24,FALSE),\"\")","v":""},{"$f":"IFERROR(VLOOKUP(Пошукстудента,Відвідуваністьзалютий[],25,FALSE),\"\")","v":""},{"$f":"IFERROR(VLOOKUP(Пошукстудента,Відвідуваністьзалютий[],26,FALSE),\"\")","v":""},{"$f":"IFERROR(VLOOKUP(Пошукстудента,Відвідуваністьзалютий[],27,FALSE),\"\")","v":""},{"$f":"IFERROR(VLOOKUP(Пошукстудента,Відвідуваністьзалютий[],28,FALSE),\"\")","v":""},{"$f":"IFERROR(VLOOKUP(Пошукстудента,Відвідуваністьзалютий[],29,FALSE),\"\")","v":""},{"$f":"IFERROR(VLOOKUP(Пошукстудента,Відвідуваністьзалютий[],30,FALSE),\"\")","v":""},{"$f":"IFERROR(VLOOKUP(Пошукстудента,Відвідуваністьзалютий[],31,FALSE),\"\")","v":""}]
[null,"Березень",1,2,3,4,5,6,7,8,9,10,11,12,13,14,15,16,17,18,19,20,21,22,23,24,25,26,27,28,29,30,31,{"$f":"COUNTIF($D31:$AH31,Код1)","v":0},{"$f":"COUNTIF($D31:$AH31,Код2)","v":0},{"$f":"COUNTIF($D31:$AH31,Код3)","v":0},{"$f":"COUNTIF($D31:$AH31,Код4)","v":0}]
[null,null,{"$f":"IFERROR(VLOOKUP(Пошукстудента,Відвідуваністьзаберезень[],3,FALSE),\"\")","v":""},{"$f":"IFERROR(VLOOKUP(Пошукстудента,Відвідуваністьзаберезень[],4,FALSE),\"\")","v":""},{"$f":"IFERROR(VLOOKUP(Пошукстудента,Відвідуваністьзаберезень[],5,FALSE),\"\")","v":""},{"$f":"IFERROR(VLOOKUP(Пошукстудента,Відвідуваністьзаберезень[],6,FALSE),\"\")","v":""},{"$f":"IFERROR(VLOOKUP(Пошукстудента,Відвідуваністьзаберезень[],7,FALSE),\"\")","v":""},{"$f":"IFERROR(VLOOKUP(Пошукстудента,Відвідуваністьзаберезень[],8,FALSE),\"\")","v":""},{"$f":"IFERROR(VLOOKUP(Пошукстудента,Відвідуваністьзаберезень[],9,FALSE),\"\")","v":""},{"$f":"IFERROR(VLOOKUP(Пошукстудента,Відвідуваністьзаберезень[],10,FALSE),\"\")","v":""},{"$f":"IFERROR(VLOOKUP(Пошукстудента,Відвідуваністьзаберезень[],11,FALSE),\"\")","v":""},{"$f":"IFERROR(VLOOKUP(Пошукстудента,Відвідуваністьзаберезень[],12,FALSE),\"\")","v":""},{"$f":"IFERROR(VLOOKUP(Пошукстудента,Відвідуваністьзаберезень[],13,FALSE),\"\")","v":""},{"$f":"IFERROR(VLOOKUP(Пошукстудента,Відвідуваністьзаберезень[],14,FALSE),\"\")","v":""},{"$f":"IFERROR(VLOOKUP(Пошукстудента,Відвідуваністьзаберезень[],15,FALSE),\"\")","v":""},{"$f":"IFERROR(VLOOKUP(Пошукстудента,Відвідуваністьзаберезень[],16,FALSE),\"\")","v":""},{"$f":"IFERROR(VLOOKUP(Пошукстудента,Відвідуваністьзаберезень[],17,FALSE),\"\")","v":""},{"$f":"IFERROR(VLOOKUP(Пошукстудента,Відвідуваністьзаберезень[],18,FALSE),\"\")","v":""},{"$f":"IFERROR(VLOOKUP(Пошукстудента,Відвідуваністьзаберезень[],19,FALSE),\"\")","v":""},{"$f":"IFERROR(VLOOKUP(Пошукстудента,Відвідуваністьзаберезень[],20,FALSE),\"\")","v":""},{"$f":"IFERROR(VLOOKUP(Пошукстудента,Відвідуваністьзаберезень[],21,FALSE),\"\")","v":""},{"$f":"IFERROR(VLOOKUP(Пошукстудента,Відвідуваністьзаберезень[],22,FALSE),\"\")","v":""},{"$f":"IFERROR(VLOOKUP(Пошукстудента,Відвідуваністьзаберезень[],23,FALSE),\"\")","v":""},{"$f":"IFERROR(VLOOKUP(Пошукстудента,Відвідуваністьзаберезень[],24,FALSE),\"\")","v":""},{"$f":"IFERROR(VLOOKUP(Пошукстудента,Відвідуваністьзаберезень[],25,FALSE),\"\")","v":""},{"$f":"IFERROR(VLOOKUP(Пошукстудента,Відвідуваністьзаберезень[],26,FALSE),\"\")","v":""},{"$f":"IFERROR(VLOOKUP(Пошукстудента,Відвідуваністьзаберезень[],27,FALSE),\"\")","v":""},{"$f":"IFERROR(VLOOKUP(Пошукстудента,Відвідуваністьзаберезень[],28,FALSE),\"\")","v":""},{"$f":"IFERROR(VLOOKUP(Пошукстудента,Відвідуваністьзаберезень[],29,FALSE),\"\")","v":""},{"$f":"IFERROR(VLOOKUP(Пошукстудента,Відвідуваністьзаберезень[],30,FALSE),\"\")","v":""},{"$f":"IFERROR(VLOOKUP(Пошукстудента,Відвідуваністьзаберезень[],31,FALSE),\"\")","v":""},{"$f":"IFERROR(VLOOKUP(Пошукстудента,Відвідуваністьзаберезень[],32,FALSE),\"\")","v":""},{"$f":"IFERROR(VLOOKUP(Пошукстудента,Відвідуваністьзаберезень[],33,FALSE),\"\")","v":""}]
[null,"Квітень",1,2,3,4,5,6,7,8,9,10,11,12,13,14,15,16,17,18,19,20,21,22,23,24,25,26,27,28,29,30,null,{"$f":"COUNTIF($D33:$AH33,Код1)","v":0},{"$f":"COUNTIF($D33:$AH33,Код2)","v":0},{"$f":"COUNTIF($D33:$AH33,Код3)","v":0},{"$f":"COUNTIF($D33:$AH33,Код4)","v":0}]
[null,null,{"$f":"IFERROR(VLOOKUP(Пошукстудента,Відвідуваністьзаквітень[],3,FALSE),\"\")","v":""},{"$f":"IFERROR(VLOOKUP(Пошукстудента,Відвідуваністьзаквітень[],4,FALSE),\"\")","v":""},{"$f":"IFERROR(VLOOKUP(Пошукстудента,Відвідуваністьзаквітень[],5,FALSE),\"\")","v":""},{"$f":"IFERROR(VLOOKUP(Пошукстудента,Відвідуваністьзаквітень[],6,FALSE),\"\")","v":""},{"$f":"IFERROR(VLOOKUP(Пошукстудента,Відвідуваністьзаквітень[],7,FALSE),\"\")","v":""},{"$f":"IFERROR(VLOOKUP(Пошукстудента,Відвідуваністьзаквітень[],8,FALSE),\"\")","v":""},{"$f":"IFERROR(VLOOKUP(Пошукстудента,Відвідуваністьзаквітень[],9,FALSE),\"\")","v":""},{"$f":"IFERROR(VLOOKUP(Пошукстудента,Відвідуваністьзаквітень[],10,FALSE),\"\")","v":""},{"$f":"IFERROR(VLOOKUP(Пошукстудента,Відвідуваністьзаквітень[],11,FALSE),\"\")","v":""},{"$f":"IFERROR(VLOOKUP(Пошукстудента,Відвідуваністьзаквітень[],12,FALSE),\"\")","v":""},{"$f":"IFERROR(VLOOKUP(Пошукстудента,Відвідуваністьзаквітень[],13,FALSE),\"\")","v":""},{"$f":"IFERROR(VLOOKUP(Пошукстудента,Відвідуваністьзаквітень[],14,FALSE),\"\")","v":""},{"$f":"IFERROR(VLOOKUP(Пошукстудента,Відвідуваністьзаквітень[],15,FALSE),\"\")","v":""},{"$f":"IFERROR(VLOOKUP(Пошукстудента,Відвідуваністьзаквітень[],16,FALSE),\"\")","v":""},{"$f":"IFERROR(VLOOKUP(Пошукстудента,Відвідуваністьзаквітень[],17,FALSE),\"\")","v":""},{"$f":"IFERROR(VLOOKUP(Пошукстудента,Відвідуваністьзаквітень[],18,FALSE),\"\")","v":""},{"$f":"IFERROR(VLOOKUP(Пошукстудента,Відвідуваністьзаквітень[],19,FALSE),\"\")","v":""},{"$f":"IFERROR(VLOOKUP(Пошукстудента,Відвідуваністьзаквітень[],20,FALSE),\"\")","v":""},{"$f":"IFERROR(VLOOKUP(Пошукстудента,Відвідуваністьзаквітень[],21,FALSE),\"\")","v":""},{"$f":"IFERROR(VLOOKUP(Пошукстудента,Відвідуваністьзаквітень[],22,FALSE),\"\")","v":""},{"$f":"IFERROR(VLOOKUP(Пошукстудента,Відвідуваністьзаквітень[],23,FALSE),\"\")","v":""},{"$f":"IFERROR(VLOOKUP(Пошукстудента,Відвідуваністьзаквітень[],24,FALSE),\"\")","v":""},{"$f":"IFERROR(VLOOKUP(Пошукстудента,Відвідуваністьзаквітень[],25,FALSE),\"\")","v":""},{"$f":"IFERROR(VLOOKUP(Пошукстудента,Відвідуваністьзаквітень[],26,FALSE),\"\")","v":""},{"$f":"IFERROR(VLOOKUP(Пошукстудента,Відвідуваністьзаквітень[],27,FALSE),\"\")","v":""},{"$f":"IFERROR(VLOOKUP(Пошукстудента,Відвідуваністьзаквітень[],28,FALSE),\"\")","v":""},{"$f":"IFERROR(VLOOKUP(Пошукстудента,Відвідуваністьзаквітень[],29,FALSE),\"\")","v":""},{"$f":"IFERROR(VLOOKUP(Пошукстудента,Відвідуваністьзаквітень[],30,FALSE),\"\")","v":""},{"$f":"IFERROR(VLOOKUP(Пошукстудента,Відвідуваністьзаквітень[],31,FALSE),\"\")","v":""},{"$f":"IFERROR(VLOOKUP(Пошукстудента,Відвідуваністьзаквітень[],32,FALSE),\"\")","v":""}]
[null,"Травень",1,2,3,4,5,6,7,8,9,10,11,12,13,14,15,16,17,18,19,20,21,22,23,24,25,26,27,28,29,30,31,{"$f":"COUNTIF($D35:$AH35,Код1)","v":0},{"$f":"COUNTIF($D35:$AH35,Код2)","v":0},{"$f":"COUNTIF($D35:$AH35,Код3)","v":0},{"$f":"COUNTIF($D35:$AH35,Код4)","v":0}]
[null,null,{"$f":"IFERROR(VLOOKUP(Пошукстудента,Відвідуваністьзатравень[],3,FALSE),\"\")","v":""},{"$f":"IFERROR(VLOOKUP(Пошукстудента,Відвідуваністьзатравень[],4,FALSE),\"\")","v":""},{"$f":"IFERROR(VLOOKUP(Пошукстудента,Відвідуваністьзатравень[],5,FALSE),\"\")","v":""},{"$f":"IFERROR(VLOOKUP(Пошукстудента,Відвідуваністьзатравень[],6,FALSE),\"\")","v":""},{"$f":"IFERROR(VLOOKUP(Пошукстудента,Відвідуваністьзатравень[],7,FALSE),\"\")","v":""},{"$f":"IFERROR(VLOOKUP(Пошукстудента,Відвідуваністьзатравень[],8,FALSE),\"\")","v":""},{"$f":"IFERROR(VLOOKUP(Пошукстудента,Відвідуваністьзатравень[],9,FALSE),\"\")","v":""},{"$f":"IFERROR(VLOOKUP(Пошукстудента,Відвідуваністьзатравень[],10,FALSE),\"\")","v":""},{"$f":"IFERROR(VLOOKUP(Пошукстудента,Відвідуваністьзатравень[],11,FALSE),\"\")","v":""},{"$f":"IFERROR(VLOOKUP(Пошукстудента,Відвідуваністьзатравень[],12,FALSE),\"\")","v":""},{"$f":"IFERROR(VLOOKUP(Пошукстудента,Відвідуваністьзатравень[],13,FALSE),\"\")","v":""},{"$f":"IFERROR(VLOOKUP(Пошукстудента,Відвідуваністьзатравень[],14,FALSE),\"\")","v":""},{"$f":"IFERROR(VLOOKUP(Пошукстудента,Відвідуваністьзатравень[],15,FALSE),\"\")","v":""},{"$f":"IFERROR(VLOOKUP(Пошукстудента,Відвідуваністьзатравень[],16,FALSE),\"\")","v":""},{"$f":"IFERROR(VLOOKUP(Пошукстудента,Відвідуваністьзатравень[],17,FALSE),\"\")","v":""},{"$f":"IFERROR(VLOOKUP(Пошукстудента,Відвідуваністьзатравень[],18,FALSE),\"\")","v":""},{"$f":"IFERROR(VLOOKUP(Пошукстудента,Відвідуваністьзатравень[],19,FALSE),\"\")","v":""},{"$f":"IFERROR(VLOOKUP(Пошукстудента,Відвідуваністьзатравень[],20,FALSE),\"\")","v":""},{"$f":"IFERROR(VLOOKUP(Пошукстудента,Відвідуваністьзатравень[],21,FALSE),\"\")","v":""},{"$f":"IFERROR(VLOOKUP(Пошукстудента,Відвідуваністьзатравень[],22,FALSE),\"\")","v":""},{"$f":"IFERROR(VLOOKUP(Пошукстудента,Відвідуваністьзатравень[],23,FALSE),\"\")","v":""},{"$f":"IFERROR(VLOOKUP(Пошукстудента,Відвідуваністьзатравень[],24,FALSE),\"\")","v":""},{"$f":"IFERROR(VLOOKUP(Пошукстудента,Відвідуваністьзатравень[],25,FALSE),\"\")","v":""},{"$f":"IFERROR(VLOOKUP(Пошукстудента,Відвідуваністьзатравень[],26,FALSE),\"\")","v":""},{"$f":"IFERROR(VLOOKUP(Пошукстудента,Відвідуваністьзатравень[],27,FALSE),\"\")","v":""},{"$f":"IFERROR(VLOOKUP(Пошукстудента,Відвідуваністьзатравень[],28,FALSE),\"\")","v":""},{"$f":"IFERROR(VLOOKUP(Пошукстудента,Відвідуваністьзатравень[],29,FALSE),\"\")","v":""},{"$f":"IFERROR(VLOOKUP(Пошукстудента,Відвідуваністьзатравень[],30,FALSE),\"\")","v":""},{"$f":"IFERROR(VLOOKUP(Пошукстудента,Відвідуваністьзатравень[],31,FALSE),\"\")","v":""},{"$f":"IFERROR(VLOOKUP(Пошукстудента,Відвідуваністьзатравень[],32,FALSE),\"\")","v":""},{"$f":"IFERROR(VLOOKUP(Пошукстудента,Відвідуваністьзатравень[],33,FALSE),\"\")","v":""}]
[null,"Червень",1,2,3,4,5,6,7,8,9,10,11,12,13,14,15,16,17,18,19,20,21,22,23,24,25,26,27,28,29,30,null,{"$f":"COUNTIF($D37:$AH37,Код1)","v":0},{"$f":"COUNTIF($D37:$AH37,Код2)","v":0},{"$f":"COUNTIF($D37:$AH37,Код3)","v":0},{"$f":"COUNTIF($D37:$AH37,Код4)","v":0}]
[null,null,{"$f":"IFERROR(VLOOKUP(Пошукстудента,Відвідуваністьзачервень[],3,FALSE),\"\")","v":""},{"$f":"IFERROR(VLOOKUP(Пошукстудента,Відвідуваністьзачервень[],4,FALSE),\"\")","v":""},{"$f":"IFERROR(VLOOKUP(Пошукстудента,Відвідуваністьзачервень[],5,FALSE),\"\")","v":""},{"$f":"IFERROR(VLOOKUP(Пошукстудента,Відвідуваністьзачервень[],6,FALSE),\"\")","v":""},{"$f":"IFERROR(VLOOKUP(Пошукстудента,Відвідуваністьзачервень[],7,FALSE),\"\")","v":""},{"$f":"IFERROR(VLOOKUP(Пошукстудента,Відвідуваністьзачервень[],8,FALSE),\"\")","v":""},{"$f":"IFERROR(VLOOKUP(Пошукстудента,Відвідуваністьзачервень[],9,FALSE),\"\")","v":""},{"$f":"IFERROR(VLOOKUP(Пошукстудента,Відвідуваністьзачервень[],10,FALSE),\"\")","v":""},{"$f":"IFERROR(VLOOKUP(Пошукстудента,Відвідуваністьзачервень[],11,FALSE),\"\")","v":""},{"$f":"IFERROR(VLOOKUP(Пошукстудента,Відвідуваністьзачервень[],12,FALSE),\"\")","v":""},{"$f":"IFERROR(VLOOKUP(Пошукстудента,Відвідуваністьзачервень[],13,FALSE),\"\")","v":""},{"$f":"IFERROR(VLOOKUP(Пошукстудента,Відвідуваністьзачервень[],14,FALSE),\"\")","v":""},{"$f":"IFERROR(VLOOKUP(Пошукстудента,Відвідуваністьзачервень[],15,FALSE),\"\")","v":""},{"$f":"IFERROR(VLOOKUP(Пошукстудента,Відвідуваністьзачервень[],16,FALSE),\"\")","v":""},{"$f":"IFERROR(VLOOKUP(Пошукстудента,Відвідуваністьзачервень[],17,FALSE),\"\")","v":""},{"$f":"IFERROR(VLOOKUP(Пошукстудента,Відвідуваністьзачервень[],18,FALSE),\"\")","v":""},{"$f":"IFERROR(VLOOKUP(Пошукстудента,Відвідуваністьзачервень[],19,FALSE),\"\")","v":""},{"$f":"IFERROR(VLOOKUP(Пошукстудента,Відвідуваністьзачервень[],20,FALSE),\"\")","v":""},{"$f":"IFERROR(VLOOKUP(Пошукстудента,Відвідуваністьзачервень[],21,FALSE),\"\")","v":""},{"$f":"IFERROR(VLOOKUP(Пошукстудента,Відвідуваністьзачервень[],22,FALSE),\"\")","v":""},{"$f":"IFERROR(VLOOKUP(Пошукстудента,Відвідуваністьзачервень[],23,FALSE),\"\")","v":""},{"$f":"IFERROR(VLOOKUP(Пошукстудента,Відвідуваністьзачервень[],24,FALSE),\"\")","v":""},{"$f":"IFERROR(VLOOKUP(Пошукстудента,Відвідуваністьзачервень[],25,FALSE),\"\")","v":""},{"$f":"IFERROR(VLOOKUP(Пошукстудента,Відвідуваністьзачервень[],26,FALSE),\"\")","v":""},{"$f":"IFERROR(VLOOKUP(Пошукстудента,Відвідуваністьзачервень[],27,FALSE),\"\")","v":""},{"$f":"IFERROR(VLOOKUP(Пошукстудента,Відвідуваністьзачервень[],28,FALSE),\"\")","v":""},{"$f":"IFERROR(VLOOKUP(Пошукстудента,Відвідуваністьзачервень[],29,FALSE),\"\")","v":""},{"$f":"IFERROR(VLOOKUP(Пошукстудента,Відвідуваністьзачервень[],30,FALSE),\"\")","v":""},{"$f":"IFERROR(VLOOKUP(Пошукстудента,Відвідуваністьзачервень[],31,FALSE),\"\")","v":""},{"$f":"IFERROR(VLOOKUP(Пошукстудента,Відвідуваністьзачервень[],32,FALSE),\"\")","v":""}]
[null,"Липень",1,2,3,4,5,6,7,8,9,10,11,12,13,14,15,16,17,18,19,20,21,22,23,24,25,26,27,28,29,30,31,{"$f":"COUNTIF($D39:$AH39,Код1)","v":0},{"$f":"COUNTIF($D39:$AH39,Код2)","v":0},{"$f":"COUNTIF($D39:$AH39,Код3)","v":0},{"$f":"COUNTIF($D39:$AH39,Код4)","v":0}]
[null,null,{"$f":"IFERROR(VLOOKUP(Пошукстудента,Відвідуваністьзалипень[],3,FALSE),\"\")","v":""},{"$f":"IFERROR(VLOOKUP(Пошукстудента,Відвідуваністьзалипень[],4,FALSE),\"\")","v":""},{"$f":"IFERROR(VLOOKUP(Пошукстудента,Відвідуваністьзалипень[],5,FALSE),\"\")","v":""},{"$f":"IFERROR(VLOOKUP(Пошукстудента,Відвідуваністьзалипень[],6,FALSE),\"\")","v":""},{"$f":"IFERROR(VLOOKUP(Пошукстудента,Відвідуваністьзалипень[],7,FALSE),\"\")","v":""},{"$f":"IFERROR(VLOOKUP(Пошукстудента,Відвідуваністьзалипень[],8,FALSE),\"\")","v":""},{"$f":"IFERROR(VLOOKUP(Пошукстудента,Відвідуваністьзалипень[],9,FALSE),\"\")","v":""},{"$f":"IFERROR(VLOOKUP(Пошукстудента,Відвідуваністьзалипень[],10,FALSE),\"\")","v":""},{"$f":"IFERROR(VLOOKUP(Пошукстудента,Відвідуваністьзалипень[],11,FALSE),\"\")","v":""},{"$f":"IFERROR(VLOOKUP(Пошукстудента,Відвідуваністьзалипень[],12,FALSE),\"\")","v":""},{"$f":"IFERROR(VLOOKUP(Пошукстудента,Відвідуваністьзалипень[],13,FALSE),\"\")","v":""},{"$f":"IFERROR(VLOOKUP(Пошукстудента,Відвідуваністьзалипень[],14,FALSE),\"\")","v":""},{"$f":"IFERROR(VLOOKUP(Пошукстудента,Відвідуваністьзалипень[],15,FALSE),\"\")","v":""},{"$f":"IFERROR(VLOOKUP(Пошукстудента,Відвідуваністьзалипень[],16,FALSE),\"\")","v":""},{"$f":"IFERROR(VLOOKUP(Пошукстудента,Відвідуваністьзалипень[],17,FALSE),\"\")","v":""},{"$f":"IFERROR(VLOOKUP(Пошукстудента,Відвідуваністьзалипень[],18,FALSE),\"\")","v":""},{"$f":"IFERROR(VLOOKUP(Пошукстудента,Відвідуваністьзалипень[],19,FALSE),\"\")","v":""},{"$f":"IFERROR(VLOOKUP(Пошукстудента,Відвідуваністьзалипень[],20,FALSE),\"\")","v":""},{"$f":"IFERROR(VLOOKUP(Пошукстудента,Відвідуваністьзалипень[],21,FALSE),\"\")","v":""},{"$f":"IFERROR(VLOOKUP(Пошукстудента,Відвідуваністьзалипень[],22,FALSE),\"\")","v":""},{"$f":"IFERROR(VLOOKUP(Пошукстудента,Відвідуваністьзалипень[],23,FALSE),\"\")","v":""},{"$f":"IFERROR(VLOOKUP(Пошукстудента,Відвідуваністьзалипень[],24,FALSE),\"\")","v":""},{"$f":"IFERROR(VLOOKUP(Пошукстудента,Відвідуваністьзалипень[],25,FALSE),\"\")","v":""},{"$f":"IFERROR(VLOOKUP(Пошукстудента,Відвідуваністьзалипень[],26,FALSE),\"\")","v":""},{"$f":"IFERROR(VLOOKUP(Пошукстудента,Відвідуваністьзалипень[],27,FALSE),\"\")","v":""},{"$f":"IFERROR(VLOOKUP(Пошукстудента,Відвідуваністьзалипень[],28,FALSE),\"\")","v":""},{"$f":"IFERROR(VLOOKUP(Пошукстудента,Відвідуваністьзалипень[],29,FALSE),\"\")","v":""},{"$f":"IFERROR(VLOOKUP(Пошукстудента,Відвідуваністьзалипень[],30,FALSE),\"\")","v":""},{"$f":"IFERROR(VLOOKUP(Пошукстудента,Відвідуваністьзалипень[],31,FALSE),\"\")","v":""},{"$f":"IFERROR(VLOOKUP(Пошукстудента,Відвідуваністьзалипень[],32,FALSE),\"\")","v":""},{"$f":"IFERROR(VLOOKUP(Пошукстудента,Відвідуваністьзалипень[],33,FALSE),\"\")","v":""}]
[{"$nulls":30},"Усього",null,null,{"$f":"SUM(AH16:AH39)","v":2},{"$f":"SUM(AI16:AI39)","v":1},{"$f":"SUM(AJ16:AJ39)","v":0},{"$f":"SUM(AK16:AK39)","v":19}]